Local authority department which incurred the expenditure,Service Division,Cost Centre,Summary of the Purpose of Expenditure,Expense Type,Expense Code,Detailed Expense Type,Date of Transaction,Transaction Number,Beneficiary,Merchant Category Number,Merchant Category,Gross Amount,VAT,Net Amount
Children and Young Peoples Services,Head of Childrens Social Care,085332,Middlestone Moor CU,Supplies and Services,304403,Equipment and Materials,01-Jun-2020,000007194591812,AMZNMktplace,5999,Other consumables,9.99,0.00,9.99
Children and Young Peoples Services,Head of Early Help Inclusion & Vulnerable Children.,085965,Barnard,Supplies and Services,324117,Provisions E324,01-Jun-2020,000007194591820,TESCO STORES 6329,5411,Catering costs - provisions,47.00,0.00,47.00
Resources BK0010,Business Support,052986,CYPS - Locality and Operational Support,Supplies and Services,384999,Miscellaneous Expenses,01-Jun-2020,000007194591986,Amazon.co.uk MX2JZ0GD5,5969,Other expenses,8.98,0.00,8.98
Resources BK0010,Business Support,052986,CYPS - Locality and Operational Support,Supplies and Services,384999,Miscellaneous Expenses,01-Jun-2020,000007194591990,Amazon.co.uk KT1SQ2O75,5969,Other expenses,8.98,0.00,8.98
Children and Young Peoples Services,Head of Education and Skills,071801,Selby Cottage Childcare Centre,Supplies and Services,324117,Provisions E324,01-Jun-2020,000007197896078,ASDA GROCERIES ONLINE,5411,Catering costs - provisions,96.85,0.00,96.85
Resources BK0010,Business Support,065461,Business Support 065461,Supplies and Services,304403,Equipment and Materials,01-Jun-2020,000007197896096,AMZNMktplace,5999,Other consumables,27.45,4.60,22.85
Resources BK0010,Business Support,065461,Business Support 065461,Supplies and Services,304403,Equipment and Materials,01-Jun-2020,000007197896100,AMZNMktplace,5999,Other consumables,110.85,0.00,110.85
Resources BK0010,Business Support,065461,Business Support 065461,Supplies and Services,304403,Equipment and Materials,01-Jun-2020,000007197896106,AMZNMktplace,5999,Other consumables,480.35,0.00,480.35
Resources BK0010,Business Support,065461,Business Support 065461,Supplies and Services,304403,Equipment and Materials,01-Jun-2020,000007197896110,AMZNMktplace,5999,Other consumables,480.35,0.00,480.35
Resources BK0010,Business Support,065461,Business Support 065461,Supplies and Services,342222,Computers and Communications,01-Jun-2020,000007197896114,UKFAST.NET LTD,4816,Comp hardware purch-network servers,63.01,10.50,52.51
Resources BK0010,Business Support,065461,Business Support 065461,Supplies and Services,342222,Computers and Communications,01-Jun-2020,000007197896118,UKFAST.NET LTD,4816,Comp hardware purch-network servers,500.00,83.33,416.67
Children and Young Peoples Services,Head of Childrens Social Care,085501,Child Care Cases Legal Expenses,Supplies and Services,304403,Equipment and Materials,01-Jun-2020,000007197896136,GEN REGISTER OFFICE,9399,Other consumables,14.00,0.00,14.00
Children and Young Peoples Services,Head of Childrens Social Care,085342,16 Hickstead Rise (previously 9 Cedar Ave),Supplies and Services,324117,Provisions E324,01-Jun-2020,000007197896228,TESCO STORES 2916,5411,Catering costs - provisions,92.83,0.00,92.83
Children and Young Peoples Services,Head of Childrens Social Care,085342,16 Hickstead Rise (previously 9 Cedar Ave),Supplies and Services,324117,Provisions E324,01-Jun-2020,000007197896230,WILKO RETAIL LIMITED,5399,Catering costs - provisions,7.00,0.00,7.00
Children and Young Peoples Services,Head of Childrens Social Care,085342,16 Hickstead Rise (previously 9 Cedar Ave),Supplies and Services,324117,Provisions E324,01-Jun-2020,000007197896232,ALDI 74 774,5411,Catering costs - provisions,6.16,0.00,6.16
Children and Young Peoples Services,Head of Childrens Social Care,085341,High Etherley Satelite Home,Supplies and Services,324117,Provisions E324,01-Jun-2020,000007197896316,TESCO STORES 2371,5411,Catering costs - provisions,24.89,0.00,24.89
Children and Young Peoples Services,Head of Childrens Social Care,085333,Coxhoe Satelite Home,Supplies and Services,344033,Telephones,01-Jun-2020,000007197896362,EE BROADBAND,4812,Telephones general-all costs,37.50,0.00,37.50
Children and Young Peoples Services,Head of Childrens Social Care,085332,Middlestone Moor CU,Supplies and Services,304403,Equipment and Materials,01-Jun-2020,000007197896448,AMZNMKTPLACE AMAZON.CO,5999,Other consumables,32.94,0.00,32.94
"Regeneration, Economy and Growth",Development and Housing,031576,B& B - Temp Accom,Supplies and Services,364320,Grants to Voluntary Organisations,01-Jun-2020,000007197896496,BUDGET H EXPRESS HOTEL,7011,Accommodation assistance,50.00,8.33,41.67
"Regeneration, Economy and Growth",Development and Housing,031576,B& B - Temp Accom,Supplies and Services,352001,Conference Expenses,01-Jun-2020,000007197896618,BUDGET H EXPRESS HOTEL,7011,Conferencesseminars fees etc,89.00,14.83,74.17
"Regeneration, Economy and Growth",Development and Housing,031576,B& B - Temp Accom,Supplies and Services,352001,Conference Expenses,01-Jun-2020,000007197896626,BUDGET H EXPRESS HOTEL,7011,Conferencesseminars fees etc,89.00,14.83,74.17
"Regeneration, Economy and Growth",Development and Housing,031576,B& B - Temp Accom,Supplies and Services,352001,Conference Expenses,01-Jun-2020,000007197896630,HI NEWCASTLE WASHI,7011,Conferencesseminars fees etc,210.00,0.00,210.00
Children and Young Peoples Services,Head of Education and Skills,071732,Dean Bank Childcare,Supplies and Services,324117,Provisions E324,01-Jun-2020,000007197896718,SAINSBURYS (2303),5411,Catering costs - provisions,42.40,0.00,42.40
Neighbourhoods and Climate Change,Environmental Services,031221,North Pennines - Bowlees,Supplies and Services,304221,Equipment and Materials,01-Jun-2020,000007197896750,B & Q 1332,5200,Direct materials,60.00,0.00,60.00
Children and Young Peoples Services,Head of Childrens Social Care,085332,Middlestone Moor CU,Supplies and Services,348037,Subsistence E348,01-Jun-2020,000007197896780,SIESTA COFFEE SHOP,5814,Subsistence,3.80,0.00,3.80
"Regeneration, Economy and Growth",Development and Housing,031578,Client Travel Reimbursements,Transport,235073,Public Transport,01-Jun-2020,000007197897078,GO NORTH EAST LIMITED,4131,Travel-clients/students/children,8.50,0.00,8.50
"Regeneration, Economy and Growth",Development and Housing,031500,Housing Solutions - Core Team,Supplies and Services,352001,Conference Expenses,01-Jun-2020,000007197897208,GRAINGER HOTEL,7011,Conferencesseminars fees etc,100.00,16.67,83.33
Neighbourhoods and Climate Change,Environmental Services,010367,C&G - South Grounds Maintenance,Supplies and Services,304999,Equipment and Materials,01-Jun-2020,000007197897256,RICKERBY,5251,Misc equipment tools and materials,41.26,6.88,34.38
Adult and Health Services,Head of Adults,055643,Hawthorn House LD Respite Unit,Supplies and Services,304259,Equipment and Materials,01-Jun-2020,000007197897312,WWW.DURHAM.GOV.UK,9399,Equipment-purchase and rental,10.00,0.00,10.00
Children and Young Peoples Services,Head of Education and Skills,071802,Louisa Cent Nursery,Supplies and Services,328041,Clothing uniforms and laundry E328,01-Jun-2020,000007197897336,POUNDSTRETCHER 354,5331,Clothing uniforms and laundry,10.47,0.00,10.47
Children and Young Peoples Services,Head of Education and Skills,071802,Louisa Cent Nursery,Supplies and Services,324117,Provisions E324,01-Jun-2020,000007197897342,ASDA SUPERSTORE,5411,Catering costs - provisions,49.00,0.00,49.00
Children and Young Peoples Services,Head of Childrens Social Care,085333,Coxhoe Satelite Home,Supplies and Services,324117,Provisions E324,01-Jun-2020,000007197897378,ASDA SUPERSTORE 4987,5411,Catering costs - provisions,56.19,0.00,56.19
Children and Young Peoples Services,Head of Childrens Social Care,085333,Coxhoe Satelite Home,Supplies and Services,324117,Provisions E324,01-Jun-2020,000007197897380,ASDA SUPERSTORE 4987,5411,Catering costs - provisions,28.34,0.00,28.34
"Regeneration, Economy and Growth",Development and Housing,031576,B& B - Temp Accom,Supplies and Services,364320,Grants to Voluntary Organisations,01-Jun-2020,000007197897442,HI NEWCASTLE WASHI,7011,Accommodation assistance,195.00,0.00,195.00
Children and Young Peoples Services,Head of Childrens Social Care,085334,West Rainton Satelite Home,Supplies and Services,328041,Clothing uniforms and laundry E328,01-Jun-2020,000007197897498,B&M RETAIL,5310,Clothing uniforms and laundry,8.10,0.00,8.10
Children and Young Peoples Services,Head of Childrens Social Care,085334,West Rainton Satelite Home,Supplies and Services,328041,Clothing uniforms and laundry E328,01-Jun-2020,000007197897504,B&M RETAIL,5310,Clothing uniforms and laundry,9.46,0.00,9.46
Children and Young Peoples Services,Head of Childrens Social Care,085334,West Rainton Satelite Home,Supplies and Services,328041,Clothing uniforms and laundry E328,01-Jun-2020,000007197897510,B&M RETAIL,5310,Clothing uniforms and laundry,32.46,0.00,32.46
Children and Young Peoples Services,Head of Childrens Social Care,085334,West Rainton Satelite Home,Supplies and Services,324117,Provisions E324,01-Jun-2020,000007197897514,ALDI 29 774,5411,Catering costs - provisions,6.09,0.00,6.09
Children and Young Peoples Services,Head of Early Help Inclusion & Vulnerable Children.,088103,Consett & Stanley 0-19 Community Family Hub,Supplies and Services,324117,Provisions E324,01-Jun-2020,000007197897526,ASDA GROCERIES ONLINE,5411,Catering costs - provisions,245.63,0.00,245.63
Children and Young Peoples Services,Head of Early Help Inclusion & Vulnerable Children.,088103,Consett & Stanley 0-19 Community Family Hub,Supplies and Services,324117,Provisions E324,01-Jun-2020,000007197897528,ASDA GROCERIES ONLINE,5411,Catering costs - provisions,-1.80,0.00,-1.80
Resources BK0010,Digital and Customer Services,065335,School Services - Implementations,Supplies and Services,304639,Equipment and Materials,01-Jun-2020,000007197897552,REPLACEBASE,5732,Technicians-supplies,23.34,3.89,19.45
Children and Young Peoples Services,Head of Childrens Social Care,085334,West Rainton Satelite Home,Supplies and Services,324117,Provisions E324,01-Jun-2020,000007197897586,LIDL GB SUNDERLAND,5411,Catering costs - provisions,94.61,0.00,94.61
Children and Young Peoples Services,Head of Childrens Social Care,085334,West Rainton Satelite Home,Supplies and Services,328041,Clothing uniforms and laundry E328,01-Jun-2020,000007197897596,The Range,5311,Clothing uniforms and laundry,6.50,0.00,6.50
Children and Young Peoples Services,Head of Childrens Social Care,085334,West Rainton Satelite Home,Supplies and Services,328041,Clothing uniforms and laundry E328,01-Jun-2020,000007197897600,The Range,5311,Clothing uniforms and laundry,59.99,0.00,59.99
Children and Young Peoples Services,Head of Early Help Inclusion & Vulnerable Children.,085954,Walworth,Supplies and Services,328041,Clothing uniforms and laundry E328,01-Jun-2020,000007197897612,FOOTASYLUM PLC,5691,Clothing uniforms and laundry,95.98,0.00,95.98
Children and Young Peoples Services,Head of Early Help Inclusion & Vulnerable Children.,085956,Lumley,Supplies and Services,328041,Clothing uniforms and laundry E328,01-Jun-2020,000007197897620,PRETTYLITTLETHING.COM,5691,Clothing uniforms and laundry,56.00,0.00,56.00
Children and Young Peoples Services,Head of Early Help Inclusion & Vulnerable Children.,085956,Lumley,Supplies and Services,304649,Equipment and Materials,01-Jun-2020,000007197897622,Amazon.co.uk OE3M14W45,5969,Toys,4.80,0.80,4.00
Children and Young Peoples Services,Head of Early Help Inclusion & Vulnerable Children.,085956,Lumley,Supplies and Services,304335,Equipment and Materials,01-Jun-2020,000007197897624,AMZNMktplace,5999,ICT supplies etc,5.99,1.00,4.99
Children and Young Peoples Services,Head of Early Help Inclusion & Vulnerable Children.,085956,Lumley,Supplies and Services,304649,Equipment and Materials,01-Jun-2020,000007197897628,WEBUY.COM,5065,Toys,2.95,0.00,2.95
Children and Young Peoples Services,Head of Education and Skills,071802,Louisa Cent Nursery,Supplies and Services,304999,Equipment and Materials,01-Jun-2020,000007197897760,HOME BARGAINS,5251,Misc equipment tools and materials,4.47,0.00,4.47
Children and Young Peoples Services,Head of Education and Skills,071802,Louisa Cent Nursery,Supplies and Services,328041,Clothing uniforms and laundry E328,01-Jun-2020,000007197897768,B&M RETAIL,5310,Clothing uniforms and laundry,5.00,0.00,5.00
Resources BK0010,Corporate Finance & Commercial Services,069800,Corporate Procurement 069800,Employees,040149,Recruitment Instruction and Training,01-Jun-2020,000007197897792,WWW.CIPS.ORG,8699,Training-all costs,186.00,0.00,186.00
Resources BK0010,Corporate Finance & Commercial Services,069800,Corporate Procurement 069800,Employees,040149,Recruitment Instruction and Training,01-Jun-2020,000007197897798,WWW.CIPS.ORG,8699,Training-all costs,186.00,0.00,186.00
Children and Young Peoples Services,Head of Early Help Inclusion & Vulnerable Children.,088107,Ferryhill & Newton Aycliffe 0-19 Community Family Hub,Supplies and Services,304403,Equipment and Materials,01-Jun-2020,000007197897880,AMZNMktplace,5999,Other consumables,44.99,7.50,37.49
Children and Young Peoples Services,Head of Childrens Social Care,085332,Middlestone Moor CU,Supplies and Services,304999,Equipment and Materials,01-Jun-2020,000007197898238,Amazon Prime P33CM1Z75,5968,Misc equipment tools and materials,7.99,0.00,7.99
Children and Young Peoples Services,Head of Early Help Inclusion & Vulnerable Children.,085810,CDYJS - Interventions Team,Supplies and Services,384999,Miscellaneous Expenses,01-Jun-2020,000007197898310,Amazon.co.uk GU0ZZ2HV5,5969,Other expenses,4.00,0.67,3.33
Resources BK0010,Business Support,065461,Business Support 065461,Supplies and Services,304403,Equipment and Materials,01-Jun-2020,000007200002610,AMZNMKTPLACE AMAZON.CO,5999,Other consumables,28.95,4.83,24.12
Resources BK0010,Business Support,065461,Business Support 065461,Supplies and Services,304403,Equipment and Materials,01-Jun-2020,000007200002618,AMZNMKTPLACE AMAZON.CO,5999,Other consumables,19.95,0.00,19.95
Children and Young Peoples Services,Head of Education and Skills,071732,Dean Bank Childcare,Supplies and Services,304403,Equipment and Materials,01-Jun-2020,000007200002742,AMZNMKTPLACE AMAZON.CO,5999,Other consumables,32.94,0.00,32.94
Children and Young Peoples Services,Head of Childrens Social Care,085501,Child Care Cases Legal Expenses,Supplies and Services,304403,Equipment and Materials,01-Jun-2020,000009132173723,GEN REGISTER OFFICE,9399,Other consumables,-14.00,0.00,-14.00
Children and Young Peoples Services,Head of Education and Skills,071801,Selby Cottage Childcare Centre,Supplies and Services,324117,Provisions E324,02-Jun-2020,000007197896072,TESCO STORES 2371,5411,Catering costs - provisions,20.10,0.00,20.10
"Regeneration, Economy and Growth",Business Durham CL0850,030689,Inward Investment and Aftercare,Supplies and Services,304403,Equipment and Materials,02-Jun-2020,000007200002568,ADOBE CREATIVE CLOUD,5734,Other consumables,49.94,0.00,49.94
"Regeneration, Economy and Growth",Business Durham CL0850,030689,Inward Investment and Aftercare,Supplies and Services,342222,Computers and Communications,02-Jun-2020,000007200002574,FASTHOSTS INTERNET,4816,Comp hardware purch-network servers,72.66,0.00,72.66
"Regeneration, Economy and Growth",Business Durham CL0850,030689,Inward Investment and Aftercare,Supplies and Services,342222,Computers and Communications,02-Jun-2020,000007200002576,FASTHOSTS INTERNET,4816,Comp hardware purch-network servers,67.20,0.00,67.20
Children and Young Peoples Services,Head of Childrens Social Care,085341,High Etherley Satelite Home,Supplies and Services,324117,Provisions E324,02-Jun-2020,000007200002582,TESCO STORES 6329,5411,Catering costs - provisions,47.68,0.00,47.68
Children and Young Peoples Services,Head of Childrens Social Care,085341,High Etherley Satelite Home,Supplies and Services,324117,Provisions E324,02-Jun-2020,000007200002584,TESCO STORES 6329,5411,Catering costs - provisions,7.00,0.00,7.00
Children and Young Peoples Services,Head of Childrens Social Care,085341,High Etherley Satelite Home,Supplies and Services,324117,Provisions E324,02-Jun-2020,000007200002586,SPAR - GEM WEST AUCKLA,5411,Catering costs - provisions,10.93,0.00,10.93
Children and Young Peoples Services,Head of Education and Skills,071801,Selby Cottage Childcare Centre,Supplies and Services,324117,Provisions E324,02-Jun-2020,000007200002590,JR HOLLAND FOODSERVICE,5499,Catering costs - provisions,223.65,0.00,223.65
Resources BK0010,Business Support,065461,Business Support 065461,Supplies and Services,304403,Equipment and Materials,02-Jun-2020,000007200002620,AMZNMKTPLACE AMAZON.CO,5999,Other consumables,18.97,3.16,15.81
Resources BK0010,Business Support,065461,Business Support 065461,Supplies and Services,384999,Miscellaneous Expenses,02-Jun-2020,000007200002622,Amazon.co.uk OF78G3EE5,5969,Other expenses,18.18,3.03,15.15
Resources BK0010,Business Support,065461,Business Support 065461,Supplies and Services,304403,Equipment and Materials,02-Jun-2020,000007200002626,AMZNMktplace,5999,Other consumables,332.55,0.00,332.55
Resources BK0010,Business Support,065461,Business Support 065461,Supplies and Services,304403,Equipment and Materials,02-Jun-2020,000007200002630,AMZNMktplace,5999,Other consumables,233.70,0.00,233.70
Resources BK0010,Business Support,065461,Business Support 065461,Supplies and Services,304403,Equipment and Materials,02-Jun-2020,000007200002634,AMZNMktplace,5999,Other consumables,147.80,0.00,147.80
"Regeneration, Economy and Growth",Culture Sport and Tourism,030708,VCD - Marketing & Information,Supplies and Services,384199,Miscellaneous Expenses,02-Jun-2020,000007200002642,MAILCHIMP MONTHLY,5968,Other hired and contracted services,408.29,0.00,408.29
Children and Young Peoples Services,Head of Childrens Social Care,085332,Middlestone Moor CU,Supplies and Services,324117,Provisions E324,02-Jun-2020,000007200002646,ASDA SUPERSTORE 4987,5411,Catering costs - provisions,71.50,0.00,71.50
Children and Young Peoples Services,Head of Childrens Social Care,085333,Coxhoe Satelite Home,Supplies and Services,304999,Equipment and Materials,02-Jun-2020,000007200002662,WWW.TOOLSTATION.COM,5251,Misc equipment tools and materials,7.63,0.00,7.63
Children and Young Peoples Services,Head of Childrens Social Care,085332,Middlestone Moor CU,Supplies and Services,304403,Equipment and Materials,02-Jun-2020,000007200002682,AMZNMktplace,5999,Other consumables,37.99,0.00,37.99
Children and Young Peoples Services,Head of Childrens Social Care,085332,Middlestone Moor CU,Supplies and Services,304403,Equipment and Materials,02-Jun-2020,000007200002684,AMZNMktplace,5999,Other consumables,69.90,0.00,69.90
Children and Young Peoples Services,Head of Early Help Inclusion & Vulnerable Children.,073998,TTF-Co-ordinator Grant,Transfer Payments,525033,Other,02-Jun-2020,000007200002698,ASDA GEORGE COM LEEDS,5411,Grants to individuals,202.95,33.83,169.12
"Regeneration, Economy and Growth",Development and Housing,031576,B& B - Temp Accom,Supplies and Services,352001,Conference Expenses,02-Jun-2020,000007200002708,GRAINGER APARTMENTS NE,7011,Conferencesseminars fees etc,200.00,0.00,200.00
"Regeneration, Economy and Growth",Development and Housing,031576,B& B - Temp Accom,Supplies and Services,352001,Conference Expenses,02-Jun-2020,000007200002710,HI NEWCASTLE WASHI,7011,Conferencesseminars fees etc,105.00,0.00,105.00
Children and Young Peoples Services,Head of Education and Skills,071732,Dean Bank Childcare,Supplies and Services,304403,Equipment and Materials,02-Jun-2020,000007200002746,AMZNMKTPLACE AMAZON.CO,5999,Other consumables,34.95,5.85,29.10
Children and Young Peoples Services,Head of Early Help Inclusion & Vulnerable Children.,088107,Ferryhill & Newton Aycliffe 0-19 Community Family Hub,Supplies and Services,308011,Furniture,02-Jun-2020,000007200002770,ARGOS LTD,5310,Furniture repair and replacement,61.95,0.00,61.95
Children and Young Peoples Services,Head of Early Help Inclusion & Vulnerable Children.,088107,Ferryhill & Newton Aycliffe 0-19 Community Family Hub,Supplies and Services,308011,Furniture,02-Jun-2020,000007200002774,ARGOS LTD,5310,Furniture repair and replacement,53.95,0.00,53.95
Children and Young Peoples Services,Head of Early Help Inclusion & Vulnerable Children.,088107,Ferryhill & Newton Aycliffe 0-19 Community Family Hub,Supplies and Services,308011,Furniture,02-Jun-2020,000007200002778,ARGOS LTD,5310,Furniture repair and replacement,53.95,0.00,53.95
Children and Young Peoples Services,Head of Early Help Inclusion & Vulnerable Children.,088107,Ferryhill & Newton Aycliffe 0-19 Community Family Hub,Supplies and Services,308011,Furniture,02-Jun-2020,000007200002780,ARGOS LTD,5310,Furniture repair and replacement,-53.95,0.00,-53.95
Children and Young Peoples Services,Head of Early Help Inclusion & Vulnerable Children.,071445,Chester le Street One Point Hub,Supplies and Services,304259,Equipment and Materials,02-Jun-2020,000007200002784,Durham County CNCL,9399,Equipment-purchase and rental,22.00,0.00,22.00
Resources BK0010,Business Support,052986,CYPS - Locality and Operational Support,Supplies and Services,324117,Provisions E324,02-Jun-2020,000007200002788,SAINSBURY`S,5411,Catering costs - provisions,21.45,0.00,21.45
Children and Young Peoples Services,Head of Childrens Social Care,085331,New Lea Childrens Home,Supplies and Services,324117,Provisions E324,02-Jun-2020,000007200002820,ASDA SUPERSTORE,5411,Catering costs - provisions,241.14,0.00,241.14
Children and Young Peoples Services,Childrens Services Operational Support,052932,Childrens Social Care,Employees,040149,Recruitment Instruction and Training,02-Jun-2020,000007200002826,EUREKA!,8999,Training-all costs,21.60,3.60,18.00
Adult and Health Services,Head of Adults,051622,OP/PD Dales 051622,Supplies and Services,304259,Equipment and Materials,02-Jun-2020,000007200002832,CURRYS ONLINE,5732,Equipment-purchase and rental,473.99,0.00,473.99
Children and Young Peoples Services,Head of Childrens Social Care,085623,Families First Bishop Auckland,Supplies and Services,338045,Services,02-Jun-2020,000007200002854,DARLINGTON BC INTERNET,9399,Legal expenses 338045,11.00,0.00,11.00
Children and Young Peoples Services,Head of Early Help Inclusion & Vulnerable Children.,088109,Spennymoor & Shildon 0-19 Community Family Hub,Supplies and Services,364301,Grants to Voluntary Organisations,02-Jun-2020,000007200002856,CURRYS ONLINE,5732,Hardship,169.99,0.00,169.99
"Regeneration, Economy and Growth",Development and Housing,031500,Housing Solutions - Core Team,Supplies and Services,352001,Conference Expenses,02-Jun-2020,000007200002872,GRAINGER HOTEL,7011,Conferencesseminars fees etc,100.00,16.67,83.33
Neighbourhoods and Climate Change,Environmental Services,010367,C&G - South Grounds Maintenance,Supplies and Services,304221,Equipment and Materials,02-Jun-2020,000007200002896,RICHMOND TURF GROW,5261,Direct materials,10.20,0.00,10.20
Neighbourhoods and Climate Change,Environmental Services,010367,C&G - South Grounds Maintenance,Supplies and Services,304999,Equipment and Materials,02-Jun-2020,000007200002900,Snowballs,5251,Misc equipment tools and materials,89.22,14.87,74.35
Neighbourhoods and Climate Change,Community Protection,011035,Consumer Protection 011035,Supplies and Services,338048,Services,02-Jun-2020,000007200002924,HMCOURTS-SERVICE.G,9222,Court costs 338048,226.00,0.00,226.00
Children and Young Peoples Services,Head of Education and Skills,071802,Louisa Cent Nursery,Supplies and Services,304999,Equipment and Materials,02-Jun-2020,000007200002934,HOME BARGAINS,5251,Misc equipment tools and materials,33.71,5.62,28.09
Adult and Health Services,Head of Adults,055643,Hawthorn House LD Respite Unit,Supplies and Services,324117,Provisions E324,02-Jun-2020,000007200002966,JR HOLLAND FOODSERVICE,5499,Catering costs - provisions,12.24,0.00,12.24
Adult and Health Services,Head of Adults,055643,Hawthorn House LD Respite Unit,Supplies and Services,324117,Provisions E324,02-Jun-2020,000007200002972,JR HOLLAND FOODSERVICE,5499,Catering costs - provisions,15.82,0.00,15.82
Children and Young Peoples Services,Head of Early Help Inclusion & Vulnerable Children.,085954,Walworth,Supplies and Services,328041,Clothing uniforms and laundry E328,02-Jun-2020,000007200002984,FOOTASYLUM PLC,5691,Clothing uniforms and laundry,84.98,0.00,84.98
Children and Young Peoples Services,Head of Early Help Inclusion & Vulnerable Children.,085965,Barnard,Supplies and Services,328041,Clothing uniforms and laundry E328,02-Jun-2020,000007200002986,FOOTASYLUM PLC,5691,Clothing uniforms and laundry,202.96,0.00,202.96
Children and Young Peoples Services,Head of Early Help Inclusion & Vulnerable Children.,085965,Barnard,Supplies and Services,328041,Clothing uniforms and laundry E328,02-Jun-2020,000007200002990,FOOTASYLUM PLC,5691,Clothing uniforms and laundry,49.98,0.00,49.98
Children and Young Peoples Services,Head of Early Help Inclusion & Vulnerable Children.,085957,Secure Management,Supplies and Services,384999,Miscellaneous Expenses,02-Jun-2020,000007200002992,HH SUPPLIES UK,8099,Other expenses,121.96,0.00,121.96
Children and Young Peoples Services,Head of Early Help Inclusion & Vulnerable Children.,085954,Walworth,Supplies and Services,328041,Clothing uniforms and laundry E328,02-Jun-2020,000007200002994,SPORTSDIRECT.COM,5941,Clothing uniforms and laundry,14.49,0.00,14.49
Children and Young Peoples Services,Head of Early Help Inclusion & Vulnerable Children.,085954,Walworth,Supplies and Services,328041,Clothing uniforms and laundry E328,02-Jun-2020,000007200002996,SPORTSDIRECT.COM,5941,Clothing uniforms and laundry,14.49,0.00,14.49
Resources BK0010,Business Support,052986,CYPS - Locality and Operational Support,Supplies and Services,304259,Equipment and Materials,02-Jun-2020,000007200003000,CURRYS ONLINE,5732,Equipment-purchase and rental,89.99,0.00,89.99
Resources BK0010,Business Support,052986,CYPS - Locality and Operational Support,Supplies and Services,328041,Clothing uniforms and laundry E328,02-Jun-2020,000007200003002,ARGOS LTD,5310,Clothing uniforms and laundry,161.00,0.00,161.00
Children and Young Peoples Services,Head of Childrens Social Care,085352,Tow Law CU,Supplies and Services,384999,Miscellaneous Expenses,02-Jun-2020,000007200003022,Amazon.co.uk H46LT6DF5,5969,Other expenses,99.99,16.67,83.32
Children and Young Peoples Services,Head of Childrens Social Care,085342,16 Hickstead Rise (previously 9 Cedar Ave),Supplies and Services,324117,Provisions E324,02-Jun-2020,000007200003026,TESCO STORES 2916,5411,Catering costs - provisions,166.09,0.00,166.09
Children and Young Peoples Services,Head of Education and Skills,071802,Louisa Cent Nursery,Supplies and Services,324117,Provisions E324,02-Jun-2020,000007200003028,ASDA SUPERSTORE,5411,Catering costs - provisions,92.56,0.00,92.56
Children and Young Peoples Services,Head of Early Help Inclusion & Vulnerable Children.,088100,Durham West & CLS 0-19 Targeted Family Support,Supplies and Services,304403,Equipment and Materials,02-Jun-2020,000007200003032,FIRSTAID4LESS.CO.UK,5999,Other consumables,198.00,0.00,198.00
Children and Young Peoples Services,Head of Childrens Social Care,085332,Middlestone Moor CU,Supplies and Services,348037,Subsistence E348,02-Jun-2020,000007200003044,MCDONALD`S,5812,Subsistence,18.69,0.00,18.69
Children and Young Peoples Services,Head of Early Help Inclusion & Vulnerable Children.,088107,Ferryhill & Newton Aycliffe 0-19 Community Family Hub,Supplies and Services,324117,Provisions E324,02-Jun-2020,000007200003046,ALDI 59 774,5411,Catering costs - provisions,223.50,0.00,223.50
Resources BK0010,Internal Audit and Insurance,065104,Internal Audit 065104,Supplies and Services,304403,Equipment and Materials,02-Jun-2020,000007200003080,PAYPAL CASEWAREIDA,7372,Other consumables,210.81,0.00,210.81
Adult and Health Services,Head of Adults,055309,Peterlee Pathways,Supplies and Services,324117,Provisions E324,02-Jun-2020,000007200003146,CO-OP GROUP 800402,5411,Catering costs - provisions,2.00,0.00,2.00
Children and Young Peoples Services,Head of Education and Skills,070169,Durham SSP,Supplies and Services,384199,Miscellaneous Expenses,02-Jun-2020,000007202365520,ZOOM.GBP,5968,Other hired and contracted services,14.39,2.40,11.99
Children and Young Peoples Services,Head of Childrens Social Care,085342,16 Hickstead Rise (previously 9 Cedar Ave),Supplies and Services,328041,Clothing uniforms and laundry E328,02-Jun-2020,000007204786912,NEW LOOK INTERNET,5621,Clothing uniforms and laundry,140.88,0.00,140.88
"Regeneration, Economy and Growth",Corporate Property and Land,011003,County Hall Durham,Supplies and Services,328041,Clothing uniforms and laundry E328,02-Jun-2020,000007204787050,REGENCY DESIGN&PRI,7333,Clothing uniforms and laundry,"5,670.00",945.00,4725.00
Children and Young Peoples Services,Head of Early Help Inclusion & Vulnerable Children.,085965,Barnard,Supplies and Services,328041,Clothing uniforms and laundry E328,02-Jun-2020,000007204787138,HOUSEOFFRASER.CO.UK,5311,Clothing uniforms and laundry,51.48,0.00,51.48
Children and Young Peoples Services,Head of Childrens Social Care,085342,16 Hickstead Rise (previously 9 Cedar Ave),Supplies and Services,304999,Equipment and Materials,02-Jun-2020,000009091922571,SAVERS HEALTH & BEAUTY,5912,Misc equipment tools and materials,15.78,0.00,15.78
Children and Young Peoples Services,Head of Childrens Social Care,085341,High Etherley Satelite Home,Supplies and Services,324117,Provisions E324,03-Jun-2020,000007202364532,TESCO STORES 6329,5411,Catering costs - provisions,14.61,0.00,14.61
Children and Young Peoples Services,Head of Education and Skills,071801,Selby Cottage Childcare Centre,Supplies and Services,304403,Equipment and Materials,03-Jun-2020,000007202364546,AMZNMktplace,5999,Other consumables,44.97,7.50,37.47
Resources BK0010,Business Support,065461,Business Support 065461,Supplies and Services,304999,Equipment and Materials,03-Jun-2020,000007202364560,WEB NETWORKSOLUTIONS,5968,Misc equipment tools and materials,38.31,0.00,38.31
Dedicated Schools Grant BG0015,DSG High Needs Block,079050,SENSS-Sensory,Supplies and Services,320073,Livestock,03-Jun-2020,000007202364614,AMZNMktplace,5999,Rural science unit-purchases,3.15,0.00,3.15
Children and Young Peoples Services,Head of Childrens Social Care,085624,Families First Crook,Supplies and Services,364301,Grants to Voluntary Organisations,03-Jun-2020,000007202364706,BUYITDIRECT CO UK,5734,Hardship,159.96,26.66,133.30
Children and Young Peoples Services,Head of Early Help Inclusion & Vulnerable Children.,088105,BA/BC/Crook 0-19 Community Family Hub,Supplies and Services,304259,Equipment and Materials,03-Jun-2020,000007202364710,774 026,5411,Equipment-purchase and rental,229.00,0.00,229.00
Children and Young Peoples Services,Head of Childrens Social Care,085380,Operations Manager LAC Resources,Supplies and Services,304403,Equipment and Materials,03-Jun-2020,000007202364726,AMZNMKTPLACE AMAZON.CO,5999,Other consumables,139.99,23.33,116.66
Children and Young Peoples Services,Head of Childrens Social Care,085332,Middlestone Moor CU,Supplies and Services,304999,Equipment and Materials,03-Jun-2020,000007202364742,HOME BARGAINS,5251,Misc equipment tools and materials,29.89,0.00,29.89
Children and Young Peoples Services,Head of Childrens Social Care,085334,West Rainton Satelite Home,Supplies and Services,304403,Equipment and Materials,03-Jun-2020,000007202364814,AMZNMktplace,5999,Other consumables,19.99,0.00,19.99
"Regeneration, Economy and Growth",Development and Housing,031500,Housing Solutions - Core Team,Supplies and Services,352001,Conference Expenses,03-Jun-2020,000007202364940,AYCLIFFE BIZ,7011,Conferencesseminars fees etc,342.00,0.00,342.00
"Regeneration, Economy and Growth",Development and Housing,031500,Housing Solutions - Core Team,Supplies and Services,352001,Conference Expenses,03-Jun-2020,000007202364944,TOAST LETTINGS,7011,Conferencesseminars fees etc,400.00,0.00,400.00
"Regeneration, Economy and Growth",Development and Housing,031500,Housing Solutions - Core Team,Supplies and Services,352001,Conference Expenses,03-Jun-2020,000007202364950,HI NEWCASTLE WASHI,7011,Conferencesseminars fees etc,200.00,0.00,200.00
"Regeneration, Economy and Growth",Development and Housing,031500,Housing Solutions - Core Team,Supplies and Services,352001,Conference Expenses,03-Jun-2020,000007202364954,HI NEWCASTLE WASHI,7011,Conferencesseminars fees etc,385.00,0.00,385.00
"Regeneration, Economy and Growth",Development and Housing,031500,Housing Solutions - Core Team,Supplies and Services,352001,Conference Expenses,03-Jun-2020,000007202364960,HI NEWCASTLE WASHI,7011,Conferencesseminars fees etc,380.00,0.00,380.00
Children and Young Peoples Services,Head of Childrens Social Care,085334,West Rainton Satelite Home,Supplies and Services,304403,Equipment and Materials,03-Jun-2020,000007202364978,AMZNMktplace,5999,Other consumables,30.94,0.00,30.94
Children and Young Peoples Services,Head of Early Help Inclusion & Vulnerable Children.,071445,Chester le Street One Point Hub,Supplies and Services,324117,Provisions E324,03-Jun-2020,000007202364984,ANGEL SPRINGS LTD,5811,Catering costs - provisions,159.78,26.63,133.15
Resources BK0010,Business Support,052986,CYPS - Locality and Operational Support,Supplies and Services,304259,Equipment and Materials,03-Jun-2020,000007202365008,HARTLEPOOL BC,9399,Equipment-purchase and rental,11.00,0.00,11.00
Resources BK0010,Business Support,052986,CYPS - Locality and Operational Support,Supplies and Services,304259,Equipment and Materials,03-Jun-2020,000007202365012,MIDDLESBROUGH COUNCIL,9399,Equipment-purchase and rental,11.00,0.00,11.00
Resources BK0010,Business Support,052986,CYPS - Locality and Operational Support,Employees,040149,Recruitment Instruction and Training,03-Jun-2020,000007202365016,WESTSUSSEX.GOV.UK,8220,Training-all costs,11.00,0.00,11.00
Resources BK0010,People & Talent Management,010984,Training and Development,Employees,040149,Recruitment Instruction and Training,03-Jun-2020,000007202365048,PAYPAL NPORS LTD,8699,Training-all costs,24.00,4.00,20.00
"Regeneration, Economy and Growth",Development and Housing,031576,B& B - Temp Accom,Supplies and Services,364320,Grants to Voluntary Organisations,03-Jun-2020,000007202365068,BUDGET H EXPRESS HOTEL,7011,Accommodation assistance,100.00,0.00,100.00
"Regeneration, Economy and Growth",Development and Housing,031576,B& B - Temp Accom,Supplies and Services,364320,Grants to Voluntary Organisations,03-Jun-2020,000007202365074,BUDGET H EXPRESS HOTEL,7011,Accommodation assistance,267.00,0.00,267.00
Children and Young Peoples Services,Head of Childrens Social Care,085551,Short Break Services-Park Hse Sher,Supplies and Services,324117,Provisions E324,03-Jun-2020,000007202365126,ASDA STORES,5411,Catering costs - provisions,23.00,0.00,23.00
Resources BK0010,Business Support,052986,CYPS - Locality and Operational Support,Supplies and Services,304403,Equipment and Materials,03-Jun-2020,000007202365132,AMZNMKTPLACE AMAZON.CO,5999,Other consumables,10.50,1.75,8.75
"Regeneration, Economy and Growth",Development and Housing,031500,Housing Solutions - Core Team,Supplies and Services,352001,Conference Expenses,03-Jun-2020,000007202365156,GRAINGER HOTEL,7011,Conferencesseminars fees etc,100.00,16.67,83.33
Children and Young Peoples Services,Head of Education and Skills,071802,Louisa Cent Nursery,Supplies and Services,324117,Provisions E324,03-Jun-2020,000007202365184,ALDI STORES,5411,Catering costs - provisions,1.50,0.25,1.25
Children and Young Peoples Services,Head of Education and Skills,071802,Louisa Cent Nursery,Supplies and Services,324117,Provisions E324,03-Jun-2020,000007202365184 - 1,ALDI STORES,5411,Catering costs - provisions,11.84,,11.84
Children and Young Peoples Services,Head of Childrens Social Care,085333,Coxhoe Satelite Home,Supplies and Services,324117,Provisions E324,03-Jun-2020,000007202365208,TESCO STORES 2371,5411,Catering costs - provisions,210.57,0.00,210.57
"Regeneration, Economy and Growth",Development and Housing,031576,B& B - Temp Accom,Supplies and Services,364320,Grants to Voluntary Organisations,03-Jun-2020,000007202365230,GRAINGER APARTMENTS NE,7011,Accommodation assistance,100.00,16.67,83.33
"Regeneration, Economy and Growth",Development and Housing,031576,B& B - Temp Accom,Supplies and Services,364320,Grants to Voluntary Organisations,03-Jun-2020,000007202365234,HI NEWCASTLE WASHI,7011,Accommodation assistance,210.00,0.00,210.00
"Regeneration, Economy and Growth",Development and Housing,031576,B& B - Temp Accom,Supplies and Services,364320,Grants to Voluntary Organisations,03-Jun-2020,000007202365236,HI NEWCASTLE WASHI,7011,Accommodation assistance,105.00,0.00,105.00
"Regeneration, Economy and Growth",Development and Housing,031576,B& B - Temp Accom,Supplies and Services,364320,Grants to Voluntary Organisations,03-Jun-2020,000007202365242,HI NEWCASTLE WASHI,7011,Accommodation assistance,105.00,0.00,105.00
Adult and Health Services,Head of Adults,055643,Hawthorn House LD Respite Unit,Supplies and Services,324117,Provisions E324,03-Jun-2020,000007202365250,HOPWELLS LTD,5811,Catering costs - provisions,2.22,0.37,1.85
Adult and Health Services,Head of Adults,055643,Hawthorn House LD Respite Unit,Supplies and Services,324117,Provisions E324,03-Jun-2020,000007202365250 - 1,HOPWELLS LTD,5811,Catering costs - provisions,59.36,,59.36
Adult and Health Services,Head of Adults,055643,Hawthorn House LD Respite Unit,Supplies and Services,324117,Provisions E324,03-Jun-2020,000007202365254,JR HOLLAND FOODSERVICE,5499,Catering costs - provisions,6.00,0.00,6.00
Children and Young Peoples Services,Head of Education and Skills,078100,Curric and Professional Development 078100,Employees,040149,Recruitment Instruction and Training,03-Jun-2020,000007202365274,PSHE ASSOCIATION,8398,Training-all costs,50.00,0.00,50.00
Neighbourhoods and Climate Change,Environmental Services,010301,C&G - North Grounds Maintenance,Third Party Payments,430100,Rendered by Private Contractors,03-Jun-2020,000007202365308,JOHN WARREN (ANIMAL BY,7399,Payments to sub-contractors,12.00,0.00,12.00
Resources BK0010,Digital and Customer Services,065335,School Services - Implementations,Supplies and Services,304639,Equipment and Materials,03-Jun-2020,000007202365322,WWW.AVPARTMASTER.NET,7622,Technicians-supplies,152.29,25.38,126.91
Children and Young Peoples Services,Head of Childrens Social Care,085342,16 Hickstead Rise (previously 9 Cedar Ave),Supplies and Services,304403,Equipment and Materials,03-Jun-2020,000007202365326,SumUp Lulabelles,5999,Other consumables,21.00,0.00,21.00
Children and Young Peoples Services,Head of Childrens Social Care,085334,West Rainton Satelite Home,Supplies and Services,304403,Equipment and Materials,03-Jun-2020,000007202365334,TIMPSON LTD,5999,Other consumables,8.50,0.00,8.50
Children and Young Peoples Services,Head of Childrens Social Care,085334,West Rainton Satelite Home,Supplies and Services,324117,Provisions E324,03-Jun-2020,000007202365340,B&M 010 - MACINTYRE,5399,Catering costs - provisions,6.86,0.00,6.86
Children and Young Peoples Services,Head of Childrens Social Care,085334,West Rainton Satelite Home,Supplies and Services,304999,Equipment and Materials,03-Jun-2020,000007202365344,HOME BARGAINS,5251,Misc equipment tools and materials,8.98,0.00,8.98
Children and Young Peoples Services,Head of Childrens Social Care,085334,West Rainton Satelite Home,Supplies and Services,304999,Equipment and Materials,03-Jun-2020,000007202365350,HOME BARGAINS,5251,Misc equipment tools and materials,40.90,0.00,40.90
Children and Young Peoples Services,Head of Childrens Social Care,085334,West Rainton Satelite Home,Supplies and Services,304999,Equipment and Materials,03-Jun-2020,000007202365354,HOME BARGAINS,5251,Misc equipment tools and materials,4.48,0.00,4.48
Children and Young Peoples Services,Head of Early Help Inclusion & Vulnerable Children.,085957,Secure Management,Supplies and Services,304403,Equipment and Materials,03-Jun-2020,000007202365362,AMZNMktplace,5999,Other consumables,7.99,0.00,7.99
Children and Young Peoples Services,Head of Early Help Inclusion & Vulnerable Children.,085957,Secure Management,Supplies and Services,304245,Equipment and Materials,03-Jun-2020,000007202365370,UKSEALANTS.CO.UK,5231,Materials,57.50,9.58,47.92
Children and Young Peoples Services,Head of Early Help Inclusion & Vulnerable Children.,085957,Secure Management,Supplies and Services,304221,Equipment and Materials,03-Jun-2020,000007202365374,SCREWFIX DIRECT,5200,Direct materials,71.41,11.90,59.51
Resources BK0010,Business Support,052986,CYPS - Locality and Operational Support,Supplies and Services,338048,Services,03-Jun-2020,000007202365388,MARSTON GROUP LIMITED,9222,Court costs 338048,175.00,0.00,175.00
Resources BK0010,Business Support,052986,CYPS - Locality and Operational Support,Supplies and Services,308011,Furniture,03-Jun-2020,000007202365392,FRANKS THE FLOORING ST,5713,Furniture repair and replacement,350.00,0.00,350.00
Adult and Health Services,Head of Adults,055301,Stanley Pathways,Supplies and Services,324117,Provisions E324,03-Jun-2020,000007202365418,LIDL GB DURHAM,5411,Catering costs - provisions,14.13,0.00,14.13
"Regeneration, Economy and Growth",Development and Housing,031576,B& B - Temp Accom,Supplies and Services,352001,Conference Expenses,03-Jun-2020,000007202365438,BUDGET H EXPRESS HOTEL,7011,Conferencesseminars fees etc,267.00,0.00,267.00
"Regeneration, Economy and Growth",Development and Housing,031576,B& B - Temp Accom,Supplies and Services,352001,Conference Expenses,03-Jun-2020,000007202365444,BUDGET H EXPRESS HOTEL,7011,Conferencesseminars fees etc,178.00,0.00,178.00
"Regeneration, Economy and Growth",Development and Housing,031576,B& B - Temp Accom,Supplies and Services,352001,Conference Expenses,03-Jun-2020,000007202365448,BUDGET H EXPRESS HOTEL,7011,Conferencesseminars fees etc,267.00,0.00,267.00
"Regeneration, Economy and Growth",Development and Housing,031576,B& B - Temp Accom,Supplies and Services,352001,Conference Expenses,03-Jun-2020,000007202365450,BUDGET H EXPRESS HOTEL,7011,Conferencesseminars fees etc,89.00,0.00,89.00
"Regeneration, Economy and Growth",Development and Housing,031576,B& B - Temp Accom,Supplies and Services,352001,Conference Expenses,03-Jun-2020,000007202365454,BUDGET H EXPRESS HOTEL,7011,Conferencesseminars fees etc,500.00,0.00,500.00
"Regeneration, Economy and Growth",Development and Housing,031576,B& B - Temp Accom,Supplies and Services,352001,Conference Expenses,03-Jun-2020,000007202365464,BUDGET H EXPRESS HOTEL,7011,Conferencesseminars fees etc,267.00,0.00,267.00
"Regeneration, Economy and Growth",Development and Housing,031576,B& B - Temp Accom,Supplies and Services,352001,Conference Expenses,03-Jun-2020,000007202365468,BUDGET H EXPRESS HOTEL,7011,Conferencesseminars fees etc,123.00,0.00,123.00
"Regeneration, Economy and Growth",Development and Housing,031576,B& B - Temp Accom,Supplies and Services,352001,Conference Expenses,03-Jun-2020,000007202365472,HI NEWCASTLE WASHI,7011,Conferencesseminars fees etc,300.00,0.00,300.00
Children and Young Peoples Services,Head of Childrens Social Care,085333,Coxhoe Satelite Home,Supplies and Services,324117,Provisions E324,03-Jun-2020,000007202365480,CO-OP GROUP 310016,5411,Catering costs - provisions,6.72,0.00,6.72
Children and Young Peoples Services,Head of Early Help Inclusion & Vulnerable Children.,071445,Chester le Street One Point Hub,Supplies and Services,304221,Equipment and Materials,03-Jun-2020,000007202365532,SCREWFIX DIRECT,5200,Direct materials,39.98,0.00,39.98
Adult and Health Services,Head of Adults,055309,Peterlee Pathways,Supplies and Services,324117,Provisions E324,03-Jun-2020,000007202365628,LIDL GB PETERLEE,5411,Catering costs - provisions,1.53,0.00,1.53
Resources BK0010,Business Support,052986,CYPS - Locality and Operational Support,Supplies and Services,352001,Conference Expenses,03-Jun-2020,000007204787144,TVLICENSING.CO.UK,7392,Conferencesseminars fees etc,157.50,0.00,157.50
Resources BK0010,Business Support,065461,Business Support 065461,Supplies and Services,304999,Equipment and Materials,04-Jun-2020,000007202364564,WEB NETWORKSOLUTIONS,5968,Misc equipment tools and materials,1.05,0.00,1.05
Dedicated Schools Grant BG0015,DSG High Needs Block,079050,SENSS-Sensory,Supplies and Services,312075,Newspapers books and periodicals E312,04-Jun-2020,000007202364620,AMZNMktplace,5999,Text books,3.76,0.00,3.76
Children and Young Peoples Services,Head of Childrens Social Care,085332,Middlestone Moor CU,Supplies and Services,324117,Provisions E324,04-Jun-2020,000007202364664,TESCO STORES 2371,5411,Catering costs - provisions,149.63,0.00,149.63
Children and Young Peoples Services,Head of Early Help Inclusion & Vulnerable Children.,085965,Barnard,Supplies and Services,384999,Miscellaneous Expenses,04-Jun-2020,000007202365378,Amazon.co.uk AX7LE84W5,5969,Other expenses,9.49,1.58,7.91
"Regeneration, Economy and Growth",Business Durham CL0850,030689,Inward Investment and Aftercare,Supplies and Services,342033,Computers and Communications,04-Jun-2020,000007204786796,STK Shutterstock,7333,Computer hardware,19.00,0.00,19.00
"Regeneration, Economy and Growth",Business Durham CL0850,030689,Inward Investment and Aftercare,Supplies and Services,342222,Computers and Communications,04-Jun-2020,000007204786800,FASTHOSTS INTERNET,4816,Comp hardware purch-network servers,6.34,0.00,6.34
Children and Young Peoples Services,Head of Childrens Social Care,085341,High Etherley Satelite Home,Supplies and Services,324117,Provisions E324,04-Jun-2020,000007204786806,TESCO STORES 6329,5411,Catering costs - provisions,61.09,0.00,61.09
Children and Young Peoples Services,Head of Childrens Social Care,085341,High Etherley Satelite Home,Supplies and Services,324117,Provisions E324,04-Jun-2020,000007204786810,TESCO STORES 6329,5411,Catering costs - provisions,10.00,0.00,10.00
Children and Young Peoples Services,Head of Childrens Social Care,085341,High Etherley Satelite Home,Supplies and Services,324117,Provisions E324,04-Jun-2020,000007204786812,TESCO STORES 6329,5411,Catering costs - provisions,0.58,0.00,0.58
"Regeneration, Economy and Growth",Development and Housing,031576,B& B - Temp Accom,Supplies and Services,352001,Conference Expenses,04-Jun-2020,000007204786816,GRAINGER APARTMENTS NE,7011,Conferencesseminars fees etc,100.00,16.67,83.33
Resources BK0010,Business Support,065461,Business Support 065461,Supplies and Services,304999,Equipment and Materials,04-Jun-2020,000007204786820,FS TechSmith,5817,Misc equipment tools and materials,12.11,0.00,12.11
Resources BK0010,Business Support,065461,Business Support 065461,Supplies and Services,304403,Equipment and Materials,04-Jun-2020,000007204786822,AMZNMktplace,5999,Other consumables,98.89,0.00,98.89
Neighbourhoods and Climate Change,Environmental Services,010383,C&G - South Street Cleansing,Supplies and Services,304221,Equipment and Materials,04-Jun-2020,000007204786828,TRAVIS PERKINS,5211,Direct materials,54.47,9.08,45.39
Dedicated Schools Grant BG0015,DSG High Needs Block,079050,SENSS-Sensory,Supplies and Services,312075,Newspapers books and periodicals E312,04-Jun-2020,000007204786842,AMZNMktplace,5999,Text books,3.49,0.00,3.49
Dedicated Schools Grant BG0015,DSG High Needs Block,079050,SENSS-Sensory,Supplies and Services,312075,Newspapers books and periodicals E312,04-Jun-2020,000007204786844,AMZNMktplace,5999,Text books,3.49,0.00,3.49
Dedicated Schools Grant BG0015,DSG High Needs Block,079050,SENSS-Sensory,Supplies and Services,312075,Newspapers books and periodicals E312,04-Jun-2020,000007204786846,AMZNMktplace,5999,Text books,8.57,0.00,8.57
Children and Young Peoples Services,Head of Childrens Social Care,085341,High Etherley Satelite Home,Supplies and Services,348037,Subsistence E348,04-Jun-2020,000007204786856,MCDONALDS,5812,Subsistence,7.01,0.00,7.01
Children and Young Peoples Services,Head of Childrens Social Care,085352,Tow Law CU,Supplies and Services,324117,Provisions E324,04-Jun-2020,000007204786860,CO-OP GROUP 010989,5411,Catering costs - provisions,8.15,0.00,8.15
Children and Young Peoples Services,Head of Childrens Social Care,085332,Middlestone Moor CU,Supplies and Services,304999,Equipment and Materials,04-Jun-2020,000007204786874,HOME BARGAINS,5251,Misc equipment tools and materials,23.16,0.00,23.16
Children and Young Peoples Services,COVID19 - Children and Young Peoples Services,091002,COVID19 - Children and Young Peoples Services,Supplies and Services,324117,Provisions E324,04-Jun-2020,000007204786892,TESCO STORES 2916,5411,Catering costs - provisions,45.00,0.00,45.00
Children and Young Peoples Services,Head of Early Help Inclusion & Vulnerable Children.,085957,Secure Management,Employees,040029,Recruitment Instruction and Training,04-Jun-2020,000007204786894,ASDA GROCERIES ONLINE,5411,Interview expenses,123.93,0.00,123.93
Children and Young Peoples Services,Head of Early Help Inclusion & Vulnerable Children.,085956,Lumley,Supplies and Services,328041,Clothing uniforms and laundry E328,04-Jun-2020,000007204786896,PRETTYLITTLETHING.COM,5691,Clothing uniforms and laundry,-22.00,0.00,-22.00
Children and Young Peoples Services,Head of Childrens Social Care,085352,Tow Law CU,Supplies and Services,384999,Miscellaneous Expenses,04-Jun-2020,000007204786910,Amazon.co.uk 8R2QK8B75,5969,Other expenses,17.49,2.92,14.57
Children and Young Peoples Services,Head of Childrens Social Care,085334,West Rainton Satelite Home,Supplies and Services,328041,Clothing uniforms and laundry E328,04-Jun-2020,000007204786966,The Range,5311,Clothing uniforms and laundry,7.49,0.00,7.49
"Regeneration, Economy and Growth",Development and Housing,031500,Housing Solutions - Core Team,Supplies and Services,352001,Conference Expenses,04-Jun-2020,000007204786968,GRAINGER HOTEL,7011,Conferencesseminars fees etc,450.00,0.00,450.00
"Regeneration, Economy and Growth",Development and Housing,031500,Housing Solutions - Core Team,Supplies and Services,352001,Conference Expenses,04-Jun-2020,000007204786970,GRAINGER HOTEL,7011,Conferencesseminars fees etc,400.00,0.00,400.00
"Regeneration, Economy and Growth",Development and Housing,031500,Housing Solutions - Core Team,Supplies and Services,352001,Conference Expenses,04-Jun-2020,000007204786982,HI NEWCASTLE WASHI,7011,Conferencesseminars fees etc,260.00,0.00,260.00
Children and Young Peoples Services,Head of Childrens Social Care,085334,West Rainton Satelite Home,Transport,215995,Running Costs of Vehicles,04-Jun-2020,000007204786988,BELLS HILL SERVICE,5541,Vehicle running expenses,6.00,0.00,6.00
"Regeneration, Economy and Growth",Development and Housing,031576,B& B - Temp Accom,Supplies and Services,364320,Grants to Voluntary Organisations,04-Jun-2020,000007204787010,BUDGET H EXPRESS HOTEL,7011,Accommodation assistance,500.00,0.00,500.00
"Regeneration, Economy and Growth",Development and Housing,031576,B& B - Temp Accom,Supplies and Services,364320,Grants to Voluntary Organisations,04-Jun-2020,000007204787012,BUDGET H EXPRESS HOTEL,7011,Accommodation assistance,500.00,0.00,500.00
"Regeneration, Economy and Growth",Development and Housing,031576,B& B - Temp Accom,Supplies and Services,364320,Grants to Voluntary Organisations,04-Jun-2020,000007204787014,BUDGET H EXPRESS HOTEL,7011,Accommodation assistance,500.00,0.00,500.00
"Regeneration, Economy and Growth",Development and Housing,031576,B& B - Temp Accom,Supplies and Services,364320,Grants to Voluntary Organisations,04-Jun-2020,000007204787016,BUDGET H EXPRESS HOTEL,7011,Accommodation assistance,102.00,0.00,102.00
Children and Young Peoples Services,Head of Childrens Social Care,085331,New Lea Childrens Home,Supplies and Services,328041,Clothing uniforms and laundry E328,04-Jun-2020,000007204787018,ARGOS LTD,5310,Clothing uniforms and laundry,149.99,0.00,149.99
"Regeneration, Economy and Growth",Development and Housing,031576,B& B - Temp Accom,Supplies and Services,364320,Grants to Voluntary Organisations,04-Jun-2020,000007204787028,BUDGET H EXPRESS HOTEL,7011,Accommodation assistance,89.00,14.83,74.17
"Regeneration, Economy and Growth",Development and Housing,031576,B& B - Temp Accom,Supplies and Services,364320,Grants to Voluntary Organisations,04-Jun-2020,000007204787030,HI NEWCASTLE WASHI,7011,Accommodation assistance,525.00,0.00,525.00
"Regeneration, Economy and Growth",Development and Housing,031576,B& B - Temp Accom,Supplies and Services,364320,Grants to Voluntary Organisations,04-Jun-2020,000007204787032,HI NEWCASTLE WASHI,7011,Accommodation assistance,455.00,0.00,455.00
Children and Young Peoples Services,Head of Childrens Social Care,085626,Families First Shildon/Chilton,Supplies and Services,364301,Grants to Voluntary Organisations,04-Jun-2020,000007204787054,WF WAYFAIR 3109478374,5712,Hardship,137.98,0.00,137.98
Resources BK0010,Business Support,052986,CYPS - Locality and Operational Support,Supplies and Services,324117,Provisions E324,04-Jun-2020,000007204787056,ASDA STORES,5411,Catering costs - provisions,14.00,0.00,14.00
"Regeneration, Economy and Growth",Development and Housing,031500,Housing Solutions - Core Team,Supplies and Services,352001,Conference Expenses,04-Jun-2020,000007204787064,GRAINGER HOTEL,7011,Conferencesseminars fees etc,100.00,16.67,83.33
Children and Young Peoples Services,Head of Childrens Social Care,085342,16 Hickstead Rise (previously 9 Cedar Ave),Supplies and Services,340001,Postages E340,04-Jun-2020,000007204787086,THE POST OFFICE,9402,Postages,0.88,0.00,0.88
Children and Young Peoples Services,Head of Childrens Social Care,085342,16 Hickstead Rise (previously 9 Cedar Ave),Supplies and Services,324117,Provisions E324,04-Jun-2020,000007204787090,TESCO STORES 2916,5411,Catering costs - provisions,54.87,0.00,54.87
Children and Young Peoples Services,Head of Childrens Social Care,085342,16 Hickstead Rise (previously 9 Cedar Ave),Supplies and Services,384999,Miscellaneous Expenses,04-Jun-2020,000007204787092,HIGHSTREET VOUCHERS,8641,Other expenses,20.00,0.00,20.00
"Regeneration, Economy and Growth",Development and Housing,031576,B& B - Temp Accom,Supplies and Services,364320,Grants to Voluntary Organisations,04-Jun-2020,000007204787098,BUDGET H EXPRESS HOTEL,7011,Accommodation assistance,356.00,59.33,296.67
"Regeneration, Economy and Growth",Development and Housing,031576,B& B - Temp Accom,Supplies and Services,364320,Grants to Voluntary Organisations,04-Jun-2020,000007204787100,BUDGET H EXPRESS HOTEL,7011,Accommodation assistance,356.00,59.33,296.67
"Regeneration, Economy and Growth",Development and Housing,031576,B& B - Temp Accom,Supplies and Services,364320,Grants to Voluntary Organisations,04-Jun-2020,000007204787102,BUDGET H EXPRESS HOTEL,7011,Accommodation assistance,356.00,59.33,296.67
"Regeneration, Economy and Growth",Development and Housing,031576,B& B - Temp Accom,Supplies and Services,364320,Grants to Voluntary Organisations,04-Jun-2020,000007204787104,BUDGET H EXPRESS HOTEL,7011,Accommodation assistance,200.00,33.33,166.67
"Regeneration, Economy and Growth",Development and Housing,031576,B& B - Temp Accom,Supplies and Services,364320,Grants to Voluntary Organisations,04-Jun-2020,000007204787106,BUDGET H EXPRESS HOTEL,7011,Accommodation assistance,89.00,14.83,74.17
Neighbourhoods and Climate Change,Environmental Services,031200,North Pennines Core,Supplies and Services,304999,Equipment and Materials,04-Jun-2020,000007204787108,123 REG LTD,5968,Misc equipment tools and materials,28.78,4.80,23.98
Children and Young Peoples Services,Head of Early Help Inclusion & Vulnerable Children.,088102,Consett & Stanley 0-19 Targeted Family Support,Transport,230031,Contract Hire,04-Jun-2020,000007204787118,STANLEY TRAVEL (NORTH,4121,Pupils-transport to play fields etc,222.00,0.00,222.00
Children and Young Peoples Services,Head of Early Help Inclusion & Vulnerable Children.,071492,One Point - Central,Supplies and Services,304403,Equipment and Materials,04-Jun-2020,000007204787120,Amazon.co.uk GA42M9L35,5969,Other consumables,79.92,13.32,66.60
Children and Young Peoples Services,Head of Early Help Inclusion & Vulnerable Children.,071492,One Point - Central,Supplies and Services,304403,Equipment and Materials,04-Jun-2020,000007204787120 - 1,Amazon.co.uk GA42M9L35,5969,Other consumables,0.04,,0.04
Children and Young Peoples Services,Head of Childrens Social Care,085334,West Rainton Satelite Home,Supplies and Services,324117,Provisions E324,04-Jun-2020,000007204787130,ALDI 12 774,5411,Catering costs - provisions,27.75,0.00,27.75
Children and Young Peoples Services,Head of Childrens Social Care,085334,West Rainton Satelite Home,Supplies and Services,324117,Provisions E324,04-Jun-2020,000007204787132,CO-OP GROUP 010486,5411,Catering costs - provisions,5.00,0.00,5.00
Children and Young Peoples Services,Head of Early Help Inclusion & Vulnerable Children.,085957,Secure Management,Supplies and Services,304403,Equipment and Materials,04-Jun-2020,000007204787136,PAYPAL ESPSPECIALB,5732,Other consumables,465.60,77.60,388.00
Children and Young Peoples Services,Head of Early Help Inclusion & Vulnerable Children.,085957,Secure Management,Supplies and Services,384999,Miscellaneous Expenses,04-Jun-2020,000007204787140,SINOPANGAEA,5946,Other expenses,-12.91,0.00,-12.91
Resources BK0010,Business Support,052986,CYPS - Locality and Operational Support,Employees,040149,Recruitment Instruction and Training,04-Jun-2020,000007204787146,CITIZENCARD,8699,Training-all costs,15.00,0.00,15.00
Neighbourhoods and Climate Change,Environmental Services,010301,C&G - North Grounds Maintenance,Supplies and Services,328041,Clothing uniforms and laundry E328,04-Jun-2020,000007204787148,THOMAS OWEN & SONS /N/,5611,Clothing uniforms and laundry,117.43,0.00,117.43
Children and Young Peoples Services,Head of Childrens Social Care,085352,Tow Law CU,Supplies and Services,348037,Subsistence E348,04-Jun-2020,000007204787158,MCDONALDS,5812,Subsistence,5.43,0.00,5.43
Children and Young Peoples Services,Head of Childrens Social Care,085352,Tow Law CU,Supplies and Services,304259,Equipment and Materials,04-Jun-2020,000007204787160,Durham County CNCL,9399,Equipment-purchase and rental,58.50,0.00,58.50
Children and Young Peoples Services,Head of Education and Skills,071802,Louisa Cent Nursery,Supplies and Services,324117,Provisions E324,04-Jun-2020,000007204787162,ASDA SUPERSTORE,5411,Catering costs - provisions,14.42,0.00,14.42
Children and Young Peoples Services,Head of Early Help Inclusion & Vulnerable Children.,088107,Ferryhill & Newton Aycliffe 0-19 Community Family Hub,Supplies and Services,384999,Miscellaneous Expenses,04-Jun-2020,000007204787180,Amazon.co.uk PX8O13O15,5969,Other expenses,35.64,0.00,35.64
Children and Young Peoples Services,Head of Childrens Social Care,085331,New Lea Childrens Home,Supplies and Services,304403,Equipment and Materials,04-Jun-2020,000009091922829,AMZNMKTPLACE AMAZON.CO,5999,Other consumables,24.98,0.00,24.98
Children and Young Peoples Services,Head of Early Help Inclusion & Vulnerable Children.,085957,Secure Management,Supplies and Services,304245,Equipment and Materials,04-Jun-2020,000009091923195,ZORO UK,5072,Materials,31.98,5.33,26.65
Children and Young Peoples Services,Head of Childrens Social Care,085352,Tow Law CU,Supplies and Services,308011,Furniture,04-Jun-2020,000009091923307,Dunelm,5712,Furniture repair and replacement,32.00,0.00,32.00
Children and Young Peoples Services,Head of Childrens Social Care,085341,High Etherley Satelite Home,Supplies and Services,324117,Provisions E324,05-Jun-2020,000007204786790,TESCO STORES 2371,5411,Catering costs - provisions,138.44,0.00,138.44
Dedicated Schools Grant BG0015,DSG High Needs Block,079050,SENSS-Sensory,Supplies and Services,312075,Newspapers books and periodicals E312,05-Jun-2020,000007204786848,AMZNMktplace,5999,Text books,2.64,0.00,2.64
Adult and Health Services,Head of Adults,055643,Hawthorn House LD Respite Unit,Supplies and Services,304403,Equipment and Materials,05-Jun-2020,000007204787078,AMZNMktplace,5999,Other consumables,5.99,0.00,5.99
Children and Young Peoples Services,Head of Childrens Social Care,085341,High Etherley Satelite Home,Supplies and Services,304403,Equipment and Materials,05-Jun-2020,000009091922177,AMZNMktplace,5999,Other consumables,15.97,0.00,15.97
Resources BK0010,Finance & Transactional Services,065180,Collections,Employees,040149,Recruitment Instruction and Training,05-Jun-2020,000009091922249,CHARTERED INSTITUTE OF,8244,Training-all costs,50.00,0.00,50.00
Children and Young Peoples Services,Head of Childrens Social Care,085380,Operations Manager LAC Resources,Supplies and Services,304403,Equipment and Materials,05-Jun-2020,000009091922365,AMZNMKTPLACE AMAZON.CO,5999,Other consumables,118.98,19.83,99.15
Children and Young Peoples Services,Head of Childrens Social Care,085380,Operations Manager LAC Resources,Supplies and Services,338048,Services,05-Jun-2020,000009091922371,NEWCASTLE CC,9222,Court costs 338048,170.00,0.00,170.00
Children and Young Peoples Services,Head of Childrens Social Care,085332,Middlestone Moor CU,Supplies and Services,304403,Equipment and Materials,05-Jun-2020,000009091922381,AMZNMKTPLACE AMAZON.CO,5999,Other consumables,79.94,0.00,79.94
Children and Young Peoples Services,Head of Childrens Social Care,085332,Middlestone Moor CU,Supplies and Services,328041,Clothing uniforms and laundry E328,05-Jun-2020,000009091922407,SP ISAWITFIRST.COM,5691,Clothing uniforms and laundry,16.00,0.00,16.00
Children and Young Peoples Services,Head of Childrens Social Care,085332,Middlestone Moor CU,Supplies and Services,324117,Provisions E324,05-Jun-2020,000009091922409,ASDA SUPERSTORE 4987,5411,Catering costs - provisions,1.50,0.00,1.50
Children and Young Peoples Services,Head of Childrens Social Care,085332,Middlestone Moor CU,Supplies and Services,324117,Provisions E324,05-Jun-2020,000009091922415,ASDA SUPERSTORE 4987,5411,Catering costs - provisions,25.25,0.00,25.25
Children and Young Peoples Services,Head of Childrens Social Care,085332,Middlestone Moor CU,Supplies and Services,328041,Clothing uniforms and laundry E328,05-Jun-2020,000009091922417,SP ISAWITFIRST.COM,5691,Clothing uniforms and laundry,19.00,0.00,19.00
Children and Young Peoples Services,Head of Childrens Social Care,085332,Middlestone Moor CU,Supplies and Services,304259,Equipment and Materials,05-Jun-2020,000009091922421,JD SPORTS INTERNET,5941,Equipment-purchase and rental,29.99,0.00,29.99
Children and Young Peoples Services,Head of Early Help Inclusion & Vulnerable Children.,085957,Secure Management,Supplies and Services,304259,Equipment and Materials,05-Jun-2020,000009091922455,SPORTSDIRECT.COM,5941,Equipment-purchase and rental,-31.50,0.00,-31.50
Children and Young Peoples Services,Head of Childrens Social Care,085361,LAC & Permanence Team 1,Supplies and Services,304259,Equipment and Materials,05-Jun-2020,000009091922487,WWW.BHCC-INTERNET,9399,Equipment-purchase and rental,11.00,0.00,11.00
Children and Young Peoples Services,Head of Early Help Inclusion & Vulnerable Children.,073998,TTF-Co-ordinator Grant,Transfer Payments,525033,Other,05-Jun-2020,000009091922509,WILKO.COM,5399,Grants to individuals,50.50,8.42,42.08
"Regeneration, Economy and Growth",Development and Housing,031500,Housing Solutions - Core Team,Supplies and Services,352001,Conference Expenses,05-Jun-2020,000009091922643,GRAINGER APARTMENTS NE,7011,Conferencesseminars fees etc,350.00,0.00,350.00
"Regeneration, Economy and Growth",Development and Housing,031500,Housing Solutions - Core Team,Supplies and Services,352001,Conference Expenses,05-Jun-2020,000009091922647,GRAINGER HOTEL,7011,Conferencesseminars fees etc,350.00,0.00,350.00
Children and Young Peoples Services,Head of Early Help Inclusion & Vulnerable Children.,085962,Aycliffe Secure - Durham,Supplies and Services,348037,Subsistence E348,05-Jun-2020,000009091922651,Just Eat,5814,Subsistence,113.85,0.00,113.85
Children and Young Peoples Services,Head of Early Help Inclusion & Vulnerable Children.,085962,Aycliffe Secure - Durham,Supplies and Services,348037,Subsistence E348,05-Jun-2020,000009091922657,Just Eat,5814,Subsistence,11.10,0.00,11.10
"Regeneration, Economy and Growth",Business Durham CL0850,030652,Derwentside Business Centre 030652,Supplies and Services,332047,Printing Stationery and Gen Off Exps,05-Jun-2020,000009091922725,EMERGE (NE) LTD,5943,Stationery,481.98,0.00,481.98
Children and Young Peoples Services,Head of Childrens Social Care,085334,West Rainton Satelite Home,Supplies and Services,304403,Equipment and Materials,05-Jun-2020,000009091922743,AMZNMktplace,5999,Other consumables,13.05,0.00,13.05
Neighbourhoods and Climate Change,Environmental Services,010367,C&G - South Grounds Maintenance,Supplies and Services,304999,Equipment and Materials,05-Jun-2020,000009091922763,LANDSCAPE SUPPLY COMPA,5251,Misc equipment tools and materials,274.80,0.00,274.80
"Regeneration, Economy and Growth",Culture Sport and Tourism,054815,Gala Theatre Stage School,Supplies and Services,304999,Equipment and Materials,05-Jun-2020,000009091922797,Amazon Prime,5968,Misc equipment tools and materials,-7.99,0.00,-7.99
"Regeneration, Economy and Growth",Development and Housing,031576,B& B - Temp Accom,Supplies and Services,364320,Grants to Voluntary Organisations,05-Jun-2020,000009091922819,HI NEWCASTLE WASHI,7011,Accommodation assistance,195.00,0.00,195.00
"Regeneration, Economy and Growth",Development and Housing,031576,B& B - Temp Accom,Supplies and Services,364320,Grants to Voluntary Organisations,05-Jun-2020,000009091922823,HI NEWCASTLE WASHI,7011,Accommodation assistance,-195.00,0.00,-195.00
"Regeneration, Economy and Growth",Development and Housing,031576,B& B - Temp Accom,Supplies and Services,364320,Grants to Voluntary Organisations,05-Jun-2020,000009091922843,BUDGET H EXPRESS HOTEL,7011,Accommodation assistance,534.00,89.00,445.00
Children and Young Peoples Services,Head of Childrens Social Care,085352,Tow Law CU,Supplies and Services,324117,Provisions E324,05-Jun-2020,000009091922873,NISA LOCAL,5411,Catering costs - provisions,17.97,0.00,17.97
Children and Young Peoples Services,Head of Childrens Social Care,085623,Families First Bishop Auckland,Supplies and Services,338045,Services,05-Jun-2020,000009091922907,WWW.DURHAM.GOV.UK,9399,Legal expenses 338045,11.00,0.00,11.00
Children and Young Peoples Services,Head of Childrens Social Care,085331,New Lea Childrens Home,Supplies and Services,304259,Equipment and Materials,05-Jun-2020,000009091922923,MUSIC MAGPIE,5732,Equipment-purchase and rental,229.99,0.00,229.99
"Regeneration, Economy and Growth",Development and Housing,031500,Housing Solutions - Core Team,Supplies and Services,352001,Conference Expenses,05-Jun-2020,000009091922943,GRAINGER HOTEL,7011,Conferencesseminars fees etc,350.00,58.33,291.67
Neighbourhoods and Climate Change,Environmental Services,010367,C&G - South Grounds Maintenance,Supplies and Services,304221,Equipment and Materials,05-Jun-2020,000009091922981,B & Q 1120,5200,Direct materials,31.50,0.00,31.50
Children and Young Peoples Services,Head of Education and Skills,071802,Louisa Cent Nursery,Supplies and Services,324117,Provisions E324,05-Jun-2020,000009091923007,ASDA SUPERSTORE,5411,Catering costs - provisions,3.00,0.00,3.00
Children and Young Peoples Services,Head of Childrens Social Care,085333,Coxhoe Satelite Home,Supplies and Services,304999,Equipment and Materials,05-Jun-2020,000009091923029,ADAPATABILITY,5912,Misc equipment tools and materials,16.42,0.00,16.42
Children and Young Peoples Services,Head of Childrens Social Care,085333,Coxhoe Satelite Home,Supplies and Services,324117,Provisions E324,05-Jun-2020,000009091923033,PPOINT_ COSTCUTTER 108,5411,Catering costs - provisions,4.68,0.78,3.90
Children and Young Peoples Services,Head of Childrens Social Care,085333,Coxhoe Satelite Home,Supplies and Services,324117,Provisions E324,05-Jun-2020,000009091923033 - 1,PPOINT_ COSTCUTTER 108,5411,Catering costs - provisions,4.30,,4.30
Adult and Health Services,Head of Adults,055643,Hawthorn House LD Respite Unit,Supplies and Services,324117,Provisions E324,05-Jun-2020,000009091923103,JR HOLLAND FOODSERVICE,5499,Catering costs - provisions,12.04,0.00,12.04
Adult and Health Services,Head of Adults,055643,Hawthorn House LD Respite Unit,Supplies and Services,324117,Provisions E324,05-Jun-2020,000009091923109,JR HOLLAND FOODSERVICE,5499,Catering costs - provisions,13.39,0.00,13.39
Neighbourhoods and Climate Change,Environmental Services,010301,C&G - North Grounds Maintenance,Supplies and Services,324117,Provisions E324,05-Jun-2020,000009091923115,J VAN VLIET GATESHEAD,5399,Catering costs - provisions,134.21,0.00,134.21
Children and Young Peoples Services,Head of Childrens Social Care,085334,West Rainton Satelite Home,Supplies and Services,324117,Provisions E324,05-Jun-2020,000009091923167,TESCO STORES 2371,5411,Catering costs - provisions,14.94,0.00,14.94
Children and Young Peoples Services,Head of Childrens Social Care,085334,West Rainton Satelite Home,Supplies and Services,324117,Provisions E324,05-Jun-2020,000009091923173,TESCO STORES 2371,5411,Catering costs - provisions,12.00,0.00,12.00
Children and Young Peoples Services,Head of Childrens Social Care,085334,West Rainton Satelite Home,Supplies and Services,324117,Provisions E324,05-Jun-2020,000009091923177,TESCO STORES 2371,5411,Catering costs - provisions,5.25,0.00,5.25
Children and Young Peoples Services,Head of Early Help Inclusion & Vulnerable Children.,085956,Lumley,Supplies and Services,304403,Equipment and Materials,05-Jun-2020,000009091923191,AMZNMktplace,5999,Other consumables,3.96,0.66,3.30
Children and Young Peoples Services,Head of Early Help Inclusion & Vulnerable Children.,085956,Lumley,Supplies and Services,304403,Equipment and Materials,05-Jun-2020,000009091923191 - 1,AMZNMktplace,5999,Other consumables,16.97,,16.97
Children and Young Peoples Services,Head of Early Help Inclusion & Vulnerable Children.,085957,Secure Management,Supplies and Services,304405,Equipment and Materials,05-Jun-2020,000009091923199,LLOYDS PHARMACY,5912,Medical supplies,89.98,0.00,89.98
Children and Young Peoples Services,Head of Early Help Inclusion & Vulnerable Children.,085957,Secure Management,Supplies and Services,384999,Miscellaneous Expenses,05-Jun-2020,000009091923205,HH SUPPLIES UK,8099,Other expenses,-121.96,0.00,-121.96
"Regeneration, Economy and Growth",Business Durham CL0850,030690,Durham Dales Centre - Tourist Information Centre,Supplies and Services,332047,Printing Stationery and Gen Off Exps,05-Jun-2020,000009091923247,EMERGE (NE) LTD,5943,Stationery,227.70,0.00,227.70
Children and Young Peoples Services,Head of Childrens Social Care,085333,Coxhoe Satelite Home,Supplies and Services,304403,Equipment and Materials,05-Jun-2020,000009091923279,TAKEAWAY PIZZA TUDHOE,5734,Other consumables,42.99,0.00,42.99
Children and Young Peoples Services,Head of Childrens Social Care,085333,Coxhoe Satelite Home,Supplies and Services,324117,Provisions E324,05-Jun-2020,000009091923285,CO-OP GROUP 310016,5411,Catering costs - provisions,4.05,0.00,4.05
Children and Young Peoples Services,Head of Childrens Social Care,085333,Coxhoe Satelite Home,Supplies and Services,348037,Subsistence E348,05-Jun-2020,000009091923289,ShakeNCake,5812,Subsistence,21.30,0.00,21.30
Children and Young Peoples Services,Head of Childrens Social Care,085333,Coxhoe Satelite Home,Supplies and Services,308011,Furniture,05-Jun-2020,000009091923293,IKEA LTD 143 GATESHEAD,5712,Furniture repair and replacement,204.00,0.00,204.00
"Regeneration, Economy and Growth",Development and Housing,031500,Housing Solutions - Core Team,Supplies and Services,304999,Equipment and Materials,05-Jun-2020,000009091923381,DUNCAN BELTON TA K,6513,Misc equipment tools and materials,350.00,0.00,350.00
Chief Executive's Office,Communications Management,060270,Communications and Marketing,Supplies and Services,336005,Advertising E336,05-Jun-2020,000009091923433,FACEBK DGSUWSS4B2,7311,Advertising other than for staff,500.00,0.00,500.00
Transformation and Partnerships,Communications Management,060270,Communications and Marketing,Supplies and Services,336005,Advertising E336,05-Jun-2020,000009091923433,FACEBK DGSUWSS4B2,7311,Advertising other than for staff,500.00,0.00,500.00
Children and Young Peoples Services,Head of Childrens Social Care,085650,Pre Birth Team,Supplies and Services,304403,Equipment and Materials,05-Jun-2020,000009091923481,TESCO ONLINE,5999,Other consumables,20.00,0.00,20.00
Neighbourhoods and Climate Change,Environmental Services,031200,North Pennines Core,Supplies and Services,328041,Clothing uniforms and laundry E328,05-Jun-2020,000009091923505,DERBYSHIRE SERVICES,5691,Clothing uniforms and laundry,105.79,0.00,105.79
Neighbourhoods and Climate Change,Environmental Services,031200,North Pennines Core,Supplies and Services,304403,Equipment and Materials,05-Jun-2020,000009091923511,VALUE PRODUCTS LTD,5999,Other consumables,36.66,0.00,36.66
Adult and Health Services,Head of Adults,055643,Hawthorn House LD Respite Unit,Supplies and Services,324117,Provisions E324,05-Jun-2020,000009095409929,BATLEYS PERTH,5300,Catering costs - provisions,9.12,1.52,7.60
Adult and Health Services,Head of Adults,055643,Hawthorn House LD Respite Unit,Supplies and Services,324117,Provisions E324,05-Jun-2020,000009095409929 - 1,BATLEYS PERTH,5300,Catering costs - provisions,86.48,,86.48
Adult and Health Services,Head of Adults,055643,Hawthorn House LD Respite Unit,Supplies and Services,324117,Provisions E324,05-Jun-2020,000009095409945,BATLEYS PERTH,5300,Catering costs - provisions,-1.45,0.00,-1.45
Children and Young Peoples Services,Head of Childrens Social Care,085341,High Etherley Satelite Home,Supplies and Services,324117,Provisions E324,06-Jun-2020,000009091922269,TESCO STORES 2371,5411,Catering costs - provisions,39.50,0.00,39.50
Children and Young Peoples Services,Head of Childrens Social Care,085341,High Etherley Satelite Home,Supplies and Services,324117,Provisions E324,06-Jun-2020,000009091922271,TESCO STORES 2371,5411,Catering costs - provisions,30.00,0.00,30.00
Children and Young Peoples Services,Head of Childrens Social Care,085332,Middlestone Moor CU,Supplies and Services,384999,Miscellaneous Expenses,06-Jun-2020,000009091922425,Amazon.co.uk TO3QX5XG5,5969,Other expenses,84.85,0.00,84.85
Children and Young Peoples Services,Head of Childrens Social Care,085342,16 Hickstead Rise (previously 9 Cedar Ave),Supplies and Services,348037,Subsistence E348,06-Jun-2020,000009091922573,ShakeNCake,5812,Subsistence,21.10,0.00,21.10
Children and Young Peoples Services,Head of Childrens Social Care,085551,Short Break Services-Park Hse Sher,Supplies and Services,324117,Provisions E324,06-Jun-2020,000009091922861,ALDI 12 774,5411,Catering costs - provisions,76.69,12.78,63.91
Children and Young Peoples Services,Head of Childrens Social Care,085342,16 Hickstead Rise (previously 9 Cedar Ave),Supplies and Services,384302,Miscellaneous Expenses,06-Jun-2020,000009091923043,PAYPAL MARKJOHNRAC,8999,Activity expenses,20.00,0.00,20.00
Resources BK0010,Business Support,052986,CYPS - Locality and Operational Support,Supplies and Services,304403,Equipment and Materials,06-Jun-2020,000009091923139,AMZNMktplace,5999,Other consumables,9.53,0.00,9.53
Resources BK0010,Business Support,052986,CYPS - Locality and Operational Support,Supplies and Services,304403,Equipment and Materials,06-Jun-2020,000009091923145,AMZNMktplace,5999,Other consumables,9.53,0.00,9.53
Resources BK0010,Business Support,052986,CYPS - Locality and Operational Support,Supplies and Services,304403,Equipment and Materials,06-Jun-2020,000009091923149,AMZNMktplace,5999,Other consumables,9.53,0.00,9.53
Children and Young Peoples Services,Head of Early Help Inclusion & Vulnerable Children.,085956,Lumley,Supplies and Services,304403,Equipment and Materials,06-Jun-2020,000009091923211,AMZNMktplace,5999,Other consumables,6.89,1.15,5.74
Children and Young Peoples Services,Head of Early Help Inclusion & Vulnerable Children.,085956,Lumley,Supplies and Services,384999,Miscellaneous Expenses,06-Jun-2020,000009091923219,Amazon.co.uk E20AL9BG5,5969,Other expenses,3.40,0.57,2.83
Children and Young Peoples Services,Head of Early Help Inclusion & Vulnerable Children.,085956,Lumley,Supplies and Services,384999,Miscellaneous Expenses,06-Jun-2020,000009091923223,Amazon.co.uk KP01O5G05,5969,Other expenses,40.00,6.68,33.32
Children and Young Peoples Services,Head of Childrens Social Care,085332,Middlestone Moor CU,Supplies and Services,304259,Equipment and Materials,06-Jun-2020,000009091923365,JD SPORTS INTERNET,5941,Equipment-purchase and rental,143.00,0.00,143.00
Resources BK0010,COVID19 - Resources,091007,COVID19 - Resources,Supplies and Services,332047,Printing Stationery and Gen Off Exps,06-Jun-2020,000009091923439,Amazon.co.uk VJ1XL0WV5,5969,Stationery,34.46,5.76,28.70
Children and Young Peoples Services,Head of Childrens Social Care,085333,Coxhoe Satelite Home,Supplies and Services,328041,Clothing uniforms and laundry E328,06-Jun-2020,000009091923543,The Range,5311,Clothing uniforms and laundry,74.68,0.00,74.68
Resources BK0010,Business Support,065461,Business Support 065461,Supplies and Services,342033,Computers and Communications,07-Jun-2020,000009091922189,WPMU DEV INCSUBFEE.COM,7372,Computer hardware,15.10,0.00,15.10
"Regeneration, Economy and Growth",Development and Housing,031576,B& B - Temp Accom,Supplies and Services,364320,Grants to Voluntary Organisations,07-Jun-2020,000009091922223,GRAINGER HOTEL,7011,Accommodation assistance,100.00,0.00,100.00
Children and Young Peoples Services,Head of Childrens Social Care,085332,Middlestone Moor CU,Transport,215995,Running Costs of Vehicles,07-Jun-2020,000009091922387,APPLEGREEN BINCHESTER,5541,Vehicle running expenses,3.95,0.00,3.95
Children and Young Peoples Services,Head of Education and Skills,071732,Dean Bank Childcare,Supplies and Services,324117,Provisions E324,07-Jun-2020,000009091922601,CO-OP GROUP 010592,5411,Catering costs - provisions,21.76,0.00,21.76
Children and Young Peoples Services,Head of Childrens Social Care,085334,West Rainton Satelite Home,Supplies and Services,324117,Provisions E324,07-Jun-2020,000009091922631,SPAR,5411,Catering costs - provisions,9.81,0.00,9.81
Children and Young Peoples Services,Head of Childrens Social Care,085551,Short Break Services-Park Hse Sher,Supplies and Services,324117,Provisions E324,07-Jun-2020,000009091922865,ALDI 59 774,5411,Catering costs - provisions,3.99,0.00,3.99
Children and Young Peoples Services,Head of Childrens Social Care,085352,Tow Law CU,Supplies and Services,324117,Provisions E324,07-Jun-2020,000009091922877,CO-OP GROUP 010989,5411,Catering costs - provisions,18.63,0.00,18.63
Children and Young Peoples Services,Head of Early Help Inclusion & Vulnerable Children.,088106,Ferryhill & N.Aycliffe 0-19 Targeted Family Support,Supplies and Services,304649,Equipment and Materials,07-Jun-2020,000009091922913,Amazon.co.uk XI2ZY8JW5,5969,Toys,16.00,2.67,13.33
Children and Young Peoples Services,Head of Education and Skills,071802,Louisa Cent Nursery,Supplies and Services,304999,Equipment and Materials,07-Jun-2020,000009091923011,HOME BARGAINS,5251,Misc equipment tools and materials,15.56,2.59,12.97
Children and Young Peoples Services,Head of Childrens Social Care,085342,16 Hickstead Rise (previously 9 Cedar Ave),Supplies and Services,324117,Provisions E324,07-Jun-2020,000009091923045,ARCHERS,5812,Catering costs - provisions,9.50,0.00,9.50
Children and Young Peoples Services,Head of Childrens Social Care,085342,16 Hickstead Rise (previously 9 Cedar Ave),Supplies and Services,324117,Provisions E324,07-Jun-2020,000009091923049,ALDI 105 774,5411,Catering costs - provisions,11.61,0.00,11.61
Children and Young Peoples Services,Head of Childrens Social Care,085342,16 Hickstead Rise (previously 9 Cedar Ave),Supplies and Services,344033,Telephones,07-Jun-2020,000009091923061,giffgaff,4814,Telephones general-all costs,10.00,0.00,10.00
Resources BK0010,Business Support,052986,CYPS - Locality and Operational Support,Supplies and Services,304403,Equipment and Materials,07-Jun-2020,000009091923151,AMZNMKTPLACE AMAZON.CO,5999,Other consumables,9.53,0.00,9.53
Resources BK0010,Business Support,052986,CYPS - Locality and Operational Support,Supplies and Services,304403,Equipment and Materials,07-Jun-2020,000009091923157,AMZNMKTPLACE AMAZON.CO,5999,Other consumables,12.03,0.00,12.03
Resources BK0010,Business Support,052986,CYPS - Locality and Operational Support,Supplies and Services,304403,Equipment and Materials,07-Jun-2020,000009091923159,AMZNMktplace,5999,Other consumables,11.83,0.00,11.83
Resources BK0010,Business Support,052986,CYPS - Locality and Operational Support,Supplies and Services,304403,Equipment and Materials,07-Jun-2020,000009091923163,AMZNMktplace,5999,Other consumables,12.03,0.00,12.03
Children and Young Peoples Services,Head of Childrens Social Care,085332,Middlestone Moor CU,Supplies and Services,324117,Provisions E324,07-Jun-2020,000009091923259,ASDA SUPERSTORE 4987,5411,Catering costs - provisions,41.40,6.90,34.50
Children and Young Peoples Services,Head of Childrens Social Care,085333,Coxhoe Satelite Home,Supplies and Services,304259,Equipment and Materials,07-Jun-2020,000009091923295,M and M Direct Ltd,5941,Equipment-purchase and rental,47.97,0.00,47.97
Children and Young Peoples Services,Head of Childrens Social Care,085333,Coxhoe Satelite Home,Supplies and Services,324117,Provisions E324,07-Jun-2020,000009091923301,CO-OP GROUP 310016,5411,Catering costs - provisions,15.95,0.00,15.95
Children and Young Peoples Services,Head of Childrens Social Care,085352,Tow Law CU,Transport,235057,Public Transport,07-Jun-2020,000009091923311,HORIZON PARKING LTD VT,7523,Staff travelling,85.00,0.00,85.00
Children and Young Peoples Services,Head of Childrens Social Care,085352,Tow Law CU,Supplies and Services,308011,Furniture,07-Jun-2020,000009091923313,DFS Trading Limited,5712,Furniture repair and replacement,"1,851.00",0.00,1851.00
Children and Young Peoples Services,Head of Childrens Social Care,085332,Middlestone Moor CU,Supplies and Services,348037,Subsistence E348,07-Jun-2020,000009091923373,WWW.JUST-EAT.CO.UK,5812,Subsistence,37.90,0.00,37.90
Children and Young Peoples Services,Head of Childrens Social Care,085352,Tow Law CU,Supplies and Services,308011,Furniture,07-Jun-2020,000009095410193,Dunelm,5712,Furniture repair and replacement,-20.40,0.00,-20.40
Resources BK0010,Business Support,065461,Business Support 065461,Supplies and Services,342033,Computers and Communications,08-Jun-2020,000009091922193,WPMU DEV INCSUBFEE.COM,7372,Computer hardware,0.42,0.00,0.42
Resources BK0010,Corporate Finance & Commercial Services,069800,Corporate Procurement 069800,Employees,040149,Recruitment Instruction and Training,08-Jun-2020,000009091923339,WWW.CIPS.ORG,8699,Training-all costs,-186.00,0.00,-186.00
Children and Young Peoples Services,Head of Education and Skills,071801,Selby Cottage Childcare Centre,Supplies and Services,304403,Equipment and Materials,08-Jun-2020,000009095409067,AMZNMKTPLACE AMAZON.CO,5999,Other consumables,18.62,0.00,18.62
Children and Young Peoples Services,Head of Education and Skills,071801,Selby Cottage Childcare Centre,Supplies and Services,304999,Equipment and Materials,08-Jun-2020,000009095409073,Amazon Prime F49F59O65,5968,Misc equipment tools and materials,7.99,0.00,7.99
Children and Young Peoples Services,Head of Education and Skills,071801,Selby Cottage Childcare Centre,Supplies and Services,384999,Miscellaneous Expenses,08-Jun-2020,000009095409081,Amazon.co.uk H941091O5,5969,Other expenses,19.18,3.20,15.98
Resources BK0010,Business Support,065461,Business Support 065461,Supplies and Services,304403,Equipment and Materials,08-Jun-2020,000009095409111,AMZNMktplace,5999,Other consumables,67.04,11.20,55.84
Resources BK0010,Business Support,065461,Business Support 065461,Supplies and Services,304403,Equipment and Materials,08-Jun-2020,000009095409119,AMZNMktplace,5999,Other consumables,294.00,49.00,245.00
Resources BK0010,Business Support,065461,Business Support 065461,Supplies and Services,304403,Equipment and Materials,08-Jun-2020,000009095409119 - 1,AMZNMktplace,5999,Other consumables,1.00,,1.00
Children and Young Peoples Services,Head of Childrens Social Care,085501,Child Care Cases Legal Expenses,Supplies and Services,304403,Equipment and Materials,08-Jun-2020,000009095409135,STOCKTON BOROUGH COUNC,9399,Other consumables,11.00,0.00,11.00
Children and Young Peoples Services,Head of Education and Skills,075021,Youth Employment Initiative,Supplies and Services,364301,Grants to Voluntary Organisations,08-Jun-2020,000009095409143,HARTLEPOOL BC CNP,9399,Hardship,11.00,0.00,11.00
Children and Young Peoples Services,Head of Education and Skills,075021,Youth Employment Initiative,Supplies and Services,364301,Grants to Voluntary Organisations,08-Jun-2020,000009095409151,CURRYS ONLINE,5732,Hardship,239.00,39.83,199.17
Children and Young Peoples Services,Head of Education and Skills,075021,Youth Employment Initiative,Supplies and Services,364301,Grants to Voluntary Organisations,08-Jun-2020,000009095409155,CURRYS ONLINE,5732,Hardship,199.00,33.17,165.83
Children and Young Peoples Services,Head of Education and Skills,075021,Youth Employment Initiative,Supplies and Services,364301,Grants to Voluntary Organisations,08-Jun-2020,000009095409157,CURRYS ONLINE,5732,Hardship,239.00,39.83,199.17
Children and Young Peoples Services,Head of Childrens Social Care,085352,Tow Law CU,Supplies and Services,324117,Provisions E324,08-Jun-2020,000009095409287,CO-OP GROUP 010989,5411,Catering costs - provisions,2.55,0.00,2.55
Children and Young Peoples Services,Head of Childrens Social Care,085380,Operations Manager LAC Resources,Supplies and Services,328041,Clothing uniforms and laundry E328,08-Jun-2020,000009095409303,ARGOS LTD,5310,Clothing uniforms and laundry,-99.99,0.00,-99.99
Children and Young Peoples Services,Head of Childrens Social Care,085332,Middlestone Moor CU,Supplies and Services,348037,Subsistence E348,08-Jun-2020,000009095409321,MOCHA,5812,Subsistence,25.85,0.00,25.85
Children and Young Peoples Services,Head of Childrens Social Care,085332,Middlestone Moor CU,Supplies and Services,324117,Provisions E324,08-Jun-2020,000009095409349,KEN WARNE LTD (O5),5411,Catering costs - provisions,3.00,0.00,3.00
Children and Young Peoples Services,Head of Childrens Social Care,085341,High Etherley Satelite Home,Supplies and Services,384999,Miscellaneous Expenses,08-Jun-2020,000009095409405,TESCO STORES 6329,5411,Other expenses,10.00,0.00,10.00
"Regeneration, Economy and Growth",Culture Sport and Tourism,011217,Commercial Management 011217,Supplies and Services,304259,Equipment and Materials,08-Jun-2020,000009095409421,SAFETYSIGNSUP.COUK,7333,Equipment-purchase and rental,38.87,0.00,38.87
"Regeneration, Economy and Growth",Culture Sport and Tourism,011217,Commercial Management 011217,Supplies and Services,304259,Equipment and Materials,08-Jun-2020,000009095409427,SAFETYSIGNSUP.COUK,7333,Equipment-purchase and rental,38.87,0.00,38.87
"Regeneration, Economy and Growth",Culture Sport and Tourism,011217,Commercial Management 011217,Supplies and Services,304259,Equipment and Materials,08-Jun-2020,000009095409433,SAFETYSIGNSUP.COUK,7333,Equipment-purchase and rental,38.87,0.00,38.87
"Regeneration, Economy and Growth",Culture Sport and Tourism,011217,Commercial Management 011217,Supplies and Services,304259,Equipment and Materials,08-Jun-2020,000009095409437,SAFETYSIGNSUP.COUK,7333,Equipment-purchase and rental,38.87,0.00,38.87
"Regeneration, Economy and Growth",Culture Sport and Tourism,011217,Commercial Management 011217,Supplies and Services,304259,Equipment and Materials,08-Jun-2020,000009095409441,SAFETYSIGNSUP.COUK,7333,Equipment-purchase and rental,38.87,0.00,38.87
Children and Young Peoples Services,Head of Childrens Social Care,085342,16 Hickstead Rise (previously 9 Cedar Ave),Supplies and Services,304403,Equipment and Materials,08-Jun-2020,000009095409471,AMZNMktplace,5999,Other consumables,23.47,0.00,23.47
Children and Young Peoples Services,Head of Childrens Social Care,085334,West Rainton Satelite Home,Supplies and Services,324117,Provisions E324,08-Jun-2020,000009095409537,COOPLANDS BAKERY,5462,Catering costs - provisions,6.85,0.00,6.85
"Regeneration, Economy and Growth",Development and Housing,031500,Housing Solutions - Core Team,Supplies and Services,352001,Conference Expenses,08-Jun-2020,000009095409561,GRAINGER HOTEL,7011,Conferencesseminars fees etc,200.00,0.00,200.00
Children and Young Peoples Services,Head of Childrens Social Care,085331,New Lea Childrens Home,Supplies and Services,304403,Equipment and Materials,08-Jun-2020,000009095409693,AMZNMktplace,5999,Other consumables,29.99,0.00,29.99
Children and Young Peoples Services,Head of Childrens Social Care,085331,New Lea Childrens Home,Supplies and Services,324117,Provisions E324,08-Jun-2020,000009095409699,ASDA SUPERSTORE,5411,Catering costs - provisions,175.75,0.00,175.75
Children and Young Peoples Services,Head of Childrens Social Care,085626,Families First Shildon/Chilton,Supplies and Services,304259,Equipment and Materials,08-Jun-2020,000009095409775,TESCO ONLINE,5999,Equipment-purchase and rental,14.99,0.00,14.99
Children and Young Peoples Services,Head of Early Help Inclusion & Vulnerable Children.,088108,Spennymoor & Shildon 0-19 Targeted Family Support,Supplies and Services,304259,Equipment and Materials,08-Jun-2020,000009095409785,AMZNMktplace,5999,Equipment-purchase and rental,5.46,0.91,4.55
Children and Young Peoples Services,Head of Early Help Inclusion & Vulnerable Children.,088108,Spennymoor & Shildon 0-19 Targeted Family Support,Supplies and Services,304259,Equipment and Materials,08-Jun-2020,000009095409787,B&M 035 - SHILDON,5399,Equipment-purchase and rental,15.10,0.00,15.10
Children and Young Peoples Services,Head of Early Help Inclusion & Vulnerable Children.,088108,Spennymoor & Shildon 0-19 Targeted Family Support,Supplies and Services,304259,Equipment and Materials,08-Jun-2020,000009095409793,ASDA STORES,5411,Equipment-purchase and rental,7.88,0.00,7.88
Children and Young Peoples Services,Head of Early Help Inclusion & Vulnerable Children.,088116,South Area - Teenage Parent Programme,Supplies and Services,304259,Equipment and Materials,08-Jun-2020,000009095409803,AMZNMktplace,5999,Equipment-purchase and rental,10.99,1.83,9.16
Children and Young Peoples Services,Head of Childrens Social Care,085626,Families First Shildon/Chilton,Supplies and Services,364301,Grants to Voluntary Organisations,08-Jun-2020,000009095409807,ARGOS LTD,5310,Hardship,49.98,0.00,49.98
"Regeneration, Economy and Growth",Development and Housing,031500,Housing Solutions - Core Team,Supplies and Services,352001,Conference Expenses,08-Jun-2020,000009095409821,GRAINGER HOTEL,7011,Conferencesseminars fees etc,300.00,50.00,250.00
"Regeneration, Economy and Growth",Development and Housing,031500,Housing Solutions - Core Team,Supplies and Services,304259,Equipment and Materials,08-Jun-2020,000009095409831,WWW.DURHAM.GOV.UK,9399,Equipment-purchase and rental,11.00,0.00,11.00
Adult and Health Services,Head of Adults,055643,Hawthorn House LD Respite Unit,Supplies and Services,324117,Provisions E324,08-Jun-2020,000009095409931,FREEMAN CATERING BUTCH,5422,Catering costs - provisions,16.70,0.00,16.70
Adult and Health Services,Head of Adults,055643,Hawthorn House LD Respite Unit,Supplies and Services,324117,Provisions E324,08-Jun-2020,000009095409937,JR HOLLAND FOODSERVICE,5499,Catering costs - provisions,12.24,0.00,12.24
Children and Young Peoples Services,Head of Childrens Social Care,085334,West Rainton Satelite Home,Supplies and Services,324117,Provisions E324,08-Jun-2020,000009095410019,TESCO STORES 2371,5411,Catering costs - provisions,119.21,0.00,119.21
Children and Young Peoples Services,Head of Early Help Inclusion & Vulnerable Children.,085954,Walworth,Supplies and Services,328041,Clothing uniforms and laundry E328,08-Jun-2020,000009095410049,FOOTASYLUM PLC,5691,Clothing uniforms and laundry,119.99,0.00,119.99
Children and Young Peoples Services,Head of Early Help Inclusion & Vulnerable Children.,085965,Barnard,Supplies and Services,384999,Miscellaneous Expenses,08-Jun-2020,000009095410057,Amazon.co.uk WK1JP7035,5969,Other expenses,15.00,2.50,12.50
Children and Young Peoples Services,Head of Early Help Inclusion & Vulnerable Children.,085956,Lumley,Supplies and Services,328041,Clothing uniforms and laundry E328,08-Jun-2020,000009095410063,PRETTYLITTLETHING.COM,5691,Clothing uniforms and laundry,22.00,0.00,22.00
Children and Young Peoples Services,Head of Early Help Inclusion & Vulnerable Children.,085956,Lumley,Supplies and Services,328041,Clothing uniforms and laundry E328,08-Jun-2020,000009095410067,PRETTYLITTLETHING.COM,5691,Clothing uniforms and laundry,34.00,0.00,34.00
Children and Young Peoples Services,Head of Early Help Inclusion & Vulnerable Children.,085957,Secure Management,Supplies and Services,384999,Miscellaneous Expenses,08-Jun-2020,000009095410075,AMZNMktplace,5999,Other expenses,15.00,2.50,12.50
Children and Young Peoples Services,Head of Early Help Inclusion & Vulnerable Children.,085957,Secure Management,Supplies and Services,384999,Miscellaneous Expenses,08-Jun-2020,000009095410079,AMZNMktplace,5999,Other expenses,4.33,0.72,3.61
Children and Young Peoples Services,Head of Early Help Inclusion & Vulnerable Children.,085956,Lumley,Supplies and Services,328041,Clothing uniforms and laundry E328,08-Jun-2020,000009095410083,JD SPORTS INTERNET,5941,Clothing uniforms and laundry,100.00,0.00,100.00
"Regeneration, Economy and Growth",Development and Housing,031500,Housing Solutions - Core Team,Supplies and Services,352001,Conference Expenses,08-Jun-2020,000009095410095,AYCLIFFE BIZ,7011,Conferencesseminars fees etc,76.00,0.00,76.00
Children and Young Peoples Services,Head of Childrens Social Care,085332,Middlestone Moor CU,Supplies and Services,312009,Newspapers books and periodicals E312,08-Jun-2020,000009095410111,MIDDLESTONE MOOR NEWSA,5994,Newspapers books and periodicals,32.00,5.33,26.67
Children and Young Peoples Services,Head of Childrens Social Care,085333,Coxhoe Satelite Home,Supplies and Services,304403,Equipment and Materials,08-Jun-2020,000009095410127,AMZNMktplace,5999,Other consumables,22.00,3.67,18.33
"Regeneration, Economy and Growth",Development and Housing,031576,B& B - Temp Accom,Supplies and Services,352001,Conference Expenses,08-Jun-2020,000009095410137,BUDGET H EXPRESS HOTEL,7011,Conferencesseminars fees etc,267.00,0.00,267.00
"Regeneration, Economy and Growth",Development and Housing,031576,B& B - Temp Accom,Supplies and Services,352001,Conference Expenses,08-Jun-2020,000009095410139,BUDGET H EXPRESS HOTEL,7011,Conferencesseminars fees etc,34.00,0.00,34.00
"Regeneration, Economy and Growth",Development and Housing,031576,B& B - Temp Accom,Supplies and Services,352001,Conference Expenses,08-Jun-2020,000009095410143,BUDGET H EXPRESS HOTEL,7011,Conferencesseminars fees etc,500.00,0.00,500.00
"Regeneration, Economy and Growth",Development and Housing,031576,B& B - Temp Accom,Supplies and Services,352001,Conference Expenses,08-Jun-2020,000009095410147,BUDGET H EXPRESS HOTEL,7011,Conferencesseminars fees etc,178.00,0.00,178.00
Children and Young Peoples Services,Head of Childrens Social Care,085352,Tow Law CU,Supplies and Services,304403,Equipment and Materials,08-Jun-2020,000009095410189,AMZNMktplace,5999,Other consumables,7.95,1.33,6.62
Children and Young Peoples Services,Head of Childrens Social Care,085342,16 Hickstead Rise (previously 9 Cedar Ave),Supplies and Services,324117,Provisions E324,08-Jun-2020,000009095410201,TESCO STORES 2916,5411,Catering costs - provisions,181.83,0.00,181.83
Children and Young Peoples Services,Head of Early Help Inclusion & Vulnerable Children.,088107,Ferryhill & Newton Aycliffe 0-19 Community Family Hub,Supplies and Services,304403,Equipment and Materials,08-Jun-2020,000009095410235,AMZNMktplace,5999,Other consumables,19.63,3.28,16.35
"Regeneration, Economy and Growth",Development and Housing,031500,Housing Solutions - Core Team,Supplies and Services,304999,Equipment and Materials,08-Jun-2020,000009095410247,DUNCAN BELTON TA K,6513,Misc equipment tools and materials,350.00,0.00,350.00
Adult and Health Services,Head of Adults,055310,Positive Journeys (Tudhoe),Supplies and Services,324117,Provisions E324,08-Jun-2020,000009095410313,CO-OP GROUP FOOD,5411,Catering costs - provisions,3.00,0.00,3.00
Children and Young Peoples Services,Head of Childrens Social Care,085333,Coxhoe Satelite Home,Supplies and Services,324117,Provisions E324,08-Jun-2020,000009095410397,PPOINT_ COSTCUTTER 108,5411,Catering costs - provisions,4.38,0.73,3.65
Children and Young Peoples Services,Head of Childrens Social Care,085333,Coxhoe Satelite Home,Supplies and Services,324117,Provisions E324,08-Jun-2020,000009095410397 - 1,PPOINT_ COSTCUTTER 108,5411,Catering costs - provisions,3.20,,3.20
"Regeneration, Economy and Growth",Development and Housing,031576,B& B - Temp Accom,Supplies and Services,364320,Grants to Voluntary Organisations,08-Jun-2020,000009097399809,HI NEWCASTLE WASHI,7011,Accommodation assistance,260.00,0.00,260.00
"Regeneration, Economy and Growth",Development and Housing,031576,B& B - Temp Accom,Supplies and Services,352001,Conference Expenses,08-Jun-2020,000009097399849,HI NEWCASTLE WASHI,7011,Conferencesseminars fees etc,195.00,0.00,195.00
"Regeneration, Economy and Growth",Development and Housing,031500,Housing Solutions - Core Team,Supplies and Services,352001,Conference Expenses,08-Jun-2020,000009097399921,HI NEWCASTLE WASHI,7011,Conferencesseminars fees etc,195.00,0.00,195.00
"Regeneration, Economy and Growth",Development and Housing,031500,Housing Solutions - Core Team,Supplies and Services,352001,Conference Expenses,08-Jun-2020,000009097399951,HI NEWCASTLE WASHI,7011,Conferencesseminars fees etc,195.00,0.00,195.00
"Regeneration, Economy and Growth",Development and Housing,031500,Housing Solutions - Core Team,Supplies and Services,352001,Conference Expenses,08-Jun-2020,000009097399955,HI NEWCASTLE WASHI,7011,Conferencesseminars fees etc,195.00,0.00,195.00
Children and Young Peoples Services,Head of Childrens Social Care,085342,16 Hickstead Rise (previously 9 Cedar Ave),Supplies and Services,328041,Clothing uniforms and laundry E328,08-Jun-2020,000009097400161,NEW LOOK MCOMM,5621,Clothing uniforms and laundry,68.23,0.00,68.23
Adult and Health Services,Head of Adults,055643,Hawthorn House LD Respite Unit,Supplies and Services,324117,Provisions E324,08-Jun-2020,000009097400199,BATLEYS PERTH,5300,Catering costs - provisions,26.26,0.00,26.26
Neighbourhoods and Climate Change,Environmental Services,010301,C&G - North Grounds Maintenance,Third Party Payments,430100,Rendered by Private Contractors,08-Jun-2020,000009097400279,JOHN WARREN (ANIMAL BY,7399,Payments to sub-contractors,24.00,0.00,24.00
Children and Young Peoples Services,Head of Childrens Social Care,085341,High Etherley Satelite Home,Supplies and Services,332047,Printing Stationery and Gen Off Exps,09-Jun-2020,000009097399637,VIKING UK,5111,Stationery,15.32,0.00,15.32
"Regeneration, Economy and Growth",Business Durham CL0850,030689,Inward Investment and Aftercare,Supplies and Services,304999,Equipment and Materials,09-Jun-2020,000009097399641,MAILCHIMP MONTHLY,5968,Misc equipment tools and materials,80.82,0.00,80.82
Children and Young Peoples Services,Head of Childrens Social Care,085341,High Etherley Satelite Home,Supplies and Services,324117,Provisions E324,09-Jun-2020,000009097399647,SAINSBURYS SACAT 2199,5411,Catering costs - provisions,1.50,0.00,1.50
Children and Young Peoples Services,Head of Childrens Social Care,085341,High Etherley Satelite Home,Supplies and Services,324117,Provisions E324,09-Jun-2020,000009097399651,SAINSBURYS SACAT 2199,5411,Catering costs - provisions,31.61,0.00,31.61
Children and Young Peoples Services,Head of Childrens Social Care,085341,High Etherley Satelite Home,Supplies and Services,324117,Provisions E324,09-Jun-2020,000009097399653,SAINSBURYS SACAT 2199,5411,Catering costs - provisions,48.35,0.00,48.35
Children and Young Peoples Services,Head of Childrens Social Care,085341,High Etherley Satelite Home,Supplies and Services,304259,Equipment and Materials,09-Jun-2020,000009097399657,JD SPORTS INTERNET,5941,Equipment-purchase and rental,68.99,0.00,68.99
Children and Young Peoples Services,Head of Education and Skills,071801,Selby Cottage Childcare Centre,Supplies and Services,304999,Equipment and Materials,09-Jun-2020,000009097399663,WWW.OAKS ONLINE SHOPPI,5998,Misc equipment tools and materials,153.94,0.00,153.94
Resources BK0010,Business Support,065461,Business Support 065461,Supplies and Services,304403,Equipment and Materials,09-Jun-2020,000009097399667,AMZNMKTPLACE AMAZON.CO,5999,Other consumables,99.98,0.00,99.98
Children and Young Peoples Services,Head of Education and Skills,075021,Youth Employment Initiative,Supplies and Services,364301,Grants to Voluntary Organisations,09-Jun-2020,000009097399693,CURRYS ONLINE,5732,Hardship,199.00,33.17,165.83
Children and Young Peoples Services,Head of Childrens Social Care,085332,Middlestone Moor CU,Supplies and Services,324117,Provisions E324,09-Jun-2020,000009097399707,TESCO STORES 6329,5411,Catering costs - provisions,98.82,0.00,98.82
Children and Young Peoples Services,Head of Childrens Social Care,085332,Middlestone Moor CU,Supplies and Services,324117,Provisions E324,09-Jun-2020,000009097399711,HOME BARGAINS,5251,Catering costs - provisions,37.46,0.00,37.46
Children and Young Peoples Services,Head of Childrens Social Care,085332,Middlestone Moor CU,Supplies and Services,324117,Provisions E324,09-Jun-2020,000009097399715,ALDI 74 774,5411,Catering costs - provisions,4.92,0.00,4.92
"Regeneration, Economy and Growth",Development and Housing,031576,B& B - Temp Accom,Supplies and Services,364320,Grants to Voluntary Organisations,09-Jun-2020,000009097399811,HI NEWCASTLE WASHI,7011,Accommodation assistance,65.00,0.00,65.00
"Regeneration, Economy and Growth",Development and Housing,030772,CLLD South,Transport,215995,Running Costs of Vehicles,09-Jun-2020,000009097399823,TESCO PFS 4088,5541,Vehicle running expenses,31.50,5.25,26.25
"Regeneration, Economy and Growth",Culture Sport and Tourism,011208,Aquatics 011208,Supplies and Services,304999,Equipment and Materials,09-Jun-2020,000009097399835,MailChimp,5818,Misc equipment tools and materials,143.64,0.00,143.64
"Regeneration, Economy and Growth",Development and Housing,031576,B& B - Temp Accom,Supplies and Services,352001,Conference Expenses,09-Jun-2020,000009097399853,BUDGET H EXPRESS HOTEL,7011,Conferencesseminars fees etc,178.00,29.67,148.33
Children and Young Peoples Services,Head of Childrens Social Care,085342,16 Hickstead Rise (previously 9 Cedar Ave),Supplies and Services,324117,Provisions E324,09-Jun-2020,000009097399865,ALDI 15 774,5411,Catering costs - provisions,14.93,0.00,14.93
Children and Young Peoples Services,Head of Childrens Social Care,085331,New Lea Childrens Home,Supplies and Services,304403,Equipment and Materials,09-Jun-2020,000009097399993,AMZNMktplace,5999,Other consumables,32.18,0.00,32.18
Children and Young Peoples Services,Head of Childrens Social Care,085551,Short Break Services-Park Hse Sher,Supplies and Services,324117,Provisions E324,09-Jun-2020,000009097400035,J FREEMAN & SONS LTD,5499,Catering costs - provisions,357.44,0.00,357.44
Children and Young Peoples Services,Head of Childrens Social Care,085551,Short Break Services-Park Hse Sher,Supplies and Services,324117,Provisions E324,09-Jun-2020,000009097400039,JR HOLLAND FOODSERVICE,5499,Catering costs - provisions,440.69,0.00,440.69
Children and Young Peoples Services,Head of Childrens Social Care,085551,Short Break Services-Park Hse Sher,Supplies and Services,324117,Provisions E324,09-Jun-2020,000009097400043,JR HOLLAND FOODSERVICE,5499,Catering costs - provisions,307.65,0.00,307.65
Children and Young Peoples Services,Head of Childrens Social Care,085352,Tow Law CU,Supplies and Services,324117,Provisions E324,09-Jun-2020,000009097400049,ASDA GROCERIES ONLINE,5411,Catering costs - provisions,239.46,0.00,239.46
Children and Young Peoples Services,Head of Childrens Social Care,085352,Tow Law CU,Supplies and Services,324117,Provisions E324,09-Jun-2020,000009097400053,ASDA GROCERIES ONLINE,5411,Catering costs - provisions,1.53,0.00,1.53
Children and Young Peoples Services,Head of Early Help Inclusion & Vulnerable Children.,088108,Spennymoor & Shildon 0-19 Targeted Family Support,Supplies and Services,304259,Equipment and Materials,09-Jun-2020,000009097400063,AMZNMktplace,5999,Equipment-purchase and rental,6.23,0.00,6.23
Children and Young Peoples Services,Head of Early Help Inclusion & Vulnerable Children.,088108,Spennymoor & Shildon 0-19 Targeted Family Support,Supplies and Services,304259,Equipment and Materials,09-Jun-2020,000009097400065,AMZNMktplace,5999,Equipment-purchase and rental,6.23,0.00,6.23
Children and Young Peoples Services,Head of Early Help Inclusion & Vulnerable Children.,088108,Spennymoor & Shildon 0-19 Targeted Family Support,Supplies and Services,304259,Equipment and Materials,09-Jun-2020,000009097400069,AMZNMktplace,5999,Equipment-purchase and rental,7.99,1.33,6.66
Children and Young Peoples Services,Head of Early Help Inclusion & Vulnerable Children.,088108,Spennymoor & Shildon 0-19 Targeted Family Support,Supplies and Services,304259,Equipment and Materials,09-Jun-2020,000009097400071,AMZNMktplace,5999,Equipment-purchase and rental,6.23,0.00,6.23
Children and Young Peoples Services,Head of Early Help Inclusion & Vulnerable Children.,088108,Spennymoor & Shildon 0-19 Targeted Family Support,Supplies and Services,304259,Equipment and Materials,09-Jun-2020,000009097400075,AMZNMktplace,5999,Equipment-purchase and rental,4.80,0.80,4.00
Children and Young Peoples Services,Head of Early Help Inclusion & Vulnerable Children.,088106,Ferryhill & N.Aycliffe 0-19 Targeted Family Support,Supplies and Services,304259,Equipment and Materials,09-Jun-2020,000009097400079,AMZNMktplace,5999,Equipment-purchase and rental,11.99,2.00,9.99
Neighbourhoods and Climate Change,Community Protection,011035,Consumer Protection 011035,Supplies and Services,338048,Services,09-Jun-2020,000009097400123,HMCOURTS-SERVICE.G,9222,Court costs 338048,226.00,0.00,226.00
Adult and Health Services,Head of Adults,055643,Hawthorn House LD Respite Unit,Supplies and Services,324117,Provisions E324,09-Jun-2020,000009097400127,SAINSBURYS SACAT 0776,5411,Catering costs - provisions,25.34,0.00,25.34
Adult and Health Services,Head of Adults,055643,Hawthorn House LD Respite Unit,Supplies and Services,324117,Provisions E324,09-Jun-2020,000009097400129,ASDA STORES LTD 4313,5411,Catering costs - provisions,6.00,0.00,6.00
"Regeneration, Economy and Growth",Corporate Property and Land,020061,Bldg Serv - R&M Div 61 - Building,Supplies and Services,304221,Equipment and Materials,09-Jun-2020,000009097400133,CARAVAN PARK ELECTRICA,1731,Direct materials,28.74,0.00,28.74
Children and Young Peoples Services,Head of Childrens Social Care,085333,Coxhoe Satelite Home,Supplies and Services,324117,Provisions E324,09-Jun-2020,000009097400137,KRISPY KREME GATESHEAD,5441,Catering costs - provisions,8.40,0.00,8.40
Children and Young Peoples Services,Head of Childrens Social Care,085333,Coxhoe Satelite Home,Supplies and Services,324117,Provisions E324,09-Jun-2020,000009097400145,TESCO STORES 2371,5411,Catering costs - provisions,250.72,0.00,250.72
Children and Young Peoples Services,Head of Childrens Social Care,085333,Coxhoe Satelite Home,Supplies and Services,304999,Equipment and Materials,09-Jun-2020,000009097400149,HOME BARGAINS,5251,Misc equipment tools and materials,1.92,0.32,1.60
Children and Young Peoples Services,Head of Childrens Social Care,085333,Coxhoe Satelite Home,Supplies and Services,304999,Equipment and Materials,09-Jun-2020,000009097400149 - 1,HOME BARGAINS,5251,Misc equipment tools and materials,14.89,,14.89
Children and Young Peoples Services,Head of Childrens Social Care,085342,16 Hickstead Rise (previously 9 Cedar Ave),Supplies and Services,324117,Provisions E324,09-Jun-2020,000009097400151,TESCO STORES 2917,5411,Catering costs - provisions,32.40,0.00,32.40
Children and Young Peoples Services,Head of Childrens Social Care,085342,16 Hickstead Rise (previously 9 Cedar Ave),Supplies and Services,304240,Equipment and Materials,09-Jun-2020,000009097400155,AMZNMKTPLACE AMAZON.CO,5999,Equipment purchased from donations,16.87,0.00,16.87
Children and Young Peoples Services,Head of Childrens Social Care,085342,16 Hickstead Rise (previously 9 Cedar Ave),Premises,145023,Cleaning and Domestic Supplies,09-Jun-2020,000009097400157,POUNDSTRETCHER 340,5331,Cleaning and domestic materials,17.62,0.00,17.62
Children and Young Peoples Services,Head of Childrens Social Care,085342,16 Hickstead Rise (previously 9 Cedar Ave),Supplies and Services,324117,Provisions E324,09-Jun-2020,000009097400167,SAINSBURYS 2078,5411,Catering costs - provisions,3.00,0.00,3.00
Children and Young Peoples Services,Head of Childrens Social Care,085342,16 Hickstead Rise (previously 9 Cedar Ave),Premises,145023,Cleaning and Domestic Supplies,09-Jun-2020,000009097400173,B&M RETAIL LTD,5310,Cleaning and domestic materials,9.48,0.00,9.48
Neighbourhoods and Climate Change,Environmental Services,010301,C&G - North Grounds Maintenance,Supplies and Services,304221,Equipment and Materials,09-Jun-2020,000009097400211,HARELAW SAWMILL,5211,Direct materials,245.86,0.00,245.86
Children and Young Peoples Services,Head of Early Help Inclusion & Vulnerable Children.,085965,Barnard,Supplies and Services,304403,Equipment and Materials,09-Jun-2020,000009097400251,AMZNMKTPLACE AMAZON.CO,5999,Other consumables,92.25,15.45,76.80
Children and Young Peoples Services,Head of Early Help Inclusion & Vulnerable Children.,085965,Barnard,Supplies and Services,328041,Clothing uniforms and laundry E328,09-Jun-2020,000009097400253,FOOTASYLUM PLC,5691,Clothing uniforms and laundry,99.96,0.00,99.96
Children and Young Peoples Services,Head of Early Help Inclusion & Vulnerable Children.,085962,Aycliffe Secure - Durham,Supplies and Services,384999,Miscellaneous Expenses,09-Jun-2020,000009097400259,Amazon.co.uk 3P7PW3UX5,5969,Other expenses,17.97,3.00,14.97
Resources BK0010,Business Support,052986,CYPS - Locality and Operational Support,Supplies and Services,328041,Clothing uniforms and laundry E328,09-Jun-2020,000009097400263,ARGOS LTD,5310,Clothing uniforms and laundry,105.43,0.00,105.43
"Regeneration, Economy and Growth",Development and Housing,031576,B& B - Temp Accom,Supplies and Services,352001,Conference Expenses,09-Jun-2020,000009097400275,BUDGET H EXPRESS HOTEL,7011,Conferencesseminars fees etc,100.00,0.00,100.00
Children and Young Peoples Services,Head of Childrens Social Care,085333,Coxhoe Satelite Home,Supplies and Services,304403,Equipment and Materials,09-Jun-2020,000009097400281,AMZNMKTPLACE AMAZON.CO,5999,Other consumables,66.30,0.00,66.30
Children and Young Peoples Services,Head of Education and Skills,071802,Louisa Cent Nursery,Supplies and Services,324117,Provisions E324,09-Jun-2020,000009097400305,ICELAND,5411,Catering costs - provisions,2.18,0.00,2.18
"Regeneration, Economy and Growth",Development and Housing,031500,Housing Solutions - Core Team,Supplies and Services,304999,Equipment and Materials,09-Jun-2020,000009097400333,DUNCAN BELTON TA K,6513,Misc equipment tools and materials,350.00,0.00,350.00
"Regeneration, Economy and Growth",Transport and Contracted Services,032225,Bus Shelter Advertising,Supplies and Services,304403,Equipment and Materials,09-Jun-2020,000009097400351,AMZN Mktp UK GX4GU9H55,5942,Other consumables,102.29,17.05,85.24
Resources BK0010,Transformation,060230,Research & Public Health Intelligence,Supplies and Services,312009,Newspapers books and periodicals E312,09-Jun-2020,000009097400353,Amazon.co.uk FZ6AQ0Y65,5969,Newspapers books and periodicals,7.99,0.00,7.99
Resources BK0010,Transformation,060230,Research & Public Health Intelligence,Supplies and Services,312009,Newspapers books and periodicals E312,09-Jun-2020,000009097400357,Amazon.co.uk XJ6LO8RG5,5969,Newspapers books and periodicals,14.99,0.00,14.99
Resources BK0010,Transformation,060230,Research & Public Health Intelligence,Supplies and Services,312009,Newspapers books and periodicals E312,09-Jun-2020,000009097400361,Amazon.co.uk PB37X9BY5,5969,Newspapers books and periodicals,20.69,0.00,20.69
Resources BK0010,Transformation,060230,Research & Public Health Intelligence,Supplies and Services,312009,Newspapers books and periodicals E312,09-Jun-2020,000009097400363,Amazon.co.uk SN01Z6FK5,5969,Newspapers books and periodicals,7.99,0.00,7.99
Resources BK0010,Transformation,060230,Research & Public Health Intelligence,Supplies and Services,312009,Newspapers books and periodicals E312,09-Jun-2020,000009097400365,Amazon.co.uk 4F15U3S05,5969,Newspapers books and periodicals,79.36,0.00,79.36
Resources BK0010,Transformation,060230,Research & Public Health Intelligence,Supplies and Services,312009,Newspapers books and periodicals E312,09-Jun-2020,000009097400367,Amazon.co.uk 8G2X24D35,5969,Newspapers books and periodicals,14.99,0.00,14.99
Resources BK0010,Transformation,060230,Research & Public Health Intelligence,Supplies and Services,312009,Newspapers books and periodicals E312,09-Jun-2020,000009097400369,Amazon.co.uk 8W6V30BR5,5969,Newspapers books and periodicals,5.00,0.00,5.00
Children and Young Peoples Services,Head of Childrens Social Care,085341,High Etherley Satelite Home,Supplies and Services,304259,Equipment and Materials,09-Jun-2020,000009097400385,JD SPORTS INTERNET,5941,Equipment-purchase and rental,74.40,0.00,74.40
Adult and Health Services,Head of Adults,055309,Peterlee Pathways,Supplies and Services,324117,Provisions E324,09-Jun-2020,000009097400411,LIDL GB PETERLEE,5411,Catering costs - provisions,5.10,0.00,5.10
Resources BK0010,Business Support,065461,Business Support 065461,Supplies and Services,304403,Equipment and Materials,09-Jun-2020,000009099753847,AMZNMKTPLACE AMAZON.CO,5999,Other consumables,29.99,5.00,24.99
Children and Young Peoples Services,Head of Childrens Social Care,085333,Coxhoe Satelite Home,Supplies and Services,308011,Furniture,09-Jun-2020,000009099754319,IKEA LTD 143 GATESHEAD,5712,Furniture repair and replacement,23.50,0.00,23.50
Children and Young Peoples Services,Head of Early Help Inclusion & Vulnerable Children.,085956,Lumley,Supplies and Services,328041,Clothing uniforms and laundry E328,09-Jun-2020,000009102223221,SPORTSDIRECT.COM,5941,Clothing uniforms and laundry,41.06,0.00,41.06
"Regeneration, Economy and Growth",Business Durham CL0850,030689,Inward Investment and Aftercare,Supplies and Services,304999,Equipment and Materials,10-Jun-2020,000009097399643,MAILCHIMP MONTHLY,5968,Misc equipment tools and materials,2.22,0.00,2.22
"Regeneration, Economy and Growth",Business Durham CL0850,030689,Inward Investment and Aftercare,Supplies and Services,304999,Equipment and Materials,10-Jun-2020,000009099753829,VIMEO.COM,5968,Misc equipment tools and materials,82.80,0.00,82.80
"Regeneration, Economy and Growth",Business Durham CL0850,030689,Inward Investment and Aftercare,Third Party Payments,430100,Rendered by Private Contractors,10-Jun-2020,000009099753833,BLS monday.com,7399,Payments to sub-contractors,148.80,0.00,148.80
"Regeneration, Economy and Growth",Business Durham CL0850,030689,Inward Investment and Aftercare,Supplies and Services,342033,Computers and Communications,10-Jun-2020,000009099753835,KLIM TYPE FOUNDRY,7372,Computer hardware,118.05,0.00,118.05
Children and Young Peoples Services,Head of Education and Skills,071801,Selby Cottage Childcare Centre,Supplies and Services,324117,Provisions E324,10-Jun-2020,000009099753841,TESCO STORES 2371,5411,Catering costs - provisions,136.95,0.00,136.95
Resources BK0010,Business Support,065461,Business Support 065461,Employees,040149,Recruitment Instruction and Training,10-Jun-2020,000009099753851,CREATIVE_FED,8699,Training-all costs,-144.00,0.00,-144.00
Children and Young Peoples Services,Head of Education and Skills,075021,Youth Employment Initiative,Supplies and Services,364301,Grants to Voluntary Organisations,10-Jun-2020,000009099753875,TESCO ONLINE,5999,Hardship,14.99,0.00,14.99
Children and Young Peoples Services,Head of Childrens Social Care,085333,Coxhoe Satelite Home,Supplies and Services,304259,Equipment and Materials,10-Jun-2020,000009099753911,JD SPORTS INTERNET,5941,Equipment-purchase and rental,54.39,0.00,54.39
Children and Young Peoples Services,Head of Childrens Social Care,085624,Families First Crook,Supplies and Services,364301,Grants to Voluntary Organisations,10-Jun-2020,000009099753921,ARGOS LTD,5310,Hardship,93.95,0.00,93.95
"Regeneration, Economy and Growth",Development and Housing,031576,B& B - Temp Accom,Supplies and Services,364320,Grants to Voluntary Organisations,10-Jun-2020,000009099753933,BUDGET H EXPRESS HOTEL,7011,Accommodation assistance,445.00,0.00,445.00
"Regeneration, Economy and Growth",Development and Housing,031576,B& B - Temp Accom,Supplies and Services,352001,Conference Expenses,10-Jun-2020,000009099753955,BUDGET H EXPRESS HOTEL,7011,Conferencesseminars fees etc,89.00,14.83,74.17
"Regeneration, Economy and Growth",Development and Housing,031576,B& B - Temp Accom,Supplies and Services,352001,Conference Expenses,10-Jun-2020,000009099753959,BUDGET H EXPRESS HOTEL,7011,Conferencesseminars fees etc,356.00,59.33,296.67
Neighbourhoods and Climate Change,Environmental Services,010561,Fleet - Morrison Busty Fleet,Transport,215013,Running Costs of Vehicles,10-Jun-2020,000009099753973,DVLA VEHICLE TAX,9311,Vehicle Excise Duty (VED),267.50,0.00,267.50
Neighbourhoods and Climate Change,Environmental Services,010900,Fleet - Meadowfield Fleet,Transport,215013,Running Costs of Vehicles,10-Jun-2020,000009099753977,DVLA VEHICLE TAX,9311,Vehicle Excise Duty (VED),267.50,0.00,267.50
Neighbourhoods and Climate Change,Environmental Services,010551,Fleet - Chilton Fleet,Transport,215013,Running Costs of Vehicles,10-Jun-2020,000009099753981,DVLA VEHICLE TAX,9311,Vehicle Excise Duty (VED),202.00,0.00,202.00
Neighbourhoods and Climate Change,Environmental Services,010900,Fleet - Meadowfield Fleet,Transport,215013,Running Costs of Vehicles,10-Jun-2020,000009099753985,DVLA VEHICLE TAX,9311,Vehicle Excise Duty (VED),267.50,0.00,267.50
Neighbourhoods and Climate Change,Environmental Services,010864,Fleet - Hackworth Road Fleet,Transport,215013,Running Costs of Vehicles,10-Jun-2020,000009099753989,DVLA VEHICLE TAX,9311,Vehicle Excise Duty (VED),202.00,0.00,202.00
Neighbourhoods and Climate Change,Environmental Services,010900,Fleet - Meadowfield Fleet,Transport,215013,Running Costs of Vehicles,10-Jun-2020,000009099753993,DVLA VEHICLE TAX,9311,Vehicle Excise Duty (VED),202.00,0.00,202.00
Neighbourhoods and Climate Change,Environmental Services,010900,Fleet - Meadowfield Fleet,Transport,215013,Running Costs of Vehicles,10-Jun-2020,000009099753997,DVLA VEHICLE TAX,9311,Vehicle Excise Duty (VED),267.50,0.00,267.50
Neighbourhoods and Climate Change,Environmental Services,010900,Fleet - Meadowfield Fleet,Transport,215013,Running Costs of Vehicles,10-Jun-2020,000009099754001,DVLA VEHICLE TAX,9311,Vehicle Excise Duty (VED),267.50,0.00,267.50
Neighbourhoods and Climate Change,Environmental Services,010900,Fleet - Meadowfield Fleet,Transport,215013,Running Costs of Vehicles,10-Jun-2020,000009099754005,DVLA VEHICLE TAX,9311,Vehicle Excise Duty (VED),617.50,0.00,617.50
Neighbourhoods and Climate Change,Environmental Services,010551,Fleet - Chilton Fleet,Transport,215013,Running Costs of Vehicles,10-Jun-2020,000009099754007,DVLA VEHICLE TAX,9311,Vehicle Excise Duty (VED),617.50,0.00,617.50
Neighbourhoods and Climate Change,Environmental Services,010900,Fleet - Meadowfield Fleet,Transport,215013,Running Costs of Vehicles,10-Jun-2020,000009099754011,DVLA VEHICLE TAX,9311,Vehicle Excise Duty (VED),202.00,0.00,202.00
Neighbourhoods and Climate Change,Environmental Services,010551,Fleet - Chilton Fleet,Transport,215013,Running Costs of Vehicles,10-Jun-2020,000009099754015,DVLA VEHICLE TAX,9311,Vehicle Excise Duty (VED),202.50,0.00,202.50
Neighbourhoods and Climate Change,Environmental Services,010551,Fleet - Chilton Fleet,Transport,215013,Running Costs of Vehicles,10-Jun-2020,000009099754017,DVLA VEHICLE TAX,9311,Vehicle Excise Duty (VED),267.50,0.00,267.50
Neighbourhoods and Climate Change,Environmental Services,010864,Fleet - Hackworth Road Fleet,Transport,215013,Running Costs of Vehicles,10-Jun-2020,000009099754021,DVLA VEHICLE TAX,9311,Vehicle Excise Duty (VED),167.50,0.00,167.50
Neighbourhoods and Climate Change,Environmental Services,010561,Fleet - Morrison Busty Fleet,Transport,215013,Running Costs of Vehicles,10-Jun-2020,000009099754025,DVLA VEHICLE TAX,9311,Vehicle Excise Duty (VED),267.50,0.00,267.50
Neighbourhoods and Climate Change,Environmental Services,010864,Fleet - Hackworth Road Fleet,Transport,215013,Running Costs of Vehicles,10-Jun-2020,000009099754029,DVLA VEHICLE TAX,9311,Vehicle Excise Duty (VED),167.50,0.00,167.50
Neighbourhoods and Climate Change,Environmental Services,010900,Fleet - Meadowfield Fleet,Transport,215013,Running Costs of Vehicles,10-Jun-2020,000009099754033,DVLA VEHICLE TAX,9311,Vehicle Excise Duty (VED),207.50,0.00,207.50
Neighbourhoods and Climate Change,Environmental Services,010561,Fleet - Morrison Busty Fleet,Transport,215013,Running Costs of Vehicles,10-Jun-2020,000009099754035,DVLA VEHICLE TAX,9311,Vehicle Excise Duty (VED),167.50,0.00,167.50
Neighbourhoods and Climate Change,Environmental Services,010551,Fleet - Chilton Fleet,Transport,215013,Running Costs of Vehicles,10-Jun-2020,000009099754039,DVLA VEHICLE TAX,9311,Vehicle Excise Duty (VED),617.50,0.00,617.50
Neighbourhoods and Climate Change,Environmental Services,010900,Fleet - Meadowfield Fleet,Transport,215013,Running Costs of Vehicles,10-Jun-2020,000009099754041,DVLA VEHICLE TAX,9311,Vehicle Excise Duty (VED),267.50,0.00,267.50
Neighbourhoods and Climate Change,Environmental Services,010900,Fleet - Meadowfield Fleet,Transport,215013,Running Costs of Vehicles,10-Jun-2020,000009099754045,DVLA VEHICLE TAX,9311,Vehicle Excise Duty (VED),267.50,0.00,267.50
Neighbourhoods and Climate Change,Environmental Services,010900,Fleet - Meadowfield Fleet,Transport,215013,Running Costs of Vehicles,10-Jun-2020,000009099754049,DVLA VEHICLE TAX,9311,Vehicle Excise Duty (VED),617.50,0.00,617.50
Neighbourhoods and Climate Change,Environmental Services,010551,Fleet - Chilton Fleet,Transport,215013,Running Costs of Vehicles,10-Jun-2020,000009099754051,DVLA VEHICLE TAX,9311,Vehicle Excise Duty (VED),617.50,0.00,617.50
Neighbourhoods and Climate Change,Environmental Services,010900,Fleet - Meadowfield Fleet,Transport,215013,Running Costs of Vehicles,10-Jun-2020,000009099754055,DVLA VEHICLE TAX,9311,Vehicle Excise Duty (VED),617.50,0.00,617.50
Neighbourhoods and Climate Change,Environmental Services,010551,Fleet - Chilton Fleet,Transport,215013,Running Costs of Vehicles,10-Jun-2020,000009099754057,DVLA VEHICLE TAX,9311,Vehicle Excise Duty (VED),617.50,0.00,617.50
Neighbourhoods and Climate Change,Environmental Services,010551,Fleet - Chilton Fleet,Transport,215013,Running Costs of Vehicles,10-Jun-2020,000009099754061,DVLA VEHICLE TAX,9311,Vehicle Excise Duty (VED),617.50,0.00,617.50
Neighbourhoods and Climate Change,Environmental Services,010551,Fleet - Chilton Fleet,Transport,215013,Running Costs of Vehicles,10-Jun-2020,000009099754063,DVLA VEHICLE TAX,9311,Vehicle Excise Duty (VED),617.50,0.00,617.50
Neighbourhoods and Climate Change,Environmental Services,010551,Fleet - Chilton Fleet,Transport,215013,Running Costs of Vehicles,10-Jun-2020,000009099754067,DVLA VEHICLE TAX,9311,Vehicle Excise Duty (VED),617.50,0.00,617.50
Neighbourhoods and Climate Change,Environmental Services,010864,Fleet - Hackworth Road Fleet,Transport,215013,Running Costs of Vehicles,10-Jun-2020,000009099754069,DVLA VEHICLE TAX,9311,Vehicle Excise Duty (VED),617.50,0.00,617.50
Resources BK0010,Digital and Customer Services,065487,ICT Telephony Recharges,Supplies and Services,372009,Subscriptions E372,10-Jun-2020,000009099754105,NOMINET UK,7392,Subscriptions 372009,4.68,0.78,3.90
Resources BK0010,Digital and Customer Services,065335,School Services - Implementations,Supplies and Services,372009,Subscriptions E372,10-Jun-2020,000009099754111,NOMINET UK,7392,Subscriptions 372009,23.40,3.90,19.50
Children and Young Peoples Services,Head of Education and Skills,071732,Dean Bank Childcare,Supplies and Services,324117,Provisions E324,10-Jun-2020,000009099754123,CO-OP GROUP 010503,5411,Catering costs - provisions,7.10,0.00,7.10
"Regeneration, Economy and Growth",Development and Housing,031500,Housing Solutions - Core Team,Supplies and Services,352001,Conference Expenses,10-Jun-2020,000009099754133,AYCLIFFE BIZ,7011,Conferencesseminars fees etc,38.00,0.00,38.00
Children and Young Peoples Services,Head of Education and Skills,071903,Early Years Sustainability,Supplies and Services,304403,Equipment and Materials,10-Jun-2020,000009099754147,FAIRY DUST TEACHING,5734,Other consumables,44.86,0.00,44.86
"Regeneration, Economy and Growth",Development and Housing,031500,Housing Solutions - Core Team,Supplies and Services,352001,Conference Expenses,10-Jun-2020,000009099754155,BUDGET H EXPRESS HOTEL,7011,Conferencesseminars fees etc,445.00,0.00,445.00
"Regeneration, Economy and Growth",Development and Housing,031500,Housing Solutions - Core Team,Supplies and Services,352001,Conference Expenses,10-Jun-2020,000009099754173,BUDGET H EXPRESS HOTEL,7011,Conferencesseminars fees etc,50.00,8.33,41.67
Neighbourhoods and Climate Change,Environmental Services,010301,C&G - North Grounds Maintenance,Supplies and Services,304999,Equipment and Materials,10-Jun-2020,000009099754191,J G PAXTON SONS,5072,Misc equipment tools and materials,71.42,11.90,59.52
Neighbourhoods and Climate Change,Environmental Services,010301,C&G - North Grounds Maintenance,Supplies and Services,304221,Equipment and Materials,10-Jun-2020,000009099754195,AZTEC CHEMICALS LTD,5169,Direct materials,302.40,50.40,252.00
Children and Young Peoples Services,Head of Childrens Social Care,085334,West Rainton Satelite Home,Supplies and Services,304403,Equipment and Materials,10-Jun-2020,000009099754205,AMZNMktplace,5999,Other consumables,57.83,0.00,57.83
Resources BK0010,Business Support,052986,CYPS - Locality and Operational Support,Supplies and Services,384999,Miscellaneous Expenses,10-Jun-2020,000009099754213,Amazon.co.uk 326JI1255,5969,Other expenses,9.62,0.00,9.62
Children and Young Peoples Services,Head of Childrens Social Care,085626,Families First Shildon/Chilton,Supplies and Services,364301,Grants to Voluntary Organisations,10-Jun-2020,000009099754267,TESCO ONLINE,5999,Hardship,14.99,0.00,14.99
Children and Young Peoples Services,Head of Early Help Inclusion & Vulnerable Children.,088108,Spennymoor & Shildon 0-19 Targeted Family Support,Supplies and Services,304259,Equipment and Materials,10-Jun-2020,000009099754269,AMZNMktplace,5999,Equipment-purchase and rental,19.95,3.33,16.62
Adult and Health Services,Head of Adults,055643,Hawthorn House LD Respite Unit,Supplies and Services,324117,Provisions E324,10-Jun-2020,000009099754311,ASDA STORES LTD 4313,5411,Catering costs - provisions,11.00,0.00,11.00
Adult and Health Services,Head of Adults,055643,Hawthorn House LD Respite Unit,Supplies and Services,324117,Provisions E324,10-Jun-2020,000009099754315,WILKO RETAIL LIMITED,5399,Catering costs - provisions,29.00,0.00,29.00
Adult and Health Services,Head of Adults,055643,Hawthorn House LD Respite Unit,Supplies and Services,324117,Provisions E324,10-Jun-2020,000009099754341,JR HOLLAND FOODSERVICE,5499,Catering costs - provisions,16.36,0.00,16.36
Adult and Health Services,Head of Adults,055643,Hawthorn House LD Respite Unit,Supplies and Services,324117,Provisions E324,10-Jun-2020,000009099754343,JR HOLLAND FOODSERVICE,5499,Catering costs - provisions,1.57,0.00,1.57
Adult and Health Services,Head of Adults,055643,Hawthorn House LD Respite Unit,Supplies and Services,324117,Provisions E324,10-Jun-2020,000009099754345,JR HOLLAND FOODSERVICE,5499,Catering costs - provisions,6.00,0.00,6.00
Children and Young Peoples Services,Head of Early Help Inclusion & Vulnerable Children.,088103,Consett & Stanley 0-19 Community Family Hub,Supplies and Services,340001,Postages E340,10-Jun-2020,000009099754359,POST OFFICE COUNTER,9402,Postages,2.06,0.00,2.06
Resources BK0010,Digital and Customer Services,065335,School Services - Implementations,Supplies and Services,304259,Equipment and Materials,10-Jun-2020,000009099754365,WWW.TOOLSTATION.COM,5251,Equipment-purchase and rental,21.99,3.67,18.32
Resources BK0010,Business Support,052986,CYPS - Locality and Operational Support,Supplies and Services,324117,Provisions E324,10-Jun-2020,000009099754369,WWW.ALDI.CO.UK,5411,Catering costs - provisions,74.50,0.00,74.50
Children and Young Peoples Services,Head of Childrens Social Care,085334,West Rainton Satelite Home,Supplies and Services,384999,Miscellaneous Expenses,10-Jun-2020,000009099754375,SMYTHSTOYS.COM,5945,Other expenses,29.99,0.00,29.99
Resources BK0010,Legal & Democratic Services,067953,Coroner County Durham & Darlington,Supplies and Services,384199,Miscellaneous Expenses,10-Jun-2020,000009099754407,JOHN BLENKIRON & SONS,7261,Other hired and contracted services,60.00,0.00,60.00
Resources BK0010,Business Support,052986,CYPS - Locality and Operational Support,Supplies and Services,304259,Equipment and Materials,10-Jun-2020,000009099754411,DARLINGTON BC INTERNET,9399,Equipment-purchase and rental,11.00,0.00,11.00
"Regeneration, Economy and Growth",Development and Housing,031576,B& B - Temp Accom,Supplies and Services,352001,Conference Expenses,10-Jun-2020,000009099754419,BUDGET H EXPRESS HOTEL,7011,Conferencesseminars fees etc,250.00,0.00,250.00
"Regeneration, Economy and Growth",Development and Housing,031576,B& B - Temp Accom,Supplies and Services,352001,Conference Expenses,10-Jun-2020,000009099754423,HI NEWCASTLE WASHI,7011,Conferencesseminars fees etc,130.00,0.00,130.00
"Regeneration, Economy and Growth",Development and Housing,031576,B& B - Temp Accom,Supplies and Services,352001,Conference Expenses,10-Jun-2020,000009099754425,HI NEWCASTLE WASHI,7011,Conferencesseminars fees etc,130.00,0.00,130.00
Neighbourhoods and Climate Change,Environmental Services,010301,C&G - North Grounds Maintenance,Supplies and Services,304221,Equipment and Materials,10-Jun-2020,000009099754429,WWW.ARCO.CO.UK,5085,Direct materials,78.52,0.00,78.52
Children and Young Peoples Services,Head of Childrens Social Care,085333,Coxhoe Satelite Home,Supplies and Services,304403,Equipment and Materials,10-Jun-2020,000009099754433,AMZNMktplace,5999,Other consumables,36.99,0.00,36.99
Children and Young Peoples Services,Head of Childrens Social Care,085352,Tow Law CU,Supplies and Services,308011,Furniture,10-Jun-2020,000009099754449,IKEA LTD 143 GATESHEAD,5712,Furniture repair and replacement,179.00,0.00,179.00
Children and Young Peoples Services,Head of Childrens Social Care,085352,Tow Law CU,Supplies and Services,308011,Furniture,10-Jun-2020,000009099754451,IKEA LTD 143 GATESHEAD,5712,Furniture repair and replacement,5.65,0.00,5.65
Children and Young Peoples Services,Head of Education and Skills,071802,Louisa Cent Nursery,Supplies and Services,324117,Provisions E324,10-Jun-2020,000009099754461,ASDA SUPERSTORE,5411,Catering costs - provisions,28.78,0.00,28.78
"Regeneration, Economy and Growth",Development and Housing,031500,Housing Solutions - Core Team,Supplies and Services,304999,Equipment and Materials,10-Jun-2020,000009099754483,DUNCAN BELTON TA K,6513,Misc equipment tools and materials,350.00,0.00,350.00
"Regeneration, Economy and Growth",Development and Housing,030776,LINKCD Flexible Fund,Supplies and Services,304259,Equipment and Materials,10-Jun-2020,000009099754507,Durham County CNCL,9399,Equipment-purchase and rental,11.00,0.00,11.00
"Regeneration, Economy and Growth",Transport and Contracted Services,032225,Bus Shelter Advertising,Supplies and Services,304403,Equipment and Materials,10-Jun-2020,000009099754521,AMZNMktplace,5999,Other consumables,33.99,5.67,28.32
Resources BK0010,Transformation,060230,Research & Public Health Intelligence,Supplies and Services,312009,Newspapers books and periodicals E312,10-Jun-2020,000009099754525,AMZNMktplace,5999,Newspapers books and periodicals,22.29,0.00,22.29
"Regeneration, Economy and Growth",Transport and Contracted Services,032225,Bus Shelter Advertising,Supplies and Services,304403,Equipment and Materials,10-Jun-2020,000009099754527,AMZN Mktp UK HI2N05K25,5942,Other consumables,59.99,10.00,49.99
Adult and Health Services,Head of Adults,055310,Positive Journeys (Tudhoe),Supplies and Services,328041,Clothing uniforms and laundry E328,10-Jun-2020,000009099754529,POUNDSTRETCHER 396,5331,Clothing uniforms and laundry,6.72,0.00,6.72
Adult and Health Services,Head of Adults,055310,Positive Journeys (Tudhoe),Supplies and Services,324117,Provisions E324,10-Jun-2020,000009099754531,LIDL GB PETERLEE,5411,Catering costs - provisions,19.31,0.00,19.31
Children and Young Peoples Services,Head of Childrens Social Care,085341,High Etherley Satelite Home,Supplies and Services,304403,Equipment and Materials,10-Jun-2020,000009099754557,AMZNMktplace,5999,Other consumables,43.98,0.00,43.98
Children and Young Peoples Services,Head of Childrens Social Care,085333,Coxhoe Satelite Home,Supplies and Services,328041,Clothing uniforms and laundry E328,10-Jun-2020,000009099754611,MATALAN,5691,Clothing uniforms and laundry,77.50,0.00,77.50
Children and Young Peoples Services,Head of Childrens Social Care,085333,Coxhoe Satelite Home,Supplies and Services,324117,Provisions E324,10-Jun-2020,000009099754615,B&M 010 - MACINTYRE,5399,Catering costs - provisions,17.96,0.00,17.96
Children and Young Peoples Services,Head of Childrens Social Care,085333,Coxhoe Satelite Home,Supplies and Services,308011,Furniture,10-Jun-2020,000009099754619,DUNELM LTD,5714,Furniture repair and replacement,56.00,0.00,56.00
Children and Young Peoples Services,Head of Childrens Social Care,085333,Coxhoe Satelite Home,Supplies and Services,328041,Clothing uniforms and laundry E328,10-Jun-2020,000009099754623,The Range,5311,Clothing uniforms and laundry,12.97,0.00,12.97
Children and Young Peoples Services,Head of Childrens Social Care,085333,Coxhoe Satelite Home,Supplies and Services,328041,Clothing uniforms and laundry E328,10-Jun-2020,000009099754627,The Range,5311,Clothing uniforms and laundry,17.64,0.00,17.64
Children and Young Peoples Services,Head of Childrens Social Care,085341,High Etherley Satelite Home,Supplies and Services,304403,Equipment and Materials,10-Jun-2020,000009102223421,AMZNMKTPLACE AMAZON.CO,5999,Other consumables,48.98,0.00,48.98
"Regeneration, Economy and Growth",Business Durham CL0850,030689,Inward Investment and Aftercare,Supplies and Services,342033,Computers and Communications,11-Jun-2020,000009099753837,KLIM TYPE FOUNDRY,7372,Computer hardware,3.25,0.00,3.25
Children and Young Peoples Services,Head of Childrens Social Care,085332,Middlestone Moor CU,Supplies and Services,324117,Provisions E324,11-Jun-2020,000009099753885,TESCO STORES 2371,5411,Catering costs - provisions,132.31,0.00,132.31
Children and Young Peoples Services,Head of Education and Skills,071903,Early Years Sustainability,Supplies and Services,304403,Equipment and Materials,11-Jun-2020,000009099754151,FAIRY DUST TEACHING,5734,Other consumables,1.23,0.00,1.23
Children and Young Peoples Services,Head of Childrens Social Care,085341,High Etherley Satelite Home,Supplies and Services,324117,Provisions E324,11-Jun-2020,000009102222483,TESCO STORES 6329,5411,Catering costs - provisions,7.30,0.00,7.30
Children and Young Peoples Services,Head of Childrens Social Care,085341,High Etherley Satelite Home,Supplies and Services,324117,Provisions E324,11-Jun-2020,000009102222489,TESCO STORES 6329,5411,Catering costs - provisions,7.05,0.00,7.05
"Regeneration, Economy and Growth",Development and Housing,031576,B& B - Temp Accom,Supplies and Services,352001,Conference Expenses,11-Jun-2020,000009102222511,GRAINGER APARTMENTS NE,7011,Conferencesseminars fees etc,100.00,16.67,83.33
Resources BK0010,Business Support,065461,Business Support 065461,Supplies and Services,304403,Equipment and Materials,11-Jun-2020,000009102222515,AMZNMktplace,5999,Other consumables,51.96,8.68,43.28
Children and Young Peoples Services,Head of Childrens Social Care,085501,Child Care Cases Legal Expenses,Supplies and Services,304403,Equipment and Materials,11-Jun-2020,000009102222527,GEN REGISTER OFFICE,9399,Other consumables,11.00,0.00,11.00
Children and Young Peoples Services,Head of Childrens Social Care,085501,Child Care Cases Legal Expenses,Supplies and Services,304403,Equipment and Materials,11-Jun-2020,000009102222533,GEN REGISTER OFFICE,9399,Other consumables,11.00,0.00,11.00
Neighbourhoods and Climate Change,Environmental Services,031239,North Pennines - Carbon Connect,Supplies and Services,304403,Equipment and Materials,11-Jun-2020,000009102222553,WWW.HANNAINSTRUMENTS.C,5065,Other consumables,21.90,3.65,18.25
Adult and Health Services,Head of Adults,055302,Durham Pathways,Supplies and Services,304403,Equipment and Materials,11-Jun-2020,000009102222565,AMZNMktplace,5999,Other consumables,87.30,14.55,72.75
Adult and Health Services,Head of Adults,055302,Durham Pathways,Supplies and Services,304403,Equipment and Materials,11-Jun-2020,000009102222565 - 1,AMZNMktplace,5999,Other consumables,0.07,,0.07
Neighbourhoods and Climate Change,Environmental Services,010383,C&G - South Street Cleansing,Supplies and Services,304999,Equipment and Materials,11-Jun-2020,000009102222573,Snowballs,5251,Misc equipment tools and materials,58.31,9.72,48.59
Children and Young Peoples Services,Head of Childrens Social Care,085341,High Etherley Satelite Home,Supplies and Services,324117,Provisions E324,11-Jun-2020,000009102222587,TESCO STORES 2371,5411,Catering costs - provisions,47.38,0.00,47.38
Children and Young Peoples Services,Head of Childrens Social Care,085341,High Etherley Satelite Home,Supplies and Services,304259,Equipment and Materials,11-Jun-2020,000009102222595,M and M Direct Ltd,5941,Equipment-purchase and rental,103.92,0.00,103.92
Children and Young Peoples Services,Head of Childrens Social Care,085380,Operations Manager LAC Resources,Supplies and Services,352001,Conference Expenses,11-Jun-2020,000009102222677,WWW.PLAWSWORTHAPARTHOT,7011,Conferencesseminars fees etc,266.00,0.00,266.00
Children and Young Peoples Services,Head of Childrens Social Care,085332,Middlestone Moor CU,Supplies and Services,324117,Provisions E324,11-Jun-2020,000009102222693,STARBUCKS THINFORD,5499,Catering costs - provisions,26.10,0.00,26.10
Children and Young Peoples Services,Head of Childrens Social Care,085332,Middlestone Moor CU,Supplies and Services,328041,Clothing uniforms and laundry E328,11-Jun-2020,000009102222723,SP ISAWITFIRST.COM,5691,Clothing uniforms and laundry,-19.00,0.00,-19.00
Children and Young Peoples Services,Head of Early Help Inclusion & Vulnerable Children.,085962,Aycliffe Secure - Durham,Supplies and Services,328041,Clothing uniforms and laundry E328,11-Jun-2020,000009102222753,Mainline Menswear Ltd,5611,Clothing uniforms and laundry,92.45,0.00,92.45
Children and Young Peoples Services,Head of Early Help Inclusion & Vulnerable Children.,085965,Barnard,Supplies and Services,324117,Provisions E324,11-Jun-2020,000009102222759,TESCO STORES 6329,5411,Catering costs - provisions,82.95,0.00,82.95
Children and Young Peoples Services,Head of Early Help Inclusion & Vulnerable Children.,085962,Aycliffe Secure - Durham,Supplies and Services,304403,Equipment and Materials,11-Jun-2020,000009102222765,AMZNMktplace,5999,Other consumables,78.08,13.02,65.06
Children and Young Peoples Services,Head of Early Help Inclusion & Vulnerable Children.,085962,Aycliffe Secure - Durham,Supplies and Services,304259,Equipment and Materials,11-Jun-2020,000009102222773,JD SPORTS INTERNET,5941,Equipment-purchase and rental,110.00,0.00,110.00
"Regeneration, Economy and Growth",Development and Housing,031576,B& B - Temp Accom,Supplies and Services,352001,Conference Expenses,11-Jun-2020,000009102222817,HI NEWCASTLE WASHI,7011,Conferencesseminars fees etc,65.00,0.00,65.00
Children and Young Peoples Services,Head of Education and Skills,071732,Dean Bank Childcare,Supplies and Services,304403,Equipment and Materials,11-Jun-2020,000009102222857,AMZNMktplace,5999,Other consumables,79.81,13.32,66.49
"Regeneration, Economy and Growth",Development and Housing,031500,Housing Solutions - Core Team,Supplies and Services,352001,Conference Expenses,11-Jun-2020,000009102222861,GRAINGER HOTEL,7011,Conferencesseminars fees etc,300.00,0.00,300.00
"Regeneration, Economy and Growth",Development and Housing,031500,Housing Solutions - Core Team,Supplies and Services,352001,Conference Expenses,11-Jun-2020,000009102222867,GRAINGER HOTEL,7011,Conferencesseminars fees etc,250.00,0.00,250.00
Resources BK0010,Business Support,052986,CYPS - Locality and Operational Support,Supplies and Services,304259,Equipment and Materials,11-Jun-2020,000009102222939,MIDDLESBROUGH COUNCIL,9399,Equipment-purchase and rental,-11.00,0.00,-11.00
"Regeneration, Economy and Growth",Development and Housing,031576,B& B - Temp Accom,Supplies and Services,364320,Grants to Voluntary Organisations,11-Jun-2020,000009102222955,BUDGET H EXPRESS HOTEL,7011,Accommodation assistance,89.00,14.83,74.17
Children and Young Peoples Services,Childrens Services Operational Support,052932,Childrens Social Care,Employees,040149,Recruitment Instruction and Training,11-Jun-2020,000009102222975,EUREKA!,8999,Training-all costs,"1,500.00",250.00,1250.00
Children and Young Peoples Services,Head of Early Help Inclusion & Vulnerable Children.,079034,SEND LOOKED AFTER AND VULNERABLE CASEWORK TEAM 1,Supplies and Services,340001,Postages E340,11-Jun-2020,000009102222995,THE POST OFFICE,9402,Postages,96.99,0.00,96.99
"Regeneration, Economy and Growth",Development and Housing,031500,Housing Solutions - Core Team,Supplies and Services,352001,Conference Expenses,11-Jun-2020,000009102223013,GRAINGER HOTEL,7011,Conferencesseminars fees etc,450.00,75.00,375.00
Neighbourhoods and Climate Change,Environmental Services,010367,C&G - South Grounds Maintenance,Supplies and Services,304221,Equipment and Materials,11-Jun-2020,000009102223069,CARRS BILLINGTON SPENN,5599,Direct materials,55.14,9.19,45.95
Neighbourhoods and Climate Change,Environmental Services,010367,C&G - South Grounds Maintenance,Supplies and Services,304999,Equipment and Materials,11-Jun-2020,000009102223073,Snowballs,5251,Misc equipment tools and materials,55.20,9.20,46.00
Children and Young Peoples Services,Head of Childrens Social Care,085342,16 Hickstead Rise (previously 9 Cedar Ave),Supplies and Services,332048,Printing Stationery and Gen Off Exps,11-Jun-2020,000009102223121,AMZNMktplace,5999,Administrative stationery etc,9.99,0.00,9.99
Children and Young Peoples Services,COVID19 - Children and Young Peoples Services,091002,COVID19 - Children and Young Peoples Services,Supplies and Services,304999,Equipment and Materials,11-Jun-2020,000009102223165,HOME BARGAINS,5251,Misc equipment tools and materials,4.58,0.76,3.82
Children and Young Peoples Services,Head of Childrens Social Care,085342,16 Hickstead Rise (previously 9 Cedar Ave),Supplies and Services,384999,Miscellaneous Expenses,11-Jun-2020,000009102223185,Amazon.co.uk K32TX5TG5,5969,Other expenses,7.25,0.00,7.25
Children and Young Peoples Services,Head of Childrens Social Care,085334,West Rainton Satelite Home,Supplies and Services,324117,Provisions E324,11-Jun-2020,000009102223197,THE APPLE ORCHARD,5411,Catering costs - provisions,15.49,0.00,15.49
Children and Young Peoples Services,Head of Early Help Inclusion & Vulnerable Children.,085954,Walworth,Supplies and Services,328041,Clothing uniforms and laundry E328,11-Jun-2020,000009102223205,FOOTASYLUM PLC,5691,Clothing uniforms and laundry,24.99,0.00,24.99
Children and Young Peoples Services,Head of Early Help Inclusion & Vulnerable Children.,085956,Lumley,Supplies and Services,304649,Equipment and Materials,11-Jun-2020,000009102223213,AMZNMktplace,5999,Toys,64.99,10.83,54.16
Children and Young Peoples Services,Head of Early Help Inclusion & Vulnerable Children.,085956,Lumley,Supplies and Services,304649,Equipment and Materials,11-Jun-2020,000009102223219,ARGOS LTD,5310,Toys,21.94,0.00,21.94
Resources BK0010,Business Support,052986,CYPS - Locality and Operational Support,Supplies and Services,304259,Equipment and Materials,11-Jun-2020,000009102223237,WWW.DURHAM.GOV.UK,9399,Equipment-purchase and rental,11.00,0.00,11.00
"Regeneration, Economy and Growth",Transport and Contracted Services,031701,Care Connect All Localities,Supplies and Services,304259,Equipment and Materials,11-Jun-2020,000009102223251,AMZNMktplace,5999,Equipment-purchase and rental,12.99,2.17,10.82
"Regeneration, Economy and Growth",Development and Housing,031576,B& B - Temp Accom,Supplies and Services,352001,Conference Expenses,11-Jun-2020,000009102223275,BUDGET H EXPRESS HOTEL,7011,Conferencesseminars fees etc,356.00,0.00,356.00
"Regeneration, Economy and Growth",Development and Housing,031576,B& B - Temp Accom,Supplies and Services,352001,Conference Expenses,11-Jun-2020,000009102223281,BUDGET H EXPRESS HOTEL,7011,Conferencesseminars fees etc,356.00,0.00,356.00
"Regeneration, Economy and Growth",Development and Housing,031576,B& B - Temp Accom,Supplies and Services,352001,Conference Expenses,11-Jun-2020,000009102223287,BUDGET H EXPRESS HOTEL,7011,Conferencesseminars fees etc,445.00,0.00,445.00
Neighbourhoods and Climate Change,Environmental Services,010301,C&G - North Grounds Maintenance,Third Party Payments,430100,Rendered by Private Contractors,11-Jun-2020,000009102223297,JOHN WARREN (ANIMAL BY,7399,Payments to sub-contractors,12.00,0.00,12.00
Children and Young Peoples Services,Head of Childrens Social Care,085352,Tow Law CU,Supplies and Services,312009,Newspapers books and periodicals E312,11-Jun-2020,000009102223303,AMZN Mktp UK 3P8ZJ5005,5942,Newspapers books and periodicals,18.81,3.14,15.67
Children and Young Peoples Services,Head of Childrens Social Care,085332,Middlestone Moor CU,Supplies and Services,304403,Equipment and Materials,11-Jun-2020,000009102223331,KASHS OFF LICENCE,5921,Other consumables,2.60,0.00,2.60
Children and Young Peoples Services,Head of Early Help Inclusion & Vulnerable Children.,088107,Ferryhill & Newton Aycliffe 0-19 Community Family Hub,Supplies and Services,304403,Equipment and Materials,11-Jun-2020,000009102223341,AMZNMktplace,5999,Other consumables,27.15,4.53,22.62
Children and Young Peoples Services,Head of Early Help Inclusion & Vulnerable Children.,088107,Ferryhill & Newton Aycliffe 0-19 Community Family Hub,Supplies and Services,304403,Equipment and Materials,11-Jun-2020,000009102223353,AMZNMktplace,5999,Other consumables,35.64,5.94,29.70
Children and Young Peoples Services,Head of Early Help Inclusion & Vulnerable Children.,088107,Ferryhill & Newton Aycliffe 0-19 Community Family Hub,Supplies and Services,304403,Equipment and Materials,11-Jun-2020,000009102223353 - 1,AMZNMktplace,5999,Other consumables,0.03,,0.03
Children and Young Peoples Services,Head of Early Help Inclusion & Vulnerable Children.,088107,Ferryhill & Newton Aycliffe 0-19 Community Family Hub,Supplies and Services,304403,Equipment and Materials,11-Jun-2020,000009102223359,AMZNMktplace,5999,Other consumables,19.85,3.31,16.54
Children and Young Peoples Services,Head of Early Help Inclusion & Vulnerable Children.,088107,Ferryhill & Newton Aycliffe 0-19 Community Family Hub,Supplies and Services,304403,Equipment and Materials,11-Jun-2020,000009102223365,AMZNMktplace,5999,Other consumables,7.90,1.32,6.58
Neighbourhoods and Climate Change,Environmental Services,031200,North Pennines Core,Supplies and Services,304403,Equipment and Materials,11-Jun-2020,000009102223375,TIMPSON LTD,5999,Other consumables,44.00,0.00,44.00
Children and Young Peoples Services,Head of Childrens Social Care,085341,High Etherley Satelite Home,Supplies and Services,304403,Equipment and Materials,11-Jun-2020,000009102223423,AMZNMktplace,5999,Other consumables,9.99,0.00,9.99
Neighbourhoods and Climate Change,Partnerships & Community Engagement Div.,060472,Syrian Vulnerable Persons Scheme,Supplies and Services,384999,Miscellaneous Expenses,11-Jun-2020,000009102223469,B & Q 1162,5200,Other expenses,-96.00,0.00,-96.00
Neighbourhoods and Climate Change,Partnerships & Community Engagement Div.,060472,Syrian Vulnerable Persons Scheme,Supplies and Services,384999,Miscellaneous Expenses,11-Jun-2020,000009102223475,B & Q 1162,5200,Other expenses,-144.00,0.00,-144.00
"Regeneration, Economy and Growth",Development and Housing,030776,LINKCD Flexible Fund,Supplies and Services,304403,Equipment and Materials,11-Jun-2020,000009105363283,AMZNMKTPLACE AMAZON.CO,5999,Other consumables,127.98,21.33,106.65
Children and Young Peoples Services,Head of Early Help Inclusion & Vulnerable Children.,085957,Secure Management,Supplies and Services,304403,Equipment and Materials,11-Jun-2020,000009105364397,AMZNMKTPLACE AMAZON.CO,5999,Other consumables,73.98,12.34,61.64
Children and Young Peoples Services,Head of Childrens Social Care,085341,High Etherley Satelite Home,Supplies and Services,324117,Provisions E324,12-Jun-2020,000009105362083,774 026,5411,Catering costs - provisions,4.84,0.00,4.84
Children and Young Peoples Services,Head of Childrens Social Care,085341,High Etherley Satelite Home,Supplies and Services,324117,Provisions E324,12-Jun-2020,000009105362093,774 026,5411,Catering costs - provisions,32.86,0.00,32.86
"Regeneration, Economy and Growth",Development and Housing,031576,B& B - Temp Accom,Supplies and Services,352001,Conference Expenses,12-Jun-2020,000009105362149,AYCLIFFE BIZ,7011,Conferencesseminars fees etc,152.00,0.00,152.00
"Regeneration, Economy and Growth",Development and Housing,031576,B& B - Temp Accom,Supplies and Services,352001,Conference Expenses,12-Jun-2020,000009105362157,GRAINGER APARTMENTS NE,7011,Conferencesseminars fees etc,350.00,58.33,291.67
"Regeneration, Economy and Growth",Development and Housing,031576,B& B - Temp Accom,Transport,235057,Public Transport,12-Jun-2020,000009105362159,BLUE LINE TAXIS,4121,Staff travelling,26.50,0.00,26.50
"Regeneration, Economy and Growth",Development and Housing,031576,B& B - Temp Accom,Supplies and Services,352001,Conference Expenses,12-Jun-2020,000009105362163,AYCLIFFE BIZ,7011,Conferencesseminars fees etc,114.00,0.00,114.00
"Regeneration, Economy and Growth",Development and Housing,031576,B& B - Temp Accom,Supplies and Services,352001,Conference Expenses,12-Jun-2020,000009105362169,HI NEWCASTLE WASHI,7011,Conferencesseminars fees etc,195.00,0.00,195.00
"Regeneration, Economy and Growth",Development and Housing,031576,B& B - Temp Accom,Supplies and Services,352001,Conference Expenses,12-Jun-2020,000009105362177,HI NEWCASTLE WASHI,7011,Conferencesseminars fees etc,130.00,0.00,130.00
"Regeneration, Economy and Growth",Development and Housing,031576,B& B - Temp Accom,Supplies and Services,352001,Conference Expenses,12-Jun-2020,000009105362179,HI NEWCASTLE WASHI,7011,Conferencesseminars fees etc,195.00,0.00,195.00
"Regeneration, Economy and Growth",Development and Housing,031576,B& B - Temp Accom,Supplies and Services,364320,Grants to Voluntary Organisations,12-Jun-2020,000009105362211,HI NEWCASTLE WASHI,7011,Accommodation assistance,65.00,10.83,54.17
Children and Young Peoples Services,Head of Education and Skills,075021,Youth Employment Initiative,Supplies and Services,332047,Printing Stationery and Gen Off Exps,12-Jun-2020,000009105362263,Amazon.co.uk 3F7WA9635,5969,Stationery,8.00,1.33,6.67
Children and Young Peoples Services,Head of Education and Skills,075021,Youth Employment Initiative,Supplies and Services,364301,Grants to Voluntary Organisations,12-Jun-2020,000009105362273,SUNDERLAND CC,7523,Hardship,11.00,0.00,11.00
Children and Young Peoples Services,Head of Education and Skills,075021,Youth Employment Initiative,Supplies and Services,364301,Grants to Voluntary Organisations,12-Jun-2020,000009105362283,CURRYS ONLINE,5732,Hardship,239.00,39.83,199.17
Neighbourhoods and Climate Change,Environmental Services,010383,C&G - South Street Cleansing,Supplies and Services,304221,Equipment and Materials,12-Jun-2020,000009105362325,CARRS BILLINGTON SPENN,5599,Direct materials,61.04,10.17,50.87
Children and Young Peoples Services,Head of Childrens Social Care,085333,Coxhoe Satelite Home,Supplies and Services,328041,Clothing uniforms and laundry E328,12-Jun-2020,000009105362549,MATALAN,5691,Clothing uniforms and laundry,42.00,7.00,35.00
Children and Young Peoples Services,Head of Childrens Social Care,085333,Coxhoe Satelite Home,Supplies and Services,324117,Provisions E324,12-Jun-2020,000009105362569,B&M 010 - MACINTYRE,5399,Catering costs - provisions,55.56,0.00,55.56
Children and Young Peoples Services,Head of Childrens Social Care,085333,Coxhoe Satelite Home,Supplies and Services,304999,Equipment and Materials,12-Jun-2020,000009105362577,BOOTS 6416,5912,Misc equipment tools and materials,15.98,0.00,15.98
Children and Young Peoples Services,Head of Childrens Social Care,085333,Coxhoe Satelite Home,Supplies and Services,328041,Clothing uniforms and laundry E328,12-Jun-2020,000009105362585,The Range,5311,Clothing uniforms and laundry,8.95,0.00,8.95
Children and Young Peoples Services,Head of Childrens Social Care,085333,Coxhoe Satelite Home,Supplies and Services,328041,Clothing uniforms and laundry E328,12-Jun-2020,000009105362593,The Range,5311,Clothing uniforms and laundry,3.99,0.00,3.99
Children and Young Peoples Services,Head of Childrens Social Care,085333,Coxhoe Satelite Home,Supplies and Services,328041,Clothing uniforms and laundry E328,12-Jun-2020,000009105362597,The Range,5311,Clothing uniforms and laundry,113.70,0.00,113.70
Neighbourhoods and Climate Change,Environmental Services,010367,C&G - South Grounds Maintenance,Supplies and Services,304999,Equipment and Materials,12-Jun-2020,000009105362705,Snowballs,5251,Misc equipment tools and materials,10.00,1.67,8.33
Children and Young Peoples Services,Head of Early Help Inclusion & Vulnerable Children.,085952,Secure Education,Supplies and Services,304403,Equipment and Materials,12-Jun-2020,000009105362721,AMZNMktplace,5999,Other consumables,135.00,22.50,112.50
Children and Young Peoples Services,Head of Childrens Social Care,085511,Emergency Duty Team,Supplies and Services,352001,Conference Expenses,12-Jun-2020,000009105362743,Hotel on Booking.com,7011,Conferencesseminars fees etc,30.00,0.00,30.00
"Regeneration, Economy and Growth",Development and Housing,031500,Housing Solutions - Core Team,Supplies and Services,352001,Conference Expenses,12-Jun-2020,000009105363055,HI NEWCASTLE WASHI,7011,Conferencesseminars fees etc,65.00,0.00,65.00
"Regeneration, Economy and Growth",Development and Housing,031500,Housing Solutions - Core Team,Supplies and Services,352001,Conference Expenses,12-Jun-2020,000009105363065,HI NEWCASTLE WASHI,7011,Conferencesseminars fees etc,210.00,0.00,210.00
"Regeneration, Economy and Growth",Development and Housing,031500,Housing Solutions - Core Team,Supplies and Services,352001,Conference Expenses,12-Jun-2020,000009105363073,HI NEWCASTLE WASHI,7011,Conferencesseminars fees etc,210.00,0.00,210.00
"Regeneration, Economy and Growth",Development and Housing,031500,Housing Solutions - Core Team,Supplies and Services,352001,Conference Expenses,12-Jun-2020,000009105363079,HI NEWCASTLE WASHI,7011,Conferencesseminars fees etc,105.00,0.00,105.00
"Regeneration, Economy and Growth",Business Durham CL0850,030652,Derwentside Business Centre 030652,Supplies and Services,332047,Printing Stationery and Gen Off Exps,12-Jun-2020,000009105363245,EMERGE (NE) LTD,5943,Stationery,161.76,0.00,161.76
"Regeneration, Economy and Growth",Development and Housing,031576,B& B - Temp Accom,Supplies and Services,364320,Grants to Voluntary Organisations,12-Jun-2020,000009105363373,HI NEWCASTLE WASHI,7011,Accommodation assistance,388.11,0.00,388.11
"Regeneration, Economy and Growth",Development and Housing,031576,B& B - Temp Accom,Supplies and Services,364320,Grants to Voluntary Organisations,12-Jun-2020,000009105363379,HI NEWCASTLE WASHI,7011,Accommodation assistance,715.00,0.00,715.00
Children and Young Peoples Services,Head of Childrens Social Care,085331,New Lea Childrens Home,Supplies and Services,324117,Provisions E324,12-Jun-2020,000009105363407,SAINSBURYS 2078,5411,Catering costs - provisions,187.43,0.00,187.43
Children and Young Peoples Services,Head of Childrens Social Care,085331,New Lea Childrens Home,Supplies and Services,324117,Provisions E324,12-Jun-2020,000009105363421,MARKS&SPENCER PLC SF,5411,Catering costs - provisions,35.72,0.00,35.72
"Regeneration, Economy and Growth",Development and Housing,031576,B& B - Temp Accom,Supplies and Services,364320,Grants to Voluntary Organisations,12-Jun-2020,000009105363467,BUDGET H EXPRESS HOTEL,7011,Accommodation assistance,445.00,74.17,370.83
"Regeneration, Economy and Growth",Development and Housing,031576,B& B - Temp Accom,Supplies and Services,364320,Grants to Voluntary Organisations,12-Jun-2020,000009105363475,HI NEWCASTLE WASHI,7011,Accommodation assistance,450.00,0.00,450.00
Children and Young Peoples Services,Head of Childrens Social Care,085352,Tow Law CU,Supplies and Services,324117,Provisions E324,12-Jun-2020,000009105363533,NISA LOCAL,5411,Catering costs - provisions,11.23,0.00,11.23
Children and Young Peoples Services,Head of Early Help Inclusion & Vulnerable Children.,088108,Spennymoor & Shildon 0-19 Targeted Family Support,Supplies and Services,364301,Grants to Voluntary Organisations,12-Jun-2020,000009105363561,TESCO STORES 6329,5411,Hardship,8.00,0.00,8.00
Children and Young Peoples Services,Head of Early Help Inclusion & Vulnerable Children.,088108,Spennymoor & Shildon 0-19 Targeted Family Support,Supplies and Services,304259,Equipment and Materials,12-Jun-2020,000009105363575,AMZNMktplace,5999,Equipment-purchase and rental,12.98,2.16,10.82
Children and Young Peoples Services,Head of Early Help Inclusion & Vulnerable Children.,088108,Spennymoor & Shildon 0-19 Targeted Family Support,Supplies and Services,364301,Grants to Voluntary Organisations,12-Jun-2020,000009105363577,LIDL GB BSHP AUCKLAND,5411,Hardship,38.43,0.00,38.43
Adult and Health Services,COVID19 - Adults and Health Services,091001,COVID19 - Adults and Health Services,Supplies and Services,324117,Provisions E324,12-Jun-2020,000009105363895,WILKO RETAIL LIMITED,5399,Catering costs - provisions,12.00,0.00,12.00
Children and Young Peoples Services,Head of Childrens Social Care,085342,16 Hickstead Rise (previously 9 Cedar Ave),Supplies and Services,304259,Equipment and Materials,12-Jun-2020,000009105364051,AMZNMktplace,5999,Equipment-purchase and rental,32.99,0.00,32.99
Neighbourhoods and Climate Change,Environmental Services,010900,Fleet - Meadowfield Fleet,Transport,215995,Running Costs of Vehicles,12-Jun-2020,000009105364147,ULRICH ATTACHMENTS LTD,8911,Vehicle running expenses,892.52,148.75,743.77
Adult and Health Services,Head of Adults,055643,Hawthorn House LD Respite Unit,Supplies and Services,324117,Provisions E324,12-Jun-2020,000009105364229,JR HOLLAND FOODSERVICE,5499,Catering costs - provisions,14.21,0.00,14.21
Adult and Health Services,Head of Adults,055643,Hawthorn House LD Respite Unit,Supplies and Services,324117,Provisions E324,12-Jun-2020,000009105364243,JR HOLLAND FOODSERVICE,5499,Catering costs - provisions,3.66,0.00,3.66
Adult and Health Services,Head of Adults,055643,Hawthorn House LD Respite Unit,Supplies and Services,324117,Provisions E324,12-Jun-2020,000009105364251,JR HOLLAND FOODSERVICE,5499,Catering costs - provisions,17.41,0.00,17.41
Children and Young Peoples Services,Head of Early Help Inclusion & Vulnerable Children.,088103,Consett & Stanley 0-19 Community Family Hub,Supplies and Services,328041,Clothing uniforms and laundry E328,12-Jun-2020,000009105364295,ASDA GEORGE COM LEEDS,5411,Clothing uniforms and laundry,52.00,0.00,52.00
Resources BK0010,Digital and Customer Services,065335,School Services - Implementations,Supplies and Services,304639,Equipment and Materials,12-Jun-2020,000009105364325,WWW.AVPARTMASTER.NET,7622,Technicians-supplies,244.18,40.70,203.48
Children and Young Peoples Services,Head of Childrens Social Care,085334,West Rainton Satelite Home,Supplies and Services,324117,Provisions E324,12-Jun-2020,000009105364351,TESCO STORES 2371,5411,Catering costs - provisions,158.45,0.00,158.45
Children and Young Peoples Services,Head of Childrens Social Care,085334,West Rainton Satelite Home,Supplies and Services,304999,Equipment and Materials,12-Jun-2020,000009105364353,HOME BARGAINS,5251,Misc equipment tools and materials,5.58,0.00,5.58
Children and Young Peoples Services,Head of Childrens Social Care,085334,West Rainton Satelite Home,Supplies and Services,304999,Equipment and Materials,12-Jun-2020,000009105364355,HOME BARGAINS,5251,Misc equipment tools and materials,2.58,0.00,2.58
"Regeneration, Economy and Growth",Development and Housing,030771,Durham Advance Flexible Fund,Supplies and Services,304221,Equipment and Materials,12-Jun-2020,000009105364383,SCREWFIX DIRECT,5200,Direct materials,19.99,0.00,19.99
Children and Young Peoples Services,Head of Early Help Inclusion & Vulnerable Children.,085954,Walworth,Supplies and Services,328041,Clothing uniforms and laundry E328,12-Jun-2020,000009105364391,Mainline Menswear Ltd,5611,Clothing uniforms and laundry,100.00,0.00,100.00
Children and Young Peoples Services,Head of Early Help Inclusion & Vulnerable Children.,085954,Walworth,Supplies and Services,304403,Equipment and Materials,12-Jun-2020,000009105364401,AMZNMktplace,5999,Other consumables,49.20,0.00,49.20
Children and Young Peoples Services,Head of Early Help Inclusion & Vulnerable Children.,085954,Walworth,Supplies and Services,328041,Clothing uniforms and laundry E328,12-Jun-2020,000009105364407,NEXT DIRECTORY,5965,Clothing uniforms and laundry,31.99,0.00,31.99
Children and Young Peoples Services,Head of Early Help Inclusion & Vulnerable Children.,085954,Walworth,Supplies and Services,328041,Clothing uniforms and laundry E328,12-Jun-2020,000009105364411,SPORTSDIRECT.COM,5941,Clothing uniforms and laundry,85.98,0.00,85.98
Resources BK0010,Business Support,052986,CYPS - Locality and Operational Support,Supplies and Services,304259,Equipment and Materials,12-Jun-2020,000009105364447,HARTLEPOOL BC,9399,Equipment-purchase and rental,11.00,0.00,11.00
Resources BK0010,Business Support,052986,CYPS - Locality and Operational Support,Supplies and Services,328041,Clothing uniforms and laundry E328,12-Jun-2020,000009105364451,ARGOS LTD,5310,Clothing uniforms and laundry,58.49,0.00,58.49
Resources BK0010,Business Support,052986,CYPS - Locality and Operational Support,Supplies and Services,328041,Clothing uniforms and laundry E328,12-Jun-2020,000009105364461,ARGOS LTD,5310,Clothing uniforms and laundry,125.98,0.00,125.98
Resources BK0010,Business Support,052986,CYPS - Locality and Operational Support,Supplies and Services,328041,Clothing uniforms and laundry E328,12-Jun-2020,000009105364467,WWW.JDWILLIAMS.CO.UK,5311,Clothing uniforms and laundry,3.50,0.00,3.50
Resources BK0010,Business Support,052986,CYPS - Locality and Operational Support,Supplies and Services,328041,Clothing uniforms and laundry E328,12-Jun-2020,000009105364469,WWW.JDWILLIAMS.CO.UK,5311,Clothing uniforms and laundry,12.00,0.00,12.00
"Regeneration, Economy and Growth",Business Durham CL0850,030690,Durham Dales Centre - Tourist Information Centre,Supplies and Services,332047,Printing Stationery and Gen Off Exps,12-Jun-2020,000009105364473,EMERGE (NE) LTD,5943,Stationery,401.76,66.96,334.80
"Regeneration, Economy and Growth",Development and Housing,031576,B& B - Temp Accom,Supplies and Services,352001,Conference Expenses,12-Jun-2020,000009105364585,HI NEWCASTLE WASHI,7011,Conferencesseminars fees etc,195.00,0.00,195.00
Children and Young Peoples Services,Head of Childrens Social Care,085342,16 Hickstead Rise (previously 9 Cedar Ave),Supplies and Services,324117,Provisions E324,12-Jun-2020,000009105364619,TESCO STORES 2916,5411,Catering costs - provisions,37.85,0.00,37.85
Children and Young Peoples Services,Head of Childrens Social Care,085342,16 Hickstead Rise (previously 9 Cedar Ave),Supplies and Services,324117,Provisions E324,12-Jun-2020,000009105364625,WALKERS BUTCHERS & BAK,5499,Catering costs - provisions,53.62,0.00,53.62
Children and Young Peoples Services,Head of Education and Skills,071802,Louisa Cent Nursery,Supplies and Services,324117,Provisions E324,12-Jun-2020,000009105364643,ASDA SUPERSTORE,5411,Catering costs - provisions,23.57,0.00,23.57
Adult and Health Services,Head of Adults,055310,Positive Journeys (Tudhoe),Supplies and Services,328041,Clothing uniforms and laundry E328,12-Jun-2020,000009105364877,POUNDSTRETCHER STOCK,5331,Clothing uniforms and laundry,9.98,0.00,9.98
Adult and Health Services,Head of Adults,055643,Hawthorn House LD Respite Unit,Supplies and Services,324117,Provisions E324,12-Jun-2020,000009108917189,BATLEYS PERTH,5300,Catering costs - provisions,6.12,1.02,5.10
Adult and Health Services,Head of Adults,055643,Hawthorn House LD Respite Unit,Supplies and Services,324117,Provisions E324,12-Jun-2020,000009108917189 - 1,BATLEYS PERTH,5300,Catering costs - provisions,93.73,,93.73
Resources BK0010,Business Support,052986,CYPS - Locality and Operational Support,Supplies and Services,328041,Clothing uniforms and laundry E328,12-Jun-2020,000009115810387,WWW.JDWILLIAMS.CO.UK,5311,Clothing uniforms and laundry,24.75,0.00,24.75
"Regeneration, Economy and Growth",Business Durham CL0850,030689,Inward Investment and Aftercare,Supplies and Services,304999,Equipment and Materials,13-Jun-2020,000009105362039,MOZ INC,5817,Misc equipment tools and materials,142.96,0.00,142.96
Resources BK0010,Business Support,065461,Business Support 065461,Supplies and Services,304403,Equipment and Materials,13-Jun-2020,000009105362195,AMZNMktplace,5999,Other consumables,46.64,0.00,46.64
Resources BK0010,Business Support,065461,Business Support 065461,Supplies and Services,304403,Equipment and Materials,13-Jun-2020,000009105362203,BLS POWERMAPPER,5734,Other consumables,238.80,0.00,238.80
Children and Young Peoples Services,Head of Childrens Social Care,085342,16 Hickstead Rise (previously 9 Cedar Ave),Supplies and Services,348037,Subsistence E348,13-Jun-2020,000009105362359,MCDONALDS,5812,Subsistence,17.35,0.00,17.35
Children and Young Peoples Services,Head of Childrens Social Care,085341,High Etherley Satelite Home,Supplies and Services,324117,Provisions E324,13-Jun-2020,000009105362457,TESCO STORES 2371,5411,Catering costs - provisions,6.99,0.00,6.99
Children and Young Peoples Services,Head of Childrens Social Care,085333,Coxhoe Satelite Home,Supplies and Services,304403,Equipment and Materials,13-Jun-2020,000009105362603,AMZNMktplace,5999,Other consumables,49.99,8.33,41.66
Children and Young Peoples Services,Head of Childrens Social Care,085352,Tow Law CU,Supplies and Services,324117,Provisions E324,13-Jun-2020,000009105362631,CO-OP GROUP 010989,5411,Catering costs - provisions,12.95,0.00,12.95
Children and Young Peoples Services,Head of Childrens Social Care,085332,Middlestone Moor CU,Supplies and Services,348037,Subsistence E348,13-Jun-2020,000009105362655,BURGER KING,5814,Subsistence,18.57,0.00,18.57
Children and Young Peoples Services,Head of Childrens Social Care,085332,Middlestone Moor CU,Supplies and Services,304403,Equipment and Materials,13-Jun-2020,000009105362681,TOMMERS TACKLE,5999,Other consumables,85.00,0.00,85.00
Children and Young Peoples Services,Head of Childrens Social Care,085332,Middlestone Moor CU,Supplies and Services,348037,Subsistence E348,13-Jun-2020,000009105362693,BURGER KING,5814,Subsistence,12.86,0.00,12.86
Children and Young Peoples Services,Head of Early Help Inclusion & Vulnerable Children.,088108,Spennymoor & Shildon 0-19 Targeted Family Support,Supplies and Services,304259,Equipment and Materials,13-Jun-2020,000009105363581,AMZNMktplace,5999,Equipment-purchase and rental,37.25,6.25,31.00
Children and Young Peoples Services,Head of Early Help Inclusion & Vulnerable Children.,088108,Spennymoor & Shildon 0-19 Targeted Family Support,Supplies and Services,304259,Equipment and Materials,13-Jun-2020,000009105363585,AMZNMktplace,5999,Equipment-purchase and rental,7.88,1.31,6.57
Children and Young Peoples Services,Head of Early Help Inclusion & Vulnerable Children.,088108,Spennymoor & Shildon 0-19 Targeted Family Support,Supplies and Services,304259,Equipment and Materials,13-Jun-2020,000009105363593,AMZNMktplace,5999,Equipment-purchase and rental,8.71,1.45,7.26
Children and Young Peoples Services,Head of Early Help Inclusion & Vulnerable Children.,088108,Spennymoor & Shildon 0-19 Targeted Family Support,Supplies and Services,304259,Equipment and Materials,13-Jun-2020,000009105363599,AMZNMktplace,5999,Equipment-purchase and rental,7.16,0.00,7.16
Children and Young Peoples Services,Head of Childrens Social Care,085342,16 Hickstead Rise (previously 9 Cedar Ave),Supplies and Services,344033,Telephones,13-Jun-2020,000009105364037,WWW.VOXI.CO.UK,4814,Telephones general-all costs,10.00,0.00,10.00
Children and Young Peoples Services,Head of Childrens Social Care,085342,16 Hickstead Rise (previously 9 Cedar Ave),Premises,145015,Cleaning and Domestic Supplies,13-Jun-2020,000009105364063,WILKO RETAIL LIMITED,5399,Cleaning and domestic equipment,22.60,0.00,22.60
Children and Young Peoples Services,Head of Childrens Social Care,085342,16 Hickstead Rise (previously 9 Cedar Ave),Supplies and Services,304259,Equipment and Materials,13-Jun-2020,000009105364075,AMZNMKTPLACE AMAZON.CO,5999,Equipment-purchase and rental,9.99,0.00,9.99
Children and Young Peoples Services,Head of Childrens Social Care,085342,16 Hickstead Rise (previously 9 Cedar Ave),Supplies and Services,304403,Equipment and Materials,13-Jun-2020,000009105364343,AMZNMKTPLACE AMAZON.CO,5999,Other consumables,47.98,0.00,47.98
"Regeneration, Economy and Growth",Development and Housing,030771,Durham Advance Flexible Fund,Supplies and Services,328041,Clothing uniforms and laundry E328,13-Jun-2020,000009105364387,SHOE ZONE (INTERNET),5661,Clothing uniforms and laundry,29.99,0.00,29.99
Regeneration and Local Services,COVID19 - Regeneration Economy and Growth,091004,COVID19 - Regeneration Economy and Growth,Premises,145037,Cleaning and Domestic Supplies,13-Jun-2020,000009105364513,AMZNMktplace,5999,Disposable medical supplies,45.85,0.00,45.85
Children and Young Peoples Services,Head of Childrens Social Care,085332,Middlestone Moor CU,Transport,215995,Running Costs of Vehicles,13-Jun-2020,000009105364565,APPLEGREEN COCKTON HIL,5541,Vehicle running expenses,3.00,0.50,2.50
Children and Young Peoples Services,Head of Childrens Social Care,085332,Middlestone Moor CU,Supplies and Services,304403,Equipment and Materials,13-Jun-2020,000009105364567,AMZNMKTPLACE AMAZON.CO,5999,Other consumables,4.74,0.79,3.95
Children and Young Peoples Services,Head of Childrens Social Care,085332,Middlestone Moor CU,Supplies and Services,324117,Provisions E324,13-Jun-2020,000009105364569,ASDA STORES,5411,Catering costs - provisions,4.00,0.67,3.33
Children and Young Peoples Services,Head of Early Help Inclusion & Vulnerable Children.,088107,Ferryhill & Newton Aycliffe 0-19 Community Family Hub,Supplies and Services,304403,Equipment and Materials,13-Jun-2020,000009105364755,AMZNMktplace,5999,Other consumables,31.27,0.00,31.27
Adult and Health Services,Head of Adults,055302,Durham Pathways,Supplies and Services,304403,Equipment and Materials,14-Jun-2020,000009105362309,AMZNMktplace,5999,Other consumables,9.75,1.63,8.12
Children and Young Peoples Services,Head of Childrens Social Care,085332,Middlestone Moor CU,Supplies and Services,348037,Subsistence E348,14-Jun-2020,000009105362699,Just Eat,5814,Subsistence,41.40,0.00,41.40
Children and Young Peoples Services,Head of Early Help Inclusion & Vulnerable Children.,088108,Spennymoor & Shildon 0-19 Targeted Family Support,Supplies and Services,304259,Equipment and Materials,14-Jun-2020,000009105363605,AMZNMktplace,5999,Equipment-purchase and rental,5.16,0.86,4.30
Children and Young Peoples Services,Head of Early Help Inclusion & Vulnerable Children.,088108,Spennymoor & Shildon 0-19 Targeted Family Support,Supplies and Services,304259,Equipment and Materials,14-Jun-2020,000009105363609,AMZNMktplace,5999,Equipment-purchase and rental,16.94,2.82,14.12
Children and Young Peoples Services,Head of Early Help Inclusion & Vulnerable Children.,088108,Spennymoor & Shildon 0-19 Targeted Family Support,Supplies and Services,304259,Equipment and Materials,14-Jun-2020,000009105363615,AMZNMktplace,5999,Equipment-purchase and rental,30.97,5.17,25.80
Children and Young Peoples Services,Head of Early Help Inclusion & Vulnerable Children.,088116,South Area - Teenage Parent Programme,Supplies and Services,304259,Equipment and Materials,14-Jun-2020,000009105363625,AMZNMktplace,5999,Equipment-purchase and rental,3.99,0.67,3.32
Children and Young Peoples Services,Head of Early Help Inclusion & Vulnerable Children.,088108,Spennymoor & Shildon 0-19 Targeted Family Support,Supplies and Services,304259,Equipment and Materials,14-Jun-2020,000009105363633,AMZNMktplace,5999,Equipment-purchase and rental,39.96,0.00,39.96
Adult and Health Services,Head of Adults,055643,Hawthorn House LD Respite Unit,Supplies and Services,324117,Provisions E324,14-Jun-2020,000009105363901,SAINSBURYS 0776,5411,Catering costs - provisions,22.25,0.00,22.25
Children and Young Peoples Services,Head of Education and Skills,071802,Louisa Cent Nursery,Supplies and Services,324117,Provisions E324,14-Jun-2020,000009105363927,ALDI STORES,5411,Catering costs - provisions,42.16,7.03,35.13
Children and Young Peoples Services,Head of Childrens Social Care,085333,Coxhoe Satelite Home,Supplies and Services,344033,Telephones,14-Jun-2020,000009105363947,giffgaff,4814,Telephones general-all costs,10.00,0.00,10.00
Children and Young Peoples Services,Head of Childrens Social Care,085342,16 Hickstead Rise (previously 9 Cedar Ave),Supplies and Services,304403,Equipment and Materials,14-Jun-2020,000009105364069,AMZNMktplace,5999,Other consumables,5.80,0.00,5.80
Children and Young Peoples Services,Head of Childrens Social Care,085342,16 Hickstead Rise (previously 9 Cedar Ave),Supplies and Services,304403,Equipment and Materials,14-Jun-2020,000009105364347,AMZNMKTPLACE AMAZON.CO,5999,Other consumables,9.99,0.00,9.99
Children and Young Peoples Services,Head of Childrens Social Care,085341,High Etherley Satelite Home,Supplies and Services,384999,Miscellaneous Expenses,14-Jun-2020,000009108917085,PER Perfume-click.com,5977,Other expenses,38.15,0.00,38.15
Children and Young Peoples Services,Head of Childrens Social Care,085342,16 Hickstead Rise (previously 9 Cedar Ave),Supplies and Services,304999,Equipment and Materials,14-Jun-2020,000009108917159,SAVERS HEALTH & BEAUTY,5912,Misc equipment tools and materials,32.66,0.00,32.66
"Regeneration, Economy and Growth",Business Durham CL0850,030689,Inward Investment and Aftercare,Supplies and Services,304999,Equipment and Materials,15-Jun-2020,000009105362047,MOZ INC,5817,Misc equipment tools and materials,3.93,0.00,3.93
Children and Young Peoples Services,Head of Childrens Social Care,085341,High Etherley Satelite Home,Supplies and Services,324117,Provisions E324,15-Jun-2020,000009108916309,TESCO STORES 6329,5411,Catering costs - provisions,95.54,0.00,95.54
Children and Young Peoples Services,Head of Childrens Social Care,085341,High Etherley Satelite Home,Supplies and Services,324117,Provisions E324,15-Jun-2020,000009108916317,TESCO STORES 6329,5411,Catering costs - provisions,18.00,0.00,18.00
Children and Young Peoples Services,Head of Education and Skills,071801,Selby Cottage Childcare Centre,Supplies and Services,324117,Provisions E324,15-Jun-2020,000009108916355,ASDA STORES 7134,5411,Catering costs - provisions,5.00,0.00,5.00
"Regeneration, Economy and Growth",Development and Housing,031576,B& B - Temp Accom,Supplies and Services,352001,Conference Expenses,15-Jun-2020,000009108916369,HI NEWCASTLE WASHI,7011,Conferencesseminars fees etc,195.00,0.00,195.00
Resources BK0010,Business Support,065461,Business Support 065461,Supplies and Services,304403,Equipment and Materials,15-Jun-2020,000009108916373,AMZNMktplace,5999,Other consumables,35.96,6.00,29.96
Resources BK0010,Business Support,065461,Business Support 065461,Supplies and Services,304403,Equipment and Materials,15-Jun-2020,000009108916383,AMZNMktplace,5999,Other consumables,27.99,4.67,23.32
Children and Young Peoples Services,Head of Childrens Social Care,085501,Child Care Cases Legal Expenses,Supplies and Services,304403,Equipment and Materials,15-Jun-2020,000009108916409,TUNBRIDGE WELLS REG OF,9399,Other consumables,11.00,0.00,11.00
Children and Young Peoples Services,Head of Education and Skills,075021,Youth Employment Initiative,Supplies and Services,364301,Grants to Voluntary Organisations,15-Jun-2020,000009108916423,AMZNMktplace,5999,Hardship,25.99,4.33,21.66
Children and Young Peoples Services,Head of Childrens Social Care,085342,16 Hickstead Rise (previously 9 Cedar Ave),Supplies and Services,324117,Provisions E324,15-Jun-2020,000009108916465,TESCO STORES 2916,5411,Catering costs - provisions,12.23,0.00,12.23
Children and Young Peoples Services,Head of Childrens Social Care,085342,16 Hickstead Rise (previously 9 Cedar Ave),Supplies and Services,324117,Provisions E324,15-Jun-2020,000009108916469,TESCO STORES 2916,5411,Catering costs - provisions,9.79,0.00,9.79
Children and Young Peoples Services,Head of Childrens Social Care,085342,16 Hickstead Rise (previously 9 Cedar Ave),Supplies and Services,324117,Provisions E324,15-Jun-2020,000009108916479,MARTIN MCCOLL,5499,Catering costs - provisions,6.39,0.00,6.39
Children and Young Peoples Services,Head of Childrens Social Care,085342,16 Hickstead Rise (previously 9 Cedar Ave),Supplies and Services,324117,Provisions E324,15-Jun-2020,000009108916481,STARBUCKS THINFORD,5499,Catering costs - provisions,7.90,0.00,7.90
Children and Young Peoples Services,Head of Childrens Social Care,085342,16 Hickstead Rise (previously 9 Cedar Ave),Supplies and Services,324117,Provisions E324,15-Jun-2020,000009108916487,ALDI 15 774,5411,Catering costs - provisions,23.96,0.00,23.96
Children and Young Peoples Services,Head of Early Help Inclusion & Vulnerable Children.,088105,BA/BC/Crook 0-19 Community Family Hub,Supplies and Services,304259,Equipment and Materials,15-Jun-2020,000009108916607,BAKER ROSS,5970,Equipment-purchase and rental,47.50,7.92,39.58
Children and Young Peoples Services,Head of Childrens Social Care,085332,Middlestone Moor CU,Supplies and Services,304259,Equipment and Materials,15-Jun-2020,000009108916643,Fishing Republic Sunde,5941,Equipment-purchase and rental,24.75,0.00,24.75
"Regeneration, Economy and Growth",Development and Housing,031576,B& B - Temp Accom,Supplies and Services,364320,Grants to Voluntary Organisations,15-Jun-2020,000009108916663,GRAINGER HOTEL,7011,Accommodation assistance,100.00,0.00,100.00
"Regeneration, Economy and Growth",Development and Housing,031576,B& B - Temp Accom,Supplies and Services,352001,Conference Expenses,15-Jun-2020,000009108916713,GRAINGER HOTEL,7011,Conferencesseminars fees etc,100.00,0.00,100.00
"Regeneration, Economy and Growth",Development and Housing,031576,B& B - Temp Accom,Supplies and Services,352001,Conference Expenses,15-Jun-2020,000009108916719,GRAINGER HOTEL,7011,Conferencesseminars fees etc,100.00,0.00,100.00
Children and Young Peoples Services,Head of Education and Skills,071732,Dean Bank Childcare,Supplies and Services,324117,Provisions E324,15-Jun-2020,000009108916749,ASDA GROCERIES ONLINE,5411,Catering costs - provisions,15.87,0.00,15.87
Children and Young Peoples Services,Head of Education and Skills,071732,Dean Bank Childcare,Supplies and Services,324117,Provisions E324,15-Jun-2020,000009108916753,ASDA GROCERIES ONLINE,5411,Catering costs - provisions,35.49,0.00,35.49
Children and Young Peoples Services,Head of Education and Skills,071732,Dean Bank Childcare,Supplies and Services,324117,Provisions E324,15-Jun-2020,000009108916757,ASDA GROCERIES ONLINE,5411,Catering costs - provisions,51.79,0.00,51.79
Children and Young Peoples Services,Head of Education and Skills,071732,Dean Bank Childcare,Supplies and Services,324117,Provisions E324,15-Jun-2020,000009108916759,ASDA GROCERIES ONLINE,5411,Catering costs - provisions,7.78,0.00,7.78
Children and Young Peoples Services,Head of Childrens Social Care,085334,West Rainton Satelite Home,Supplies and Services,304403,Equipment and Materials,15-Jun-2020,000009108916765,AMZNMktplace,5999,Other consumables,42.99,0.00,42.99
Children and Young Peoples Services,Head of Childrens Social Care,085332,Middlestone Moor CU,Supplies and Services,324117,Provisions E324,15-Jun-2020,000009108916769,COOPLANDS BAKERY,5462,Catering costs - provisions,2.47,0.00,2.47
Children and Young Peoples Services,Head of Childrens Social Care,085332,Middlestone Moor CU,Supplies and Services,304221,Equipment and Materials,15-Jun-2020,000009108916773,HOLLAND REED,5211,Direct materials,15.50,0.00,15.50
Children and Young Peoples Services,Head of Education and Skills,071903,Early Years Sustainability,Employees,040149,Recruitment Instruction and Training,15-Jun-2020,000009108916797,SCHOOL LIBRARY ASSOCIA,8299,Training-all costs,144.00,24.00,120.00
Children and Young Peoples Services,Head of Childrens Social Care,085334,West Rainton Satelite Home,Supplies and Services,304403,Equipment and Materials,15-Jun-2020,000009108916897,AMZNMKTPLACE AMAZON.CO,5999,Other consumables,21.94,0.00,21.94
Children and Young Peoples Services,Head of Early Help Inclusion & Vulnerable Children.,071445,Chester le Street One Point Hub,Supplies and Services,304259,Equipment and Materials,15-Jun-2020,000009108916903,Durham County CNCL,9399,Equipment-purchase and rental,11.00,0.00,11.00
Children and Young Peoples Services,Head of Childrens Social Care,085352,Tow Law CU,Supplies and Services,304999,Equipment and Materials,15-Jun-2020,000009108916975,Amazon Prime HK9F90RU5,5968,Misc equipment tools and materials,7.99,0.00,7.99
Children and Young Peoples Services,Head of Childrens Social Care,085352,Tow Law CU,Supplies and Services,324117,Provisions E324,15-Jun-2020,000009108916983,NISA LOCAL,5411,Catering costs - provisions,22.43,0.00,22.43
Children and Young Peoples Services,Head of Early Help Inclusion & Vulnerable Children.,088108,Spennymoor & Shildon 0-19 Targeted Family Support,Supplies and Services,304259,Equipment and Materials,15-Jun-2020,000009108917017,AMZNMktplace,5999,Equipment-purchase and rental,4.32,0.72,3.60
Children and Young Peoples Services,Head of Early Help Inclusion & Vulnerable Children.,088108,Spennymoor & Shildon 0-19 Targeted Family Support,Supplies and Services,304259,Equipment and Materials,15-Jun-2020,000009108917019,AMZNMktplace,5999,Equipment-purchase and rental,11.97,2.01,9.96
Resources BK0010,Business Support,052986,CYPS - Locality and Operational Support,Supplies and Services,324117,Provisions E324,15-Jun-2020,000009108917027,WILKO RETAIL LIMITED,5399,Catering costs - provisions,18.60,0.00,18.60
Children and Young Peoples Services,Head of Early Help Inclusion & Vulnerable Children.,088108,Spennymoor & Shildon 0-19 Targeted Family Support,Supplies and Services,304259,Equipment and Materials,15-Jun-2020,000009108917031,HOME BARGAINS,5251,Equipment-purchase and rental,65.14,0.00,65.14
Children and Young Peoples Services,Head of Early Help Inclusion & Vulnerable Children.,088108,Spennymoor & Shildon 0-19 Targeted Family Support,Supplies and Services,304259,Equipment and Materials,15-Jun-2020,000009108917039,ALDI 15 774,5411,Equipment-purchase and rental,69.83,0.00,69.83
"Regeneration, Economy and Growth",Development and Housing,031500,Housing Solutions - Core Team,Supplies and Services,352001,Conference Expenses,15-Jun-2020,000009108917077,GRAINGER HOTEL,7011,Conferencesseminars fees etc,400.00,66.67,333.33
Children and Young Peoples Services,Head of Education and Skills,071802,Louisa Cent Nursery,Supplies and Services,324117,Provisions E324,15-Jun-2020,000009108917121,ALDI STORES,5411,Catering costs - provisions,13.62,2.27,11.35
Children and Young Peoples Services,Head of Education and Skills,071802,Louisa Cent Nursery,Supplies and Services,324117,Provisions E324,15-Jun-2020,000009108917125,ALDI STORES,5411,Catering costs - provisions,1.92,0.32,1.60
Children and Young Peoples Services,Head of Education and Skills,071802,Louisa Cent Nursery,Supplies and Services,324117,Provisions E324,15-Jun-2020,000009108917125 - 1,ALDI STORES,5411,Catering costs - provisions,0.82,,0.82
Children and Young Peoples Services,Head of Childrens Social Care,085333,Coxhoe Satelite Home,Supplies and Services,384999,Miscellaneous Expenses,15-Jun-2020,000009108917135,Amazon.co.uk 6N8AJ1FW5,5969,Other expenses,14.12,2.35,11.77
Children and Young Peoples Services,Head of Childrens Social Care,085333,Coxhoe Satelite Home,Supplies and Services,304403,Equipment and Materials,15-Jun-2020,000009108917141,AMZNMktplace,5999,Other consumables,12.50,2.10,10.40
Children and Young Peoples Services,Head of Childrens Social Care,085333,Coxhoe Satelite Home,Supplies and Services,304999,Equipment and Materials,15-Jun-2020,000009108917149,HOME BARGAINS SPENNYMO,5251,Misc equipment tools and materials,56.96,9.49,47.47
Adult and Health Services,Head of Adults,055643,Hawthorn House LD Respite Unit,Supplies and Services,324117,Provisions E324,15-Jun-2020,000009108917193,JR HOLLAND FOODSERVICE,5499,Catering costs - provisions,12.33,0.00,12.33
Neighbourhoods and Climate Change,Environmental Services,010301,C&G - North Grounds Maintenance,Supplies and Services,324117,Provisions E324,15-Jun-2020,000009108917241,J VAN VLIET GATESHEAD,5399,Catering costs - provisions,67.10,0.00,67.10
Children and Young Peoples Services,Head of Childrens Social Care,085334,West Rainton Satelite Home,Supplies and Services,328041,Clothing uniforms and laundry E328,15-Jun-2020,000009108917245,POUNDSTRETCHER 205,5331,Clothing uniforms and laundry,19.95,0.00,19.95
Children and Young Peoples Services,Head of Early Help Inclusion & Vulnerable Children.,085954,Walworth,Supplies and Services,328041,Clothing uniforms and laundry E328,15-Jun-2020,000009108917253,FOOTASYLUM PLC,5691,Clothing uniforms and laundry,124.98,0.00,124.98
Children and Young Peoples Services,Head of Early Help Inclusion & Vulnerable Children.,085962,Aycliffe Secure - Durham,Supplies and Services,304690,Equipment and Materials,15-Jun-2020,000009108917255,AMZNMKTPLACE AMAZON.CO,5999,Video and DVD,19.02,0.00,19.02
Children and Young Peoples Services,Head of Early Help Inclusion & Vulnerable Children.,085954,Walworth,Supplies and Services,328041,Clothing uniforms and laundry E328,15-Jun-2020,000009108917263,FOOTASYLUM PLC,5691,Clothing uniforms and laundry,19.98,0.00,19.98
Children and Young Peoples Services,Head of Early Help Inclusion & Vulnerable Children.,085954,Walworth,Supplies and Services,328041,Clothing uniforms and laundry E328,15-Jun-2020,000009108917265,FOOTASYLUM PLC,5691,Clothing uniforms and laundry,33.98,0.00,33.98
Children and Young Peoples Services,Head of Early Help Inclusion & Vulnerable Children.,085962,Aycliffe Secure - Durham,Supplies and Services,304690,Equipment and Materials,15-Jun-2020,000009108917267,Amazon.co.uk 0868O4XG5,5969,Video and DVD,5.49,0.92,4.57
Children and Young Peoples Services,Head of Early Help Inclusion & Vulnerable Children.,085956,Lumley,Supplies and Services,328041,Clothing uniforms and laundry E328,15-Jun-2020,000009108917273,JD SPORTS INTERNET,5941,Clothing uniforms and laundry,64.99,0.00,64.99
"Regeneration, Economy and Growth",Development and Housing,031500,Housing Solutions - Core Team,Supplies and Services,352001,Conference Expenses,15-Jun-2020,000009108917283,HI NEWCASTLE WASHI,7011,Conferencesseminars fees etc,160.00,26.67,133.33
"Regeneration, Economy and Growth",Development and Housing,031500,Housing Solutions - Core Team,Supplies and Services,352001,Conference Expenses,15-Jun-2020,000009108917291,HI NEWCASTLE WASHI,7011,Conferencesseminars fees etc,130.00,21.67,108.33
"Regeneration, Economy and Growth",Development and Housing,031500,Housing Solutions - Core Team,Supplies and Services,352001,Conference Expenses,15-Jun-2020,000009108917295,HI NEWCASTLE WASHI,7011,Conferencesseminars fees etc,80.00,0.00,80.00
"Regeneration, Economy and Growth",Development and Housing,031500,Housing Solutions - Core Team,Supplies and Services,304999,Equipment and Materials,15-Jun-2020,000009108917373,DUNCAN BELTON TA K,6513,Misc equipment tools and materials,350.00,0.00,350.00
"Regeneration, Economy and Growth",Development and Housing,031500,Housing Solutions - Core Team,Supplies and Services,352001,Conference Expenses,15-Jun-2020,000009108917379,HI NEWCASTLE WASHI,7011,Conferencesseminars fees etc,195.00,0.00,195.00
Children and Young Peoples Services,Head of Childrens Social Care,085331,New Lea Childrens Home,Supplies and Services,332047,Printing Stationery and Gen Off Exps,15-Jun-2020,000009108917405,WWW.RYMAN.CO.UK,5943,Stationery,15.94,0.00,15.94
Adult and Health Services,Head of Adults,055310,Positive Journeys (Tudhoe),Supplies and Services,324117,Provisions E324,15-Jun-2020,000009108917415,B&M 147 - FERRYHILL,5399,Catering costs - provisions,25.00,0.00,25.00
Adult and Health Services,Head of Adults,055310,Positive Journeys (Tudhoe),Supplies and Services,324117,Provisions E324,15-Jun-2020,000009108917419,SAINSBURYS LOC (4320),5411,Catering costs - provisions,1.15,0.00,1.15
Resources BK0010,Business Support,052986,CYPS - Locality and Operational Support,Supplies and Services,304259,Equipment and Materials,15-Jun-2020,000009108917499,WWW.DURHAM.GOV.UK,9399,Equipment-purchase and rental,11.00,0.00,11.00
Resources BK0010,Business Support,065461,Business Support 065461,Supplies and Services,304403,Equipment and Materials,15-Jun-2020,000009110952829,AMZNMKTPLACE AMAZON.CO,5999,Other consumables,19.98,3.33,16.65
Neighbourhoods and Climate Change,Environmental Services,010367,C&G - South Grounds Maintenance,Supplies and Services,304259,Equipment and Materials,15-Jun-2020,000009110953943,WWW.FISHINGTACKLEANDBA,5941,Equipment-purchase and rental,72.96,12.16,60.80
Children and Young Peoples Services,Head of Early Help Inclusion & Vulnerable Children.,085954,Walworth,Supplies and Services,328041,Clothing uniforms and laundry E328,15-Jun-2020,000009110954217,CALVIN KLEIN,5651,Clothing uniforms and laundry,59.50,0.00,59.50
Children and Young Peoples Services,Head of Early Help Inclusion & Vulnerable Children.,085954,Walworth,Supplies and Services,328041,Clothing uniforms and laundry E328,15-Jun-2020,000009113381823,SPORTSDIRECT.COM,5941,Clothing uniforms and laundry,23.99,0.00,23.99
Children and Young Peoples Services,Head of Early Help Inclusion & Vulnerable Children.,085962,Aycliffe Secure - Durham,Supplies and Services,328041,Clothing uniforms and laundry E328,16-Jun-2020,000007207792464,SPORTSDIRECT.COM,5941,Clothing uniforms and laundry,120.00,0.00,120.00
Children and Young Peoples Services,Head of Childrens Social Care,085342,16 Hickstead Rise (previously 9 Cedar Ave),Supplies and Services,304259,Equipment and Materials,16-Jun-2020,000009108917163,Amazon.co.uk 2O8031V75,5969,Equipment-purchase and rental,118.70,0.00,118.70
Children and Young Peoples Services,Head of Childrens Social Care,085341,High Etherley Satelite Home,Supplies and Services,304999,Equipment and Materials,16-Jun-2020,000009110952675,BOOTS/0549,5912,Misc equipment tools and materials,49.99,0.00,49.99
Children and Young Peoples Services,Head of Education and Skills,071801,Selby Cottage Childcare Centre,Supplies and Services,384999,Miscellaneous Expenses,16-Jun-2020,000009110952753,Amazon.co.uk 9O6BZ9KK5,5969,Other expenses,39.54,6.60,32.94
Children and Young Peoples Services,Head of Education and Skills,071801,Selby Cottage Childcare Centre,Supplies and Services,324117,Provisions E324,16-Jun-2020,000009110952765,TESCO STORES 2371,5411,Catering costs - provisions,90.20,0.00,90.20
"Regeneration, Economy and Growth",Development and Housing,031576,B& B - Temp Accom,Supplies and Services,352001,Conference Expenses,16-Jun-2020,000009110952771,HI NEWCASTLE WASHI,7011,Conferencesseminars fees etc,65.00,0.00,65.00
Children and Young Peoples Services,Head of Childrens Social Care,085501,Child Care Cases Legal Expenses,Supplies and Services,304403,Equipment and Materials,16-Jun-2020,000009110952871,GATESHEAD COUNCIL MOTO,9399,Other consumables,11.00,0.00,11.00
Children and Young Peoples Services,Head of Childrens Social Care,085332,Middlestone Moor CU,Supplies and Services,324117,Provisions E324,16-Jun-2020,000009110952901,TESCO STORES 6329,5411,Catering costs - provisions,76.71,0.00,76.71
Children and Young Peoples Services,Head of Childrens Social Care,085332,Middlestone Moor CU,Supplies and Services,304083,Equipment and Materials,16-Jun-2020,000009110952911,TESCO STORES 6329,5411,Catering equipment,24.00,0.00,24.00
Children and Young Peoples Services,Head of Childrens Social Care,085332,Middlestone Moor CU,Supplies and Services,324117,Provisions E324,16-Jun-2020,000009110952927,ALDI 74 774,5411,Catering costs - provisions,10.22,0.00,10.22
Children and Young Peoples Services,Head of Early Help Inclusion & Vulnerable Children.,088105,BA/BC/Crook 0-19 Community Family Hub,Supplies and Services,304259,Equipment and Materials,16-Jun-2020,000009110953039,ASDA GEORGE COM LEEDS,5411,Equipment-purchase and rental,38.50,6.42,32.08
Children and Young Peoples Services,Head of Childrens Social Care,085332,Middlestone Moor CU,Supplies and Services,348037,Subsistence E348,16-Jun-2020,000009110953059,COSTA COFFEE 43035195,5814,Subsistence,6.95,0.00,6.95
Children and Young Peoples Services,Head of Childrens Social Care,085332,Middlestone Moor CU,Supplies and Services,324001,Provisions E324,16-Jun-2020,000009110953067,KASHS OFF LICENCE,5921,Bar supplies,5.35,0.00,5.35
Children and Young Peoples Services,Head of Early Help Inclusion & Vulnerable Children.,073998,TTF-Co-ordinator Grant,Transfer Payments,525033,Other,16-Jun-2020,000009110953187,FRANKS THE FLOORING ST,5713,Grants to individuals,150.00,0.00,150.00
"Regeneration, Economy and Growth",Development and Housing,031576,B& B - Temp Accom,Supplies and Services,352001,Conference Expenses,16-Jun-2020,000009110953213,HI NEWCASTLE WASHI,7011,Conferencesseminars fees etc,455.00,0.00,455.00
Neighbourhoods and Climate Change,Environmental Services,010314,Nei.Prot - Bereavement Services,Supplies and Services,304259,Equipment and Materials,16-Jun-2020,000009110953329,Durham County CNCL,9399,Equipment-purchase and rental,11.00,0.00,11.00
"Regeneration, Economy and Growth",Development and Housing,031500,Housing Solutions - Core Team,Supplies and Services,352001,Conference Expenses,16-Jun-2020,000009110953341,HI NEWCASTLE WASHI,7011,Conferencesseminars fees etc,130.00,0.00,130.00
"Regeneration, Economy and Growth",Development and Housing,031500,Housing Solutions - Core Team,Supplies and Services,352001,Conference Expenses,16-Jun-2020,000009110953351,HI NEWCASTLE WASHI,7011,Conferencesseminars fees etc,130.00,0.00,130.00
"Regeneration, Economy and Growth",Development and Housing,031500,Housing Solutions - Core Team,Supplies and Services,352001,Conference Expenses,16-Jun-2020,000009110953365,HI NEWCASTLE WASHI,7011,Conferencesseminars fees etc,130.00,0.00,130.00
"Regeneration, Economy and Growth",Development and Housing,031500,Housing Solutions - Core Team,Supplies and Services,352001,Conference Expenses,16-Jun-2020,000009110953371,HI NEWCASTLE WASHI,7011,Conferencesseminars fees etc,260.00,0.00,260.00
"Regeneration, Economy and Growth",Development and Housing,031500,Housing Solutions - Core Team,Supplies and Services,352001,Conference Expenses,16-Jun-2020,000009110953415,HI NEWCASTLE WASHI,7011,Conferencesseminars fees etc,80.00,0.00,80.00
Neighbourhoods and Climate Change,Environmental Services,010301,C&G - North Grounds Maintenance,Supplies and Services,304221,Equipment and Materials,16-Jun-2020,000009110953439,AZTEC CHEMICALS LTD,5169,Direct materials,388.80,64.80,324.00
"Regeneration, Economy and Growth",Development and Housing,031500,Housing Solutions - Core Team,Supplies and Services,352001,Conference Expenses,16-Jun-2020,000009110953449,HI NEWCASTLE WASHI,7011,Conferencesseminars fees etc,367.50,0.00,367.50
"Regeneration, Economy and Growth",Development and Housing,031500,Housing Solutions - Core Team,Supplies and Services,352001,Conference Expenses,16-Jun-2020,000009110953457,HI NEWCASTLE WASHI,7011,Conferencesseminars fees etc,367.50,0.00,367.50
"Regeneration, Economy and Growth",Development and Housing,030776,LINKCD Flexible Fund,Supplies and Services,324117,Provisions E324,16-Jun-2020,000009110953467,SAINSBURYS 0555,5411,Catering costs - provisions,9.12,0.00,9.12
Children and Young Peoples Services,Head of Early Help Inclusion & Vulnerable Children.,071445,Chester le Street One Point Hub,Transport,235057,Public Transport,16-Jun-2020,000009110953493,SUNDERLAND CC,7523,Staff travelling,11.00,0.00,11.00
Resources BK0010,Business Support,052986,CYPS - Locality and Operational Support,Supplies and Services,304403,Equipment and Materials,16-Jun-2020,000009110953551,AMZNMktplace,5999,Other consumables,119.61,0.00,119.61
Children and Young Peoples Services,Head of Childrens Social Care,085551,Short Break Services-Park Hse Sher,Supplies and Services,304999,Equipment and Materials,16-Jun-2020,000009110953655,HOME BARGAINS,5251,Misc equipment tools and materials,25.20,0.00,25.20
Children and Young Peoples Services,Head of Childrens Social Care,085551,Short Break Services-Park Hse Sher,Supplies and Services,324117,Provisions E324,16-Jun-2020,000009110953661,ICELAND,5411,Catering costs - provisions,7.75,0.00,7.75
Children and Young Peoples Services,Head of Childrens Social Care,085551,Short Break Services-Park Hse Sher,Supplies and Services,324117,Provisions E324,16-Jun-2020,000009110953665,ALDI 12 774,5411,Catering costs - provisions,4.32,0.72,3.60
